{"text_format":"1","workbook":"xlsx","n_sheets":18,"sheets":["Sheet1","Moshakhasat","Sheet2","savabegh","Article","inovation","book","proposal","conference","doc","maghale","ebda","ketab","tarh","hamayesh","H index","total","sum"],"not_rendered":{"charts":0,"images":2,"macros":1,"external_links":0,"defined_names":0,"comments":0,"pivot_tables":0},"unopened":[],"bounds":{"document_bytes":16777216,"sheet_cells":100000,"rows_first":2000,"rows_last":500,"rows_between":2000,"halvings":0,"cell_chars":16384,"cell_head_chars":4096},"cells_cut":0,"cells_raw":0,"read":"whole","date_system":"1900"}

{"sheet":"Sheet1","index":0,"n_rows":0,"n_cols":0,"rows_kept":0,"cut":false,"hidden":false,"merged":[[0,0,1048575,16383]]}

{"sheet":"Moshakhasat","index":1,"n_rows":59,"n_cols":8,"rows_kept":59,"cut":false,"hidden":false,"merged":[[28,0,28,1],[18,0,18,1],[16,0,16,1],[28,2,28,5],[47,0,48,1],[42,0,42,1],[46,0,46,1],[30,0,30,1],[32,0,32,1],[36,0,36,1],[40,0,40,1],[38,0,38,1],[44,0,44,1],[34,0,34,1],[0,0,0,1],[4,0,4,1],[8,0,8,1],[10,0,10,1],[6,0,6,1],[12,0,12,1],[24,0,24,1],[26,0,26,1],[14,0,14,1],[1,2,1,5],[22,0,22,1]]}
["به نام خداوند بخشنده ی مهربان"]
["نکات مهم: \n- فقط فعالیت هایی که در بازه زمانی 3 سال گذشته به انجام رسیده اند مشمول امتیاز بوده و مورد ارزیابی قرار خواهند گرفت.\n- شرکت برگزیدگان دوره های قبل، در سایر بخش های جشنواره بلامانع است.\n                    \nراهنما: فایل ثبت نام شامل مراحل مختلفی می باشد و شما برای ارسال هر یک از مستندات درخواست شده در هر قسمت از فرم ثبت نام می توانید از امکان موجود در نرم افزار excel موسوم به Insert Object استفاده کرده و تمام مستندات خود را در صفحه \"مستندات\" بارگذاری نمایید. درغیر این صورت مستندات را به صورت CD به دبیرخانه جشنواره ارسال نمایید. لطفا از کپی پیست کردن اطلاعات در داخل سلول ها خودداری نموده و اطلاعات را صرفا تایپ نمایید. لطفا با استفاده از کلید های تعبیه شده مراحل را طی کنید."]
["مشخصات شرکت کننده (برای وارد کردن اطلاعات از  ردیفی که در زیر هر سوال  تعبیه شده است استفاده کنید) : "]
["نام و نام خانوادگی"]
[]
["کد ملی"]
[]
["لطفا تصویر پرسنلی خود را در باکس آبی رو به رو اضافه کنید."]
[]
["مقطع تحصیلی فعلی  (در صورت دانشجو بودن)"]
[]
["رشته تحصیلی فعلی  (در صورت دانشجو بودن)"]
[]
["آخرین مدرک تحصیلی"]
[]
["تاریخ تولد"]
[]
["سن"]
[]
["شماره تلفن ثابت"]
[]
["  تلفن همراه"]
[]
["آدرس پست الكترونيكي"]
[]
["اگر شاغل هستید محل کار خود را قید کنید: دانشگاه/ دانشكده/مركز تحقيقاتي"]
[]
["محل تحصیل فعلی: دانشکده/پردیس/ مرکز تحقیقات"]
[]
["عناوین مهمترین جوایز و افتخارات (اخذ رتبه ازجشنواره های دانشگاهی، ملی یا بین المللی معتبر و ، ....) خود را مرقوم کنید",null,null,null,null,0]
[null,null,null,null,null,1]
["آیا در جشنواره های قبلی حائز رتبه شده اید؟ لطفا ذکر بفرمائید در کدام محور چه رتبه ای را کسب نموده اید.",null,null,null,null,2]
[null,null,null,null,null,3]
["لینک حساب کاربری Scopus",null,null,null,null,4]
[null,null,null,null,null,5]
["شاخص اچ (H-index) بدون خود ارجاعی",null,null,null,null,6]
[null,null,null,null,null,7,null,"بله"]
["متوسط تعداد ارجاعات به ازای هر مقاله (Citations/number of papers)",null,null,null,null,8,null,"خیر"]
[null,null,null,null,null,9]
["آیا عضو انجمن علمی بهداشت محیط ایران هستید؟",null,null,null,null,10]
[null,null,null,null,null,11]
["مدت زمان عضویت پیوسته شما در انجمن علمی بهداشت محیط چند سال می باشد؟",null,null,null,null,12]
[null,null,null,null,null,13]
["کد عضویت در انجمن علمی بهداشت محیط ایران",null,null,null,null,14]
[null,null,null,null,null,15]
["قصد شرکت در کدام محور رادارید؟",null,null,null,null,16]
[null,null,null,null,null,"بیشتر از 16"]
["برای رفتن به مرحله بعد از منوی  رو به رو ، گزینه سوابق فرهنگی هنری  را انتخاب کنید."]
[]
[]
[]
[null,"مقاله"]
[null,"کتاب - تالیف"]
["پژوهشگر جوان","کتاب - ترجمه"]
[null,"مجله"]
[null,"پایان نامه - ارشد"]
[null,"پایان نامه - دکتری"]
[null,"ابداع و اختراع"]
[null,"فعالیت های اجرایی بهداشت محیط"]

{"sheet":"Sheet2","index":2,"n_rows":20,"n_cols":2,"rows_kept":20,"cut":false,"hidden":false,"merged":[[5,0,7,8]]}
[]
[]
[]
[]
[]
["در صورتی که در بخش پژوهشگر جوان شرکت کرده اید ادامه دهید \nدر غیر این صورت فایل شماره 1 که برای سایر بخش ها است را دانلود و پر کنید."]
[]
[]
[]
[1,"در صورتی که در کارگاه ها تدریس داشته اید در سلول های رو به رو نام آن ها را ذکر نموده و در قسمت مستندات (شیت آخر) نسبت به بارگذاری مستندات مربوطه اقدام فرمایید."]
[]
[2,"مدت زمانی که عضو پیوسته انجمن علمی بهداشت محیط ایران بوده اید چقدر بوده ؟"]
[]
[3,"در صورتی که دبیر یا معاون کمیته تحقیقات دانشجویی بوده اید مدت زمان مربوطه را در شیت های رو به رو پر کرده و در  قسمت مستندات (شیت آخر) نسبت به بارگذاری مستندات مربوطه اقدام فرمایید."]
[]
[4,"آیا عضو انجمن های علمی دانشجویی مورد تایید دانشگاه بوده اید ؟ مدت زمان هر کدام را ذکر نموده و مستندات مربوطه را در قسمت   مستندات (شیت آخر) نسبت به بارگذاری مستندات مربوطه اقدام فرمایید."]
[]
[5,"در صورتی که برگزیده جشنواره های ملی ( دانشجوی نمونه کشوری ، رازی ، فارابی ، ابن سینا ، خوارزمی ) و بین المللی بوده اید ؟ برای هر کدا در قسمت مستندات ، نسبت به بارگذاری مستندات اقدام فرمایید."]
[]
[6,"آیا تاکنون به عنوان پژوهشگر نمونه دانشگاهی و دانشکده ای انتخاب شده اید ؟ نسبت به بارگذاری مستندات اقدام فرمایید."]

{"sheet":"savabegh","index":3,"n_rows":8,"n_cols":8,"rows_kept":8,"cut":false,"hidden":false,"merged":[[2,0,2,7],[0,8,1048575,13],[0,0,1,7],[8,0,213,7]]}
[]
[]
["جدول 1- سوابق تحصیلی خود را در جدول ذیل مرقوم نمایید:(مقاطع بعد از دیپلم)"]
["معدل","سال پایان/ ادامه دارد","سال شروع","مقطع تحصیلی","محل تحصیل","گرایش","رشته تحصیلی","ردیف"]
[null,null,null,null,null,null,null,1]
[null,null,null,null,null,null,null,2]
[null,null,null,null,null,null,null,3]
[null,null,null,null,null,null,null,4]

{"sheet":"Article","index":4,"n_rows":208,"n_cols":23,"rows_kept":208,"cut":false,"hidden":false,"merged":[[0,0,0,11],[6,0,6,11],[5,0,5,11]]}
[]
[]
[]
[]
[]
["جدول شماره 2: مقالات چاپ شده"]
["توجه: فقط اطلاعات مقالات چاپ شده در 3 سال اخیر را وارد نمایید. به Submission  مقاله امتیازی تعلق نمی گیرد ولی Acceptance مقاله به شرط آنلاین شدن آن مورد قبول است.  ",null,null,null,null,null,null,null,null,null,null,null,null,null,null,null,null,null,null,null,null,"فارسی","دارد"]
["ردیف","نام مقاله","نام مجله","کد اخلاق ","مقاله فارسی یا انگلیسی","مقاله منتج از:","سال انتشار","نوع مقاله","جایگاه شما در فهرست نويسندگان","محل نمایه مجله","ایمپکت فاکتور مجله در سال انتشار مقاله","تعداد استنادات  در اسکوپوس",null,null,null,"ISI","اصیل",1,"اول و یا مسئول",1,"پایان نامه ","انگلیسی","ندارد"]
[1,null,null,null,null,null,null,null,null,null,null,null,{"$f":"IF(ISBLANK(D9),0,IF(D9=$W$8,0,IF(J9=$P$9,20*VLOOKUP(H9,$Q$8:$R$13,2,FALSE)*VLOOKUP(I9,$S$8:$T$11,2,FALSE),IF(J9=$P$10,15*VLOOKUP(H9,$Q$8:$R$13,2,FALSE)*VLOOKUP(I9,$S$8:$T$11,2,FALSE),IF(J9=$P$11,5*VLOOKUP(H9,$Q$8:$R$13,2,FALSE)*VLOOKUP(I9,$S$8:$T$11,2,FALSE),IF(J9=$P$8,IF(K9>1,25*K9*VLOOKUP(H9,$Q$8:$R$13,2,FALSE)*VLOOKUP(I9,$S$8:$T$11,2,FALSE),25*VLOOKUP(H9,$Q$8:$R$13,2,FALSE)*VLOOKUP(I9,$S$8:$T$11,2,FALSE))))))))","v":0},null,null,"Pubmed","مرور نظام مند",1.5,"دوم",0.8," طرح "]
[2,null,null,null,null,null,null,null,null,null,null,null,{"$f":"IF(ISBLANK(D10),0,IF(D10=$W$8,0,IF(J10=$P$9,20*VLOOKUP(H10,$Q$8:$R$13,2,FALSE)*VLOOKUP(I10,$S$8:$T$11,2,FALSE),IF(J10=$P$10,15*VLOOKUP(H10,$Q$8:$R$13,2,FALSE)*VLOOKUP(I10,$S$8:$T$11,2,FALSE),IF(J10=$P$11,5*VLOOKUP(H10,$Q$8:$R$13,2,FALSE)*VLOOKUP(I10,$S$8:$T$11,2,FALSE),IF(J10=$P$8,IF(K10>1,25*K10*VLOOKUP(H10,$Q$8:$R$13,2,FALSE)*VLOOKUP(I10,$S$8:$T$11,2,FALSE),25*VLOOKUP(H10,$Q$8:$R$13,2,FALSE)*VLOOKUP(I10,$S$8:$T$11,2,FALSE))))))))","v":0},null,null,"scopus","مروری",1,"سوم",0.6,"هیچکدام"]
[3,null,null,null,null,null,null,null,null,null,null,null,0,null,null,"سایر","گزارش کوتاه",0.6,"چهارم و به بعد",0.4]
[4,null,null,null,null,null,null,null,null,null,null,null,0,null,null,null,"گزارش موردی",0.3]
[5,null,null,null,null,null,null,null,null,null,null,null,0,null,null,null,"انواع نامه",0.2,null,null,"کمتر از 1"]
[6,null,null,null,null,null,null,null,null,null,null,null,0,null,null,null,null,null,null,null,"1 تا 3"]
[7,null,null,null,null,null,null,null,null,null,null,null,0,null,null,null,null,null,null,null,"3 تا 5"]
[8,null,null,null,null,null,null,null,null,null,null,null,0,null,null,null,null,null,null,null,"5 و بالاتر"]
[9,null,null,null,null,null,null,null,null,null,null,null,0,null,null,null,null,null,null,null,"صفر"]
[10,null,null,null,null,null,null,null,null,null,null,null,0]
[11,null,null,null,null,null,null,null,null,null,null,null,0]
[12,null,null,null,null,null,null,null,null,null,null,null,0]
[13,null,null,null,null,null,null,null,null,null,null,null,0]
[14,null,null,null,null,null,null,null,null,null,null,null,0]
[15,null,null,null,null,null,null,null,null,null,null,null,0]
[16,null,null,null,null,null,null,null,null,null,null,null,0]
[17,null,null,null,null,null,null,null,null,null,null,null,0]
[18,null,null,null,null,null,null,null,null,null,null,null,0]
[19,null,null,null,null,null,null,null,null,null,null,null,0]
[20,null,null,null,null,null,null,null,null,null,null,null,0]
[21,null,null,null,null,null,null,null,null,null,null,null,0]
[22,null,null,null,null,null,null,null,null,null,null,null,0]
[23,null,null,null,null,null,null,null,null,null,null,null,0]
[24,null,null,null,null,null,null,null,null,null,null,null,0]
[25,null,null,null,null,null,null,null,null,null,null,null,0]
[26,null,null,null,null,null,null,null,null,null,null,null,0]
[27,null,null,null,null,null,null,null,null,null,null,null,0]
[28,null,null,null,null,null,null,null,null,null,null,null,0]
[29,null,null,null,null,null,null,null,null,null,null,null,0]
[30,null,null,null,null,null,null,null,null,null,null,null,0]
[31,null,null,null,null,null,null,null,null,null,null,null,0]
[32,null,null,null,null,null,null,null,null,null,null,null,0]
[33,null,null,null,null,null,null,null,null,null,null,null,0]
[34,null,null,null,null,null,null,null,null,null,null,null,0]
[35,null,null,null,null,null,null,null,null,null,null,null,0]
[36,null,null,null,null,null,null,null,null,null,null,null,0]
[37,null,null,null,null,null,null,null,null,null,null,null,0]
[38,null,null,null,null,null,null,null,null,null,null,null,0]
[39,null,null,null,null,null,null,null,null,null,null,null,0]
[40,null,null,null,null,null,null,null,null,null,null,null,0]
[41,null,null,null,null,null,null,null,null,null,null,null,0]
[42,null,null,null,null,null,null,null,null,null,null,null,0]
[43,null,null,null,null,null,null,null,null,null,null,null,0]
[44,null,null,null,null,null,null,null,null,null,null,null,0]
[45,null,null,null,null,null,null,null,null,null,null,null,0]
[46,null,null,null,null,null,null,null,null,null,null,null,0]
[47,null,null,null,null,null,null,null,null,null,null,null,0]
[48,null,null,null,null,null,null,null,null,null,null,null,0]
[49,null,null,null,null,null,null,null,null,null,null,null,0]
[50,null,null,null,null,null,null,null,null,null,null,null,0]
[51,null,null,null,null,null,null,null,null,null,null,null,0]
[52,null,null,null,null,null,null,null,null,null,null,null,0]
[53,null,null,null,null,null,null,null,null,null,null,null,0]
[54,null,null,null,null,null,null,null,null,null,null,null,0]
[55,null,null,null,null,null,null,null,null,null,null,null,0]
[56,null,null,null,null,null,null,null,null,null,null,null,0]
[57,null,null,null,null,null,null,null,null,null,null,null,0]
[58,null,null,null,null,null,null,null,null,null,null,null,0]
[59,null,null,null,null,null,null,null,null,null,null,null,0]
[60,null,null,null,null,null,null,null,null,null,null,null,0]
[61,null,null,null,null,null,null,null,null,null,null,null,0]
[62,null,null,null,null,null,null,null,null,null,null,null,0]
[63,null,null,null,null,null,null,null,null,null,null,null,0]
[64,null,null,null,null,null,null,null,null,null,null,null,0]
[65,null,null,null,null,null,null,null,null,null,null,null,0]
[66,null,null,null,null,null,null,null,null,null,null,null,{"$f":"IF(ISBLANK(D74),0,IF(D74=$W$8,0,IF(J74=$P$9,20*VLOOKUP(H74,$Q$8:$R$13,2,FALSE)*VLOOKUP(I74,$S$8:$T$11,2,FALSE),IF(J74=$P$10,15*VLOOKUP(H74,$Q$8:$R$13,2,FALSE)*VLOOKUP(I74,$S$8:$T$11,2,FALSE),IF(J74=$P$11,5*VLOOKUP(H74,$Q$8:$R$13,2,FALSE)*VLOOKUP(I74,$S$8:$T$11,2,FALSE),IF(J74=$P$8,IF(K74>1,25*K74*VLOOKUP(H74,$Q$8:$R$13,2,FALSE)*VLOOKUP(I74,$S$8:$T$11,2,FALSE),25*VLOOKUP(H74,$Q$8:$R$13,2,FALSE)*VLOOKUP(I74,$S$8:$T$11,2,FALSE))))))))","v":0}]
[67,null,null,null,null,null,null,null,null,null,null,null,0]
[68,null,null,null,null,null,null,null,null,null,null,null,0]
[69,null,null,null,null,null,null,null,null,null,null,null,0]
[70,null,null,null,null,null,null,null,null,null,null,null,0]
[71,null,null,null,null,null,null,null,null,null,null,null,0]
[72,null,null,null,null,null,null,null,null,null,null,null,0]
[73,null,null,null,null,null,null,null,null,null,null,null,0]
[74,null,null,null,null,null,null,null,null,null,null,null,0]
[75,null,null,null,null,null,null,null,null,null,null,null,0]
[76,null,null,null,null,null,null,null,null,null,null,null,0]
[77,null,null,null,null,null,null,null,null,null,null,null,0]
[78,null,null,null,null,null,null,null,null,null,null,null,0]
[79,null,null,null,null,null,null,null,null,null,null,null,0]
[80,null,null,null,null,null,null,null,null,null,null,null,0]
[81,null,null,null,null,null,null,null,null,null,null,null,0]
[82,null,null,null,null,null,null,null,null,null,null,null,0]
[83,null,null,null,null,null,null,null,null,null,null,null,0]
[84,null,null,null,null,null,null,null,null,null,null,null,0]
[85,null,null,null,null,null,null,null,null,null,null,null,0]
[86,null,null,null,null,null,null,null,null,null,null,null,0]
[87,null,null,null,null,null,null,null,null,null,null,null,0]
[88,null,null,null,null,null,null,null,null,null,null,null,0]
[89,null,null,null,null,null,null,null,null,null,null,null,0]
[90,null,null,null,null,null,null,null,null,null,null,null,0]
[91,null,null,null,null,null,null,null,null,null,null,null,0]
[92,null,null,null,null,null,null,null,null,null,null,null,0]
[93,null,null,null,null,null,null,null,null,null,null,null,0]
[94,null,null,null,null,null,null,null,null,null,null,null,0]
[95,null,null,null,null,null,null,null,null,null,null,null,0]
[96,null,null,null,null,null,null,null,null,null,null,null,0]
[97,null,null,null,null,null,null,null,null,null,null,null,0]
[98,null,null,null,null,null,null,null,null,null,null,null,0]
[99,null,null,null,null,null,null,null,null,null,null,null,0]
[100,null,null,null,null,null,null,null,null,null,null,null,0]
[101,null,null,null,null,null,null,null,null,null,null,null,0]
[102,null,null,null,null,null,null,null,null,null,null,null,0]
[103,null,null,null,null,null,null,null,null,null,null,null,0]
[104,null,null,null,null,null,null,null,null,null,null,null,0]
[105,null,null,null,null,null,null,null,null,null,null,null,0]
[106,null,null,null,null,null,null,null,null,null,null,null,0]
[107,null,null,null,null,null,null,null,null,null,null,null,0]
[108,null,null,null,null,null,null,null,null,null,null,null,0]
[109,null,null,null,null,null,null,null,null,null,null,null,0]
[110,null,null,null,null,null,null,null,null,null,null,null,0]
[111,null,null,null,null,null,null,null,null,null,null,null,0]
[112,null,null,null,null,null,null,null,null,null,null,null,0]
[113,null,null,null,null,null,null,null,null,null,null,null,0]
[114,null,null,null,null,null,null,null,null,null,null,null,0]
[115,null,null,null,null,null,null,null,null,null,null,null,0]
[116,null,null,null,null,null,null,null,null,null,null,null,0]
[117,null,null,null,null,null,null,null,null,null,null,null,0]
[118,null,null,null,null,null,null,null,null,null,null,null,0]
[119,null,null,null,null,null,null,null,null,null,null,null,0]
[120,null,null,null,null,null,null,null,null,null,null,null,0]
[121,null,null,null,null,null,null,null,null,null,null,null,0]
[122,null,null,null,null,null,null,null,null,null,null,null,0]
[123,null,null,null,null,null,null,null,null,null,null,null,0]
[124,null,null,null,null,null,null,null,null,null,null,null,0]
[125,null,null,null,null,null,null,null,null,null,null,null,0]
[126,null,null,null,null,null,null,null,null,null,null,null,0]
[127,null,null,null,null,null,null,null,null,null,null,null,0]
[128,null,null,null,null,null,null,null,null,null,null,null,0]
[129,null,null,null,null,null,null,null,null,null,null,null,0]
[130,null,null,null,null,null,null,null,null,null,null,null,{"$f":"IF(ISBLANK(D138),0,IF(D138=$W$8,0,IF(J138=$P$9,20*VLOOKUP(H138,$Q$8:$R$13,2,FALSE)*VLOOKUP(I138,$S$8:$T$11,2,FALSE),IF(J138=$P$10,15*VLOOKUP(H138,$Q$8:$R$13,2,FALSE)*VLOOKUP(I138,$S$8:$T$11,2,FALSE),IF(J138=$P$11,5*VLOOKUP(H138,$Q$8:$R$13,2,FALSE)*VLOOKUP(I138,$S$8:$T$11,2,FALSE),IF(J138=$P$8,IF(K138>1,25*K138*VLOOKUP(H138,$Q$8:$R$13,2,FALSE)*VLOOKUP(I138,$S$8:$T$11,2,FALSE),25*VLOOKUP(H138,$Q$8:$R$13,2,FALSE)*VLOOKUP(I138,$S$8:$T$11,2,FALSE))))))))","v":0}]
[131,null,null,null,null,null,null,null,null,null,null,null,0]
[132,null,null,null,null,null,null,null,null,null,null,null,0]
[133,null,null,null,null,null,null,null,null,null,null,null,0]
[134,null,null,null,null,null,null,null,null,null,null,null,0]
[135,null,null,null,null,null,null,null,null,null,null,null,0]
[136,null,null,null,null,null,null,null,null,null,null,null,0]
[137,null,null,null,null,null,null,null,null,null,null,null,0]
[138,null,null,null,null,null,null,null,null,null,null,null,0]
[139,null,null,null,null,null,null,null,null,null,null,null,0]
[140,null,null,null,null,null,null,null,null,null,null,null,0]
[141,null,null,null,null,null,null,null,null,null,null,null,0]
[142,null,null,null,null,null,null,null,null,null,null,null,0]
[143,null,null,null,null,null,null,null,null,null,null,null,0]
[144,null,null,null,null,null,null,null,null,null,null,null,0]
[145,null,null,null,null,null,null,null,null,null,null,null,0]
[146,null,null,null,null,null,null,null,null,null,null,null,0]
[147,null,null,null,null,null,null,null,null,null,null,null,0]
[148,null,null,null,null,null,null,null,null,null,null,null,0]
[149,null,null,null,null,null,null,null,null,null,null,null,0]
[150,null,null,null,null,null,null,null,null,null,null,null,0]
[151,null,null,null,null,null,null,null,null,null,null,null,0]
[152,null,null,null,null,null,null,null,null,null,null,null,0]
[153,null,null,null,null,null,null,null,null,null,null,null,0]
[154,null,null,null,null,null,null,null,null,null,null,null,0]
[155,null,null,null,null,null,null,null,null,null,null,null,0]
[156,null,null,null,null,null,null,null,null,null,null,null,0]
[157,null,null,null,null,null,null,null,null,null,null,null,0]
[158,null,null,null,null,null,null,null,null,null,null,null,0]
[159,null,null,null,null,null,null,null,null,null,null,null,0]
[160,null,null,null,null,null,null,null,null,null,null,null,0]
[161,null,null,null,null,null,null,null,null,null,null,null,0]
[162,null,null,null,null,null,null,null,null,null,null,null,0]
[163,null,null,null,null,null,null,null,null,null,null,null,0]
[164,null,null,null,null,null,null,null,null,null,null,null,0]
[165,null,null,null,null,null,null,null,null,null,null,null,0]
[166,null,null,null,null,null,null,null,null,null,null,null,0]
[167,null,null,null,null,null,null,null,null,null,null,null,0]
[168,null,null,null,null,null,null,null,null,null,null,null,0]
[169,null,null,null,null,null,null,null,null,null,null,null,0]
[170,null,null,null,null,null,null,null,null,null,null,null,0]
[171,null,null,null,null,null,null,null,null,null,null,null,0]
[172,null,null,null,null,null,null,null,null,null,null,null,0]
[173,null,null,null,null,null,null,null,null,null,null,null,0]
[174,null,null,null,null,null,null,null,null,null,null,null,0]
[175,null,null,null,null,null,null,null,null,null,null,null,0]
[176,null,null,null,null,null,null,null,null,null,null,null,0]
[177,null,null,null,null,null,null,null,null,null,null,null,0]
[178,null,null,null,null,null,null,null,null,null,null,null,0]
[179,null,null,null,null,null,null,null,null,null,null,null,0]
[180,null,null,null,null,null,null,null,null,null,null,null,0]
[181,null,null,null,null,null,null,null,null,null,null,null,0]
[182,null,null,null,null,null,null,null,null,null,null,null,0]
[183,null,null,null,null,null,null,null,null,null,null,null,0]
[184,null,null,null,null,null,null,null,null,null,null,null,0]
[185,null,null,null,null,null,null,null,null,null,null,null,0]
[186,null,null,null,null,null,null,null,null,null,null,null,0]
[187,null,null,null,null,null,null,null,null,null,null,null,0]
[188,null,null,null,null,null,null,null,null,null,null,null,0]
[189,null,null,null,null,null,null,null,null,null,null,null,0]
[190,null,null,null,null,null,null,null,null,null,null,null,0]
[191,null,null,null,null,null,null,null,null,null,null,null,0]
[192,null,null,null,null,null,null,null,null,null,null,null,0]
[193,null,null,null,null,null,null,null,null,null,null,null,0]
[194,null,null,null,null,null,null,null,null,null,null,null,{"$f":"IF(ISBLANK(D202),0,IF(D202=$W$8,0,IF(J202=$P$9,20*VLOOKUP(H202,$Q$8:$R$13,2,FALSE)*VLOOKUP(I202,$S$8:$T$11,2,FALSE),IF(J202=$P$10,15*VLOOKUP(H202,$Q$8:$R$13,2,FALSE)*VLOOKUP(I202,$S$8:$T$11,2,FALSE),IF(J202=$P$11,5*VLOOKUP(H202,$Q$8:$R$13,2,FALSE)*VLOOKUP(I202,$S$8:$T$11,2,FALSE),IF(J202=$P$8,IF(K202>1,25*K202*VLOOKUP(H202,$Q$8:$R$13,2,FALSE)*VLOOKUP(I202,$S$8:$T$11,2,FALSE),25*VLOOKUP(H202,$Q$8:$R$13,2,FALSE)*VLOOKUP(I202,$S$8:$T$11,2,FALSE))))))))","v":0}]
[195,null,null,null,null,null,null,null,null,null,null,null,0]
[196,null,null,null,null,null,null,null,null,null,null,null,0]
[197,null,null,null,null,null,null,null,null,null,null,null,0]
[198,null,null,null,null,null,null,null,null,null,null,null,0]
[199,null,null,null,null,null,null,null,null,null,null,null,0]
[200,null,null,null,null,null,null,null,null,null,null,null,0]

{"sheet":"inovation","index":5,"n_rows":10,"n_cols":15,"rows_kept":10,"cut":false,"hidden":false,"merged":[[2,0,2,9],[3,0,3,9]]}
[]
[]
["جدول شماره 3:  ابداع و اختراع",null,null,null,null,null,null,null,null,null,null,null,"داخلی","بله","دارم"]
["توجه: حتما می بایست مستندات مربوط به مرجع ثبت کننده اختراع را ارسال کنید. به اظهارنامه ها امتیازی تعلق نمی گیرد.",null,null,null,null,null,null,null,null,null,null,null,"خارجی","خیر","ندارم"]
["ردیف","عنوان اختراع","نوع ثبت اختراع","تاریخ ثبت اختراع","محل، شماره ثبت و نشر اختراع","استفاده از نتايج اختراع ایران در جهان","آیا اختراع ثبت شده منجر به تجاری سازی شده است؟","نام همکاران در ثبت اختراع","خلاصه یا چكيده ای از اختراع ثبت شده به زبان فارسی","مستندات"]
[1]
[2]
[3]
[4]
[5]

{"sheet":"book","index":6,"n_rows":32,"n_cols":16,"rows_kept":32,"cut":false,"hidden":false,"merged":[[3,0,3,11]]}
[]
[]
[null,null,null,null,null,null,null,null,"جدول شماره 4: تالیف و ترجمه کتاب"]
["توجه:  در صورت لزوم با شما از طرف دبیرخانه جشنواره برای ارسال یک نسخه از کتاب تماس گرفته خواهد شد.",null,null,null,null,null,null,null,null,null,null,null,null,"ترجمه کل کتاب به تنهایی","دارد و ارسال میشود","تالیف"]
["ردیف","نام كتاب","تالیف است  یا ترجمه ؟","سال انتشار"," فرم ارزشيابي شوراي انتشارات دانشگاه ","ناشر","شابک یا فیپا ","تعداد نویسندگان","جایگاه داوطلب در میان نویسندگان","نقش شما در ترجمه کتاب ","آیا اجازه ناشر یا نویسنده اصلی برای ترجمه کتاب اخذ شده است ؟","سایر توضیحات در صورت نیاز","ترجمه بخشی از کتاب","ندارد","ندارد","ترجمه"]
[1,null,null,null,null,null,null,null,null,null,null,null,"سایر موارد"]
[2]
[3]
[4]
[5]
[6]
[7]
[8]
[9]
[10]
[11]
[12]
[13]
[14]
[15]
[16]
[17]
[18]
[19]
[20]
[21]
[22]
[23]
[24]
[25]
[26]
[27]

{"sheet":"proposal","index":7,"n_rows":104,"n_cols":16,"rows_kept":104,"cut":false,"hidden":false,"merged":[[1,0,1,9],[2,0,2,9]]}
[]
["جدول شماره 5: طرح های پژوهشی"]
["توجه: طرح تحقیقاتی می بایست در 3 سال گذشته به پایان رسیده باشد. منظور از مستندات، تصویر قرارداد یا گواهی طرح تحقیقاتی می باشد.",null,null,null,null,null,null,null,null,null,null,null,null,"مجری","دارم","دانشگاهی"]
["ردیف","عنوان طرح","محل تصویب","محل اجرا","نوع مشارکت","نوع طرح (دانشگاهی، ملی، بین المللی)","مبلغ قرارداد","تاریخ شروع","تاریخ پایان","مستندات",null,null,null,"همکار","ندارم","ملی "]
[1,null,null,null,null,null,null,null,null,null,null,null,null,null,null,"بین المللی"]
[2]
[3]
[4]
[5]
[6]
[7]
[8]
[9]
[10]
[11]
[12]
[13]
[14]
[15]
[16]
[17]
[18]
[19]
[20]
[21]
[22]
[23]
[24]
[25]
[26]
[27]
[28]
[29]
[30]
[31]
[32]
[33]
[34]
[35]
[36]
[37]
[38]
[39]
[40]
[41]
[42]
[43]
[44]
[45]
[46]
[47]
[48]
[49]
[50]
[51]
[52]
[53]
[54]
[55]
[56]
[57]
[58]
[59]
[60]
[61]
[62]
[63]
[64]
[65]
[66]
[67]
[68]
[69]
[70]
[71]
[72]
[73]
[74]
[75]
[76]
[77]
[78]
[79]
[80]
[81]
[82]
[83]
[84]
[85]
[86]
[87]
[88]
[89]
[90]
[91]
[92]
[93]
[94]
[95]
[96]
[97]
[98]
[99]
[100]

{"sheet":"conference","index":8,"n_rows":104,"n_cols":13,"rows_kept":104,"cut":false,"hidden":false,"merged":[[2,0,2,7],[1,2,1,7],[1,0,1,1]]}
[]
[null,null,"جدول شماره 6: شرکت در همایش",null,null,null,null,null,null,null,"پوستر","دانشگاهی","دارم"]
["توجه: منظور از مستندات، پیوست تصویر صفحه ای ازکتابچه خلاصه مقالات همایش و یا گواهی (Certificate) مربوطه است. ",null,null,null,null,null,null,null,null,null,"سخنرانی","ملی","ندارم"]
["رديف","عنوان مقاله در همایش","روش ارائه","عنوان همایش","سطح همایش","زمان برگزاری","مکان برگزاری","مستندات",null,null,null,"بین المللی داخلی"]
[1,null,null,null,null,null,null,null,null,null,null,"بین المللی خارجی"]
[2]
[3]
[4]
[5]
[6]
[7]
[8]
[9]
[10]
[11]
[12]
[13]
[14]
[15]
[16]
[17]
[18]
[19]
[20]
[21]
[22]
[23]
[24]
[25]
[26]
[27]
[28]
[29]
[30]
[31]
[32]
[33]
[34]
[35]
[36]
[37]
[38]
[39]
[40]
[41]
[42]
[43]
[44]
[45]
[46]
[47]
[48]
[49]
[50]
[51]
[52]
[53]
[54]
[55]
[56]
[57]
[58]
[59]
[60]
[61]
[62]
[63]
[64]
[65]
[66]
[67]
[68]
[69]
[70]
[71]
[72]
[73]
[74]
[75]
[76]
[77]
[78]
[79]
[80]
[81]
[82]
[83]
[84]
[85]
[86]
[87]
[88]
[89]
[90]
[91]
[92]
[93]
[94]
[95]
[96]
[97]
[98]
[99]
[100]

{"sheet":"doc","index":9,"n_rows":204,"n_cols":11,"rows_kept":204,"cut":false,"hidden":false,"merged":[[3,0,3,3]]}
[]
[]
[]
["ارسال مستندات: لطفا با توجه به راهنمای موجود در صفحه هر یک ستونهای شیت را به مستندات یک موضوع از فعالیت های خود اختصاص داده و مستندات را پیوست نمایید. توجه بفرمائید که مرحله ی 3 توسط ابزارهای موجود در Text و افزونه ی Object صورت می گیرد و ممکن است شکل آیکون آن در ورژن های مختلف متفاوت باشد.",null,null,null,null,"مستندات مقاله","مستندات اختراع","مستندات کتاب","مستندات طرح","مستندات همایش","سایر مستندات"]
[null,null,null,null,1]
[null,null,null,null,2]
[null,null,null,null,3]
[null,null,null,null,4]
[null,null,null,null,5]
[null,null,null,null,6]
[null,null,null,null,7]
[null,null,null,null,8]
[null,null,null,null,9]
[null,null,null,null,10]
[null,null,null,null,11]
[null,null,null,null,12]
[null,null,null,null,13]
[null,null,null,null,14]
[null,null,null,null,15]
[null,null,null,null,16]
[null,null,null,null,17]
[null,null,null,null,18]
[null,null,null,null,19]
[null,null,null,null,20]
[null,null,null,null,21]
[null,null,null,null,22]
[null,null,null,null,23]
[null,null,null,null,24]
[null,null,null,null,25]
[null,null,null,null,26]
[null,null,null,null,27]
[null,null,null,null,28]
[null,null,null,null,29]
[null,null,null,null,30]
[null,null,null,null,31]
[null,null,null,null,32]
[null,null,null,null,33]
[null,null,null,null,34]
[null,null,null,null,35]
[null,null,null,null,36]
[null,null,null,null,37]
[null,null,null,null,38]
[null,null,null,null,39]
[null,null,null,null,40]
[null,null,null,null,41]
[null,null,null,null,42]
[null,null,null,null,43]
[null,null,null,null,44]
[null,null,null,null,45]
[null,null,null,null,46]
[null,null,null,null,47]
[null,null,null,null,48]
[null,null,null,null,49]
[null,null,null,null,50]
[null,null,null,null,51]
[null,null,null,null,52]
[null,null,null,null,53]
[null,null,null,null,54]
[null,null,null,null,55]
[null,null,null,null,56]
[null,null,null,null,57]
[null,null,null,null,58]
[null,null,null,null,59]
[null,null,null,null,60]
[null,null,null,null,61]
[null,null,null,null,62]
[null,null,null,null,63]
[null,null,null,null,64]
[null,null,null,null,65]
[null,null,null,null,66]
[null,null,null,null,67]
[null,null,null,null,68]
[null,null,null,null,69]
[null,null,null,null,70]
[null,null,null,null,71]
[null,null,null,null,72]
[null,null,null,null,73]
[null,null,null,null,74]
[null,null,null,null,75]
[null,null,null,null,76]
[null,null,null,null,77]
[null,null,null,null,78]
[null,null,null,null,79]
[null,null,null,null,80]
[null,null,null,null,81]
[null,null,null,null,82]
[null,null,null,null,83]
[null,null,null,null,84]
[null,null,null,null,85]
[null,null,null,null,86]
[null,null,null,null,87]
[null,null,null,null,88]
[null,null,null,null,89]
[null,null,null,null,90]
[null,null,null,null,91]
[null,null,null,null,92]
[null,null,null,null,93]
[null,null,null,null,94]
[null,null,null,null,95]
[null,null,null,null,96]
[null,null,null,null,97]
[null,null,null,null,98]
[null,null,null,null,99]
[null,null,null,null,100]
[null,null,null,null,101]
[null,null,null,null,102]
[null,null,null,null,103]
[null,null,null,null,104]
[null,null,null,null,105]
[null,null,null,null,106]
[null,null,null,null,107]
[null,null,null,null,108]
[null,null,null,null,109]
[null,null,null,null,110]
[null,null,null,null,111]
[null,null,null,null,112]
[null,null,null,null,113]
[null,null,null,null,114]
[null,null,null,null,115]
[null,null,null,null,116]
[null,null,null,null,117]
[null,null,null,null,118]
[null,null,null,null,119]
[null,null,null,null,120]
[null,null,null,null,121]
[null,null,null,null,122]
[null,null,null,null,123]
[null,null,null,null,124]
[null,null,null,null,125]
[null,null,null,null,126]
[null,null,null,null,127]
[null,null,null,null,128]
[null,null,null,null,129]
[null,null,null,null,130]
[null,null,null,null,131]
[null,null,null,null,132]
[null,null,null,null,133]
[null,null,null,null,134]
[null,null,null,null,135]
[null,null,null,null,136]
[null,null,null,null,137]
[null,null,null,null,138]
[null,null,null,null,139]
[null,null,null,null,140]
[null,null,null,null,141]
[null,null,null,null,142]
[null,null,null,null,143]
[null,null,null,null,144]
[null,null,null,null,145]
[null,null,null,null,146]
[null,null,null,null,147]
[null,null,null,null,148]
[null,null,null,null,149]
[null,null,null,null,150]
[null,null,null,null,151]
[null,null,null,null,152]
[null,null,null,null,153]
[null,null,null,null,154]
[null,null,null,null,155]
[null,null,null,null,156]
[null,null,null,null,157]
[null,null,null,null,158]
[null,null,null,null,159]
[null,null,null,null,160]
[null,null,null,null,161]
[null,null,null,null,162]
[null,null,null,null,163]
[null,null,null,null,164]
[null,null,null,null,165]
[null,null,null,null,166]
[null,null,null,null,167]
[null,null,null,null,168]
[null,null,null,null,169]
[null,null,null,null,170]
[null,null,null,null,171]
[null,null,null,null,172]
[null,null,null,null,173]
[null,null,null,null,174]
[null,null,null,null,175]
[null,null,null,null,176]
[null,null,null,null,177]
[null,null,null,null,178]
[null,null,null,null,179]
[null,null,null,null,180]
[null,null,null,null,181]
[null,null,null,null,182]
[null,null,null,null,183]
[null,null,null,null,184]
[null,null,null,null,185]
[null,null,null,null,186]
[null,null,null,null,187]
[null,null,null,null,188]
[null,null,null,null,189]
[null,null,null,null,190]
[null,null,null,null,191]
[null,null,null,null,192]
[null,null,null,null,193]
[null,null,null,null,194]
[null,null,null,null,195]
[null,null,null,null,196]
[null,null,null,null,197]
[null,null,null,null,198]
[null,null,null,null,199]
[null,null,null,null,200]

{"sheet":"maghale","index":10,"n_rows":83,"n_cols":9,"rows_kept":83,"cut":false,"hidden":false,"merged":[]}
[]
["مقاله 1",{"$f":"IF(Article!H9=Article!$Q$8,0.25,IF(Article!H9=Article!$Q$9,0.25,IF(Article!H9=Article!$Q$10,0.25,IF(Article!H9=Article!$Q$11,0,IF(Article!H9=Article!$Q$12,0,IF(Article!H9=Article!$Q$13,0))))))","v":false},{"$f":"IF(Article!I9=Article!$S$8,0.5,IF(Article!I9=Article!$S$9,0.25,IF(Article!I9=Article!$S$10,0.25,IF(Article!I9=Article!$S$11,0.25))))","v":false},{"$f":"IF(Article!J9=Article!$P$8,0.5,IF(Article!J9=Article!$P$9,0.25,IF(Article!J9=Article!$P$10,0.25,IF(Article!J9=Article!$P$11,0))))","v":false},{"$f":"IF(Article!K9=Article!$U$13,0.2,IF(Article!K9=Article!$U$14,0.25,IF(Article!K9=Article!$U$15,0.5,IF(Article!K9=Article!$U$16,0.75,IF(Article!K9=Article!$U$17,0)))))","v":false},null,{"$f":"B2+C2+D2+E2","v":0},null,{"$f":"IF(G83=0,0,IF(G83=0.25,0.25,IF(G83=0.5,0.5,IF(G83=0.75,0.75,IF(G83=1,1,IF(G83=1.25,1.25,IF(G83=1.5,1.5,IF(G83=1.75,1.75,IF(G83=2,2,IF(G83=2.25,2.25,IF(G83=2.5,2.5,IF(G83=2.75,2.75,IF(G83=3,3,IF(G83=3.25,3.25,IF(G83=3.5,3.5,IF(G83=3.75,3.75,IF(G83=4,4,IF(G83=4.25,4.25,IF(G83=4.5,4.5,IF(G83=4.75,4.75,IF(G83=5,5,IF(G83=5.25,5.25,IF(G83=5.5,5.5,IF(G83=5.75,5.75,IF(G83=6,6,IF(G83=6.25,6.25,IF(G83=6.5,6.5,IF(G83=6.75,6.75,IF(G83=7,7,IF(G83=7.25,7.25,IF(G83=7.5,7.5,IF(G83=7.75,7.75,IF(G83=8,8,IF(G83>8,8))))))))))))))))))))))))))))))))))","v":0}]
["مقاله 2",{"$f":"IF(Article!H10=Article!$Q$8,0.25,IF(Article!H10=Article!$Q$9,0.25,IF(Article!H10=Article!$Q$10,0.25,IF(Article!H10=Article!$Q$11,0,IF(Article!H10=Article!$Q$12,0,IF(Article!H10=Article!$Q$13,0))))))","v":false},{"$f":"IF(Article!I10=Article!$S$8,0.5,IF(Article!I10=Article!$S$9,0.25,IF(Article!I10=Article!$S$10,0.25,IF(Article!I10=Article!$S$11,0.25))))","v":false},{"$f":"IF(Article!J10=Article!$P$8,0.5,IF(Article!J10=Article!$P$9,0.25,IF(Article!J10=Article!$P$10,0.25,IF(Article!J10=Article!$P$11,0))))","v":false},{"$f":"IF(Article!K10=Article!$U$13,0.2,IF(Article!K10=Article!$U$14,0.25,IF(Article!K10=Article!$U$15,0.5,IF(Article!K10=Article!$U$16,0.75,IF(Article!K10=Article!$U$17,0)))))","v":false},null,{"$f":"B3+C3+D3+E3","v":0}]
["مقاله 3",{"$f":"IF(Article!H11=Article!$Q$8,0.25,IF(Article!H11=Article!$Q$9,0.25,IF(Article!H11=Article!$Q$10,0.25,IF(Article!H11=Article!$Q$11,0,IF(Article!H11=Article!$Q$12,0,IF(Article!H11=Article!$Q$13,0))))))","v":false},{"$f":"IF(Article!I11=Article!$S$8,0.5,IF(Article!I11=Article!$S$9,0.25,IF(Article!I11=Article!$S$10,0.25,IF(Article!I11=Article!$S$11,0.25))))","v":false},{"$f":"IF(Article!J11=Article!$P$8,0.5,IF(Article!J11=Article!$P$9,0.25,IF(Article!J11=Article!$P$10,0.25,IF(Article!J11=Article!$P$11,0))))","v":false},{"$f":"IF(Article!K11=Article!$U$13,0.2,IF(Article!K11=Article!$U$14,0.25,IF(Article!K11=Article!$U$15,0.5,IF(Article!K11=Article!$U$16,0.75,IF(Article!K11=Article!$U$17,0)))))","v":false},null,0]
["مقاله 4",{"$f":"IF(Article!H12=Article!$Q$8,0.25,IF(Article!H12=Article!$Q$9,0.25,IF(Article!H12=Article!$Q$10,0.25,IF(Article!H12=Article!$Q$11,0,IF(Article!H12=Article!$Q$12,0,IF(Article!H12=Article!$Q$13,0))))))","v":false},{"$f":"IF(Article!I12=Article!$S$8,0.5,IF(Article!I12=Article!$S$9,0.25,IF(Article!I12=Article!$S$10,0.25,IF(Article!I12=Article!$S$11,0.25))))","v":false},{"$f":"IF(Article!J12=Article!$P$8,0.5,IF(Article!J12=Article!$P$9,0.25,IF(Article!J12=Article!$P$10,0.25,IF(Article!J12=Article!$P$11,0))))","v":false},{"$f":"IF(Article!K12=Article!$U$13,0.2,IF(Article!K12=Article!$U$14,0.25,IF(Article!K12=Article!$U$15,0.5,IF(Article!K12=Article!$U$16,0.75,IF(Article!K12=Article!$U$17,0)))))","v":false},null,0]
["مقاله 5",{"$f":"IF(Article!H13=Article!$Q$8,0.25,IF(Article!H13=Article!$Q$9,0.25,IF(Article!H13=Article!$Q$10,0.25,IF(Article!H13=Article!$Q$11,0,IF(Article!H13=Article!$Q$12,0,IF(Article!H13=Article!$Q$13,0))))))","v":false},{"$f":"IF(Article!I13=Article!$S$8,0.5,IF(Article!I13=Article!$S$9,0.25,IF(Article!I13=Article!$S$10,0.25,IF(Article!I13=Article!$S$11,0.25))))","v":false},{"$f":"IF(Article!J13=Article!$P$8,0.5,IF(Article!J13=Article!$P$9,0.25,IF(Article!J13=Article!$P$10,0.25,IF(Article!J13=Article!$P$11,0))))","v":false},{"$f":"IF(Article!K13=Article!$U$13,0.2,IF(Article!K13=Article!$U$14,0.25,IF(Article!K13=Article!$U$15,0.5,IF(Article!K13=Article!$U$16,0.75,IF(Article!K13=Article!$U$17,0)))))","v":false},null,0]
["مقاله 6",{"$f":"IF(Article!H14=Article!$Q$8,0.25,IF(Article!H14=Article!$Q$9,0.25,IF(Article!H14=Article!$Q$10,0.25,IF(Article!H14=Article!$Q$11,0,IF(Article!H14=Article!$Q$12,0,IF(Article!H14=Article!$Q$13,0))))))","v":false},{"$f":"IF(Article!I14=Article!$S$8,0.5,IF(Article!I14=Article!$S$9,0.25,IF(Article!I14=Article!$S$10,0.25,IF(Article!I14=Article!$S$11,0.25))))","v":false},{"$f":"IF(Article!J14=Article!$P$8,0.5,IF(Article!J14=Article!$P$9,0.25,IF(Article!J14=Article!$P$10,0.25,IF(Article!J14=Article!$P$11,0))))","v":false},{"$f":"IF(Article!K14=Article!$U$13,0.2,IF(Article!K14=Article!$U$14,0.25,IF(Article!K14=Article!$U$15,0.5,IF(Article!K14=Article!$U$16,0.75,IF(Article!K14=Article!$U$17,0)))))","v":false},null,0]
["مقاله 7",{"$f":"IF(Article!H15=Article!$Q$8,0.25,IF(Article!H15=Article!$Q$9,0.25,IF(Article!H15=Article!$Q$10,0.25,IF(Article!H15=Article!$Q$11,0,IF(Article!H15=Article!$Q$12,0,IF(Article!H15=Article!$Q$13,0))))))","v":false},{"$f":"IF(Article!I15=Article!$S$8,0.5,IF(Article!I15=Article!$S$9,0.25,IF(Article!I15=Article!$S$10,0.25,IF(Article!I15=Article!$S$11,0.25))))","v":false},{"$f":"IF(Article!J15=Article!$P$8,0.5,IF(Article!J15=Article!$P$9,0.25,IF(Article!J15=Article!$P$10,0.25,IF(Article!J15=Article!$P$11,0))))","v":false},{"$f":"IF(Article!K15=Article!$U$13,0.2,IF(Article!K15=Article!$U$14,0.25,IF(Article!K15=Article!$U$15,0.5,IF(Article!K15=Article!$U$16,0.75,IF(Article!K15=Article!$U$17,0)))))","v":false},null,0]
["مقاله 8",{"$f":"IF(Article!H16=Article!$Q$8,0.25,IF(Article!H16=Article!$Q$9,0.25,IF(Article!H16=Article!$Q$10,0.25,IF(Article!H16=Article!$Q$11,0,IF(Article!H16=Article!$Q$12,0,IF(Article!H16=Article!$Q$13,0))))))","v":false},{"$f":"IF(Article!I16=Article!$S$8,0.5,IF(Article!I16=Article!$S$9,0.25,IF(Article!I16=Article!$S$10,0.25,IF(Article!I16=Article!$S$11,0.25))))","v":false},{"$f":"IF(Article!J16=Article!$P$8,0.5,IF(Article!J16=Article!$P$9,0.25,IF(Article!J16=Article!$P$10,0.25,IF(Article!J16=Article!$P$11,0))))","v":false},{"$f":"IF(Article!K16=Article!$U$13,0.2,IF(Article!K16=Article!$U$14,0.25,IF(Article!K16=Article!$U$15,0.5,IF(Article!K16=Article!$U$16,0.75,IF(Article!K16=Article!$U$17,0)))))","v":false},null,0]
["مقاله 9",{"$f":"IF(Article!H17=Article!$Q$8,0.25,IF(Article!H17=Article!$Q$9,0.25,IF(Article!H17=Article!$Q$10,0.25,IF(Article!H17=Article!$Q$11,0,IF(Article!H17=Article!$Q$12,0,IF(Article!H17=Article!$Q$13,0))))))","v":false},{"$f":"IF(Article!I17=Article!$S$8,0.5,IF(Article!I17=Article!$S$9,0.25,IF(Article!I17=Article!$S$10,0.25,IF(Article!I17=Article!$S$11,0.25))))","v":false},{"$f":"IF(Article!J17=Article!$P$8,0.5,IF(Article!J17=Article!$P$9,0.25,IF(Article!J17=Article!$P$10,0.25,IF(Article!J17=Article!$P$11,0))))","v":false},{"$f":"IF(Article!K17=Article!$U$13,0.2,IF(Article!K17=Article!$U$14,0.25,IF(Article!K17=Article!$U$15,0.5,IF(Article!K17=Article!$U$16,0.75,IF(Article!K17=Article!$U$17,0)))))","v":false},null,0]
["مقاله 10",{"$f":"IF(Article!H18=Article!$Q$8,0.25,IF(Article!H18=Article!$Q$9,0.25,IF(Article!H18=Article!$Q$10,0.25,IF(Article!H18=Article!$Q$11,0,IF(Article!H18=Article!$Q$12,0,IF(Article!H18=Article!$Q$13,0))))))","v":false},{"$f":"IF(Article!I18=Article!$S$8,0.5,IF(Article!I18=Article!$S$9,0.25,IF(Article!I18=Article!$S$10,0.25,IF(Article!I18=Article!$S$11,0.25))))","v":false},{"$f":"IF(Article!J18=Article!$P$8,0.5,IF(Article!J18=Article!$P$9,0.25,IF(Article!J18=Article!$P$10,0.25,IF(Article!J18=Article!$P$11,0))))","v":false},{"$f":"IF(Article!K18=Article!$U$13,0.2,IF(Article!K18=Article!$U$14,0.25,IF(Article!K18=Article!$U$15,0.5,IF(Article!K18=Article!$U$16,0.75,IF(Article!K18=Article!$U$17,0)))))","v":false},null,0]
["مقاله 11",{"$f":"IF(Article!H19=Article!$Q$8,0.25,IF(Article!H19=Article!$Q$9,0.25,IF(Article!H19=Article!$Q$10,0.25,IF(Article!H19=Article!$Q$11,0,IF(Article!H19=Article!$Q$12,0,IF(Article!H19=Article!$Q$13,0))))))","v":false},{"$f":"IF(Article!I19=Article!$S$8,0.5,IF(Article!I19=Article!$S$9,0.25,IF(Article!I19=Article!$S$10,0.25,IF(Article!I19=Article!$S$11,0.25))))","v":false},{"$f":"IF(Article!J19=Article!$P$8,0.5,IF(Article!J19=Article!$P$9,0.25,IF(Article!J19=Article!$P$10,0.25,IF(Article!J19=Article!$P$11,0))))","v":false},{"$f":"IF(Article!K19=Article!$U$13,0.2,IF(Article!K19=Article!$U$14,0.25,IF(Article!K19=Article!$U$15,0.5,IF(Article!K19=Article!$U$16,0.75,IF(Article!K19=Article!$U$17,0)))))","v":false},null,0]
["مقاله 12",{"$f":"IF(Article!H20=Article!$Q$8,0.25,IF(Article!H20=Article!$Q$9,0.25,IF(Article!H20=Article!$Q$10,0.25,IF(Article!H20=Article!$Q$11,0,IF(Article!H20=Article!$Q$12,0,IF(Article!H20=Article!$Q$13,0))))))","v":false},{"$f":"IF(Article!I20=Article!$S$8,0.5,IF(Article!I20=Article!$S$9,0.25,IF(Article!I20=Article!$S$10,0.25,IF(Article!I20=Article!$S$11,0.25))))","v":false},{"$f":"IF(Article!J20=Article!$P$8,0.5,IF(Article!J20=Article!$P$9,0.25,IF(Article!J20=Article!$P$10,0.25,IF(Article!J20=Article!$P$11,0))))","v":false},{"$f":"IF(Article!K20=Article!$U$13,0.2,IF(Article!K20=Article!$U$14,0.25,IF(Article!K20=Article!$U$15,0.5,IF(Article!K20=Article!$U$16,0.75,IF(Article!K20=Article!$U$17,0)))))","v":false},null,0]
["مقاله 13",{"$f":"IF(Article!H21=Article!$Q$8,0.25,IF(Article!H21=Article!$Q$9,0.25,IF(Article!H21=Article!$Q$10,0.25,IF(Article!H21=Article!$Q$11,0,IF(Article!H21=Article!$Q$12,0,IF(Article!H21=Article!$Q$13,0))))))","v":false},{"$f":"IF(Article!I21=Article!$S$8,0.5,IF(Article!I21=Article!$S$9,0.25,IF(Article!I21=Article!$S$10,0.25,IF(Article!I21=Article!$S$11,0.25))))","v":false},{"$f":"IF(Article!J21=Article!$P$8,0.5,IF(Article!J21=Article!$P$9,0.25,IF(Article!J21=Article!$P$10,0.25,IF(Article!J21=Article!$P$11,0))))","v":false},{"$f":"IF(Article!K21=Article!$U$13,0.2,IF(Article!K21=Article!$U$14,0.25,IF(Article!K21=Article!$U$15,0.5,IF(Article!K21=Article!$U$16,0.75,IF(Article!K21=Article!$U$17,0)))))","v":false},null,0]
["مقاله 14",{"$f":"IF(Article!H22=Article!$Q$8,0.25,IF(Article!H22=Article!$Q$9,0.25,IF(Article!H22=Article!$Q$10,0.25,IF(Article!H22=Article!$Q$11,0,IF(Article!H22=Article!$Q$12,0,IF(Article!H22=Article!$Q$13,0))))))","v":false},{"$f":"IF(Article!I22=Article!$S$8,0.5,IF(Article!I22=Article!$S$9,0.25,IF(Article!I22=Article!$S$10,0.25,IF(Article!I22=Article!$S$11,0.25))))","v":false},{"$f":"IF(Article!J22=Article!$P$8,0.5,IF(Article!J22=Article!$P$9,0.25,IF(Article!J22=Article!$P$10,0.25,IF(Article!J22=Article!$P$11,0))))","v":false},{"$f":"IF(Article!K22=Article!$U$13,0.2,IF(Article!K22=Article!$U$14,0.25,IF(Article!K22=Article!$U$15,0.5,IF(Article!K22=Article!$U$16,0.75,IF(Article!K22=Article!$U$17,0)))))","v":false},null,0]
["مقاله 15",{"$f":"IF(Article!H23=Article!$Q$8,0.25,IF(Article!H23=Article!$Q$9,0.25,IF(Article!H23=Article!$Q$10,0.25,IF(Article!H23=Article!$Q$11,0,IF(Article!H23=Article!$Q$12,0,IF(Article!H23=Article!$Q$13,0))))))","v":false},{"$f":"IF(Article!I23=Article!$S$8,0.5,IF(Article!I23=Article!$S$9,0.25,IF(Article!I23=Article!$S$10,0.25,IF(Article!I23=Article!$S$11,0.25))))","v":false},{"$f":"IF(Article!J23=Article!$P$8,0.5,IF(Article!J23=Article!$P$9,0.25,IF(Article!J23=Article!$P$10,0.25,IF(Article!J23=Article!$P$11,0))))","v":false},{"$f":"IF(Article!K23=Article!$U$13,0.2,IF(Article!K23=Article!$U$14,0.25,IF(Article!K23=Article!$U$15,0.5,IF(Article!K23=Article!$U$16,0.75,IF(Article!K23=Article!$U$17,0)))))","v":false},null,0]
["مقاله 16",{"$f":"IF(Article!H24=Article!$Q$8,0.25,IF(Article!H24=Article!$Q$9,0.25,IF(Article!H24=Article!$Q$10,0.25,IF(Article!H24=Article!$Q$11,0,IF(Article!H24=Article!$Q$12,0,IF(Article!H24=Article!$Q$13,0))))))","v":false},{"$f":"IF(Article!I24=Article!$S$8,0.5,IF(Article!I24=Article!$S$9,0.25,IF(Article!I24=Article!$S$10,0.25,IF(Article!I24=Article!$S$11,0.25))))","v":false},{"$f":"IF(Article!J24=Article!$P$8,0.5,IF(Article!J24=Article!$P$9,0.25,IF(Article!J24=Article!$P$10,0.25,IF(Article!J24=Article!$P$11,0))))","v":false},{"$f":"IF(Article!K24=Article!$U$13,0.2,IF(Article!K24=Article!$U$14,0.25,IF(Article!K24=Article!$U$15,0.5,IF(Article!K24=Article!$U$16,0.75,IF(Article!K24=Article!$U$17,0)))))","v":false},null,0]
["مقاله 17",{"$f":"IF(Article!H25=Article!$Q$8,0.25,IF(Article!H25=Article!$Q$9,0.25,IF(Article!H25=Article!$Q$10,0.25,IF(Article!H25=Article!$Q$11,0,IF(Article!H25=Article!$Q$12,0,IF(Article!H25=Article!$Q$13,0))))))","v":false},{"$f":"IF(Article!I25=Article!$S$8,0.5,IF(Article!I25=Article!$S$9,0.25,IF(Article!I25=Article!$S$10,0.25,IF(Article!I25=Article!$S$11,0.25))))","v":false},{"$f":"IF(Article!J25=Article!$P$8,0.5,IF(Article!J25=Article!$P$9,0.25,IF(Article!J25=Article!$P$10,0.25,IF(Article!J25=Article!$P$11,0))))","v":false},{"$f":"IF(Article!K25=Article!$U$13,0.2,IF(Article!K25=Article!$U$14,0.25,IF(Article!K25=Article!$U$15,0.5,IF(Article!K25=Article!$U$16,0.75,IF(Article!K25=Article!$U$17,0)))))","v":false},null,0]
["مقاله 18",{"$f":"IF(Article!H26=Article!$Q$8,0.25,IF(Article!H26=Article!$Q$9,0.25,IF(Article!H26=Article!$Q$10,0.25,IF(Article!H26=Article!$Q$11,0,IF(Article!H26=Article!$Q$12,0,IF(Article!H26=Article!$Q$13,0))))))","v":false},{"$f":"IF(Article!I26=Article!$S$8,0.5,IF(Article!I26=Article!$S$9,0.25,IF(Article!I26=Article!$S$10,0.25,IF(Article!I26=Article!$S$11,0.25))))","v":false},{"$f":"IF(Article!J26=Article!$P$8,0.5,IF(Article!J26=Article!$P$9,0.25,IF(Article!J26=Article!$P$10,0.25,IF(Article!J26=Article!$P$11,0))))","v":false},{"$f":"IF(Article!K26=Article!$U$13,0.2,IF(Article!K26=Article!$U$14,0.25,IF(Article!K26=Article!$U$15,0.5,IF(Article!K26=Article!$U$16,0.75,IF(Article!K26=Article!$U$17,0)))))","v":false},null,0]
["مقاله 19",{"$f":"IF(Article!H27=Article!$Q$8,0.25,IF(Article!H27=Article!$Q$9,0.25,IF(Article!H27=Article!$Q$10,0.25,IF(Article!H27=Article!$Q$11,0,IF(Article!H27=Article!$Q$12,0,IF(Article!H27=Article!$Q$13,0))))))","v":false},{"$f":"IF(Article!I27=Article!$S$8,0.5,IF(Article!I27=Article!$S$9,0.25,IF(Article!I27=Article!$S$10,0.25,IF(Article!I27=Article!$S$11,0.25))))","v":false},{"$f":"IF(Article!J27=Article!$P$8,0.5,IF(Article!J27=Article!$P$9,0.25,IF(Article!J27=Article!$P$10,0.25,IF(Article!J27=Article!$P$11,0))))","v":false},{"$f":"IF(Article!K27=Article!$U$13,0.2,IF(Article!K27=Article!$U$14,0.25,IF(Article!K27=Article!$U$15,0.5,IF(Article!K27=Article!$U$16,0.75,IF(Article!K27=Article!$U$17,0)))))","v":false},null,0]
["مقاله 20",{"$f":"IF(Article!H28=Article!$Q$8,0.25,IF(Article!H28=Article!$Q$9,0.25,IF(Article!H28=Article!$Q$10,0.25,IF(Article!H28=Article!$Q$11,0,IF(Article!H28=Article!$Q$12,0,IF(Article!H28=Article!$Q$13,0))))))","v":false},{"$f":"IF(Article!I28=Article!$S$8,0.5,IF(Article!I28=Article!$S$9,0.25,IF(Article!I28=Article!$S$10,0.25,IF(Article!I28=Article!$S$11,0.25))))","v":false},{"$f":"IF(Article!J28=Article!$P$8,0.5,IF(Article!J28=Article!$P$9,0.25,IF(Article!J28=Article!$P$10,0.25,IF(Article!J28=Article!$P$11,0))))","v":false},{"$f":"IF(Article!K28=Article!$U$13,0.2,IF(Article!K28=Article!$U$14,0.25,IF(Article!K28=Article!$U$15,0.5,IF(Article!K28=Article!$U$16,0.75,IF(Article!K28=Article!$U$17,0)))))","v":false},null,0]
["مقاله 21",{"$f":"IF(Article!H29=Article!$Q$8,0.25,IF(Article!H29=Article!$Q$9,0.25,IF(Article!H29=Article!$Q$10,0.25,IF(Article!H29=Article!$Q$11,0,IF(Article!H29=Article!$Q$12,0,IF(Article!H29=Article!$Q$13,0))))))","v":false},{"$f":"IF(Article!I29=Article!$S$8,0.5,IF(Article!I29=Article!$S$9,0.25,IF(Article!I29=Article!$S$10,0.25,IF(Article!I29=Article!$S$11,0.25))))","v":false},{"$f":"IF(Article!J29=Article!$P$8,0.5,IF(Article!J29=Article!$P$9,0.25,IF(Article!J29=Article!$P$10,0.25,IF(Article!J29=Article!$P$11,0))))","v":false},{"$f":"IF(Article!K29=Article!$U$13,0.2,IF(Article!K29=Article!$U$14,0.25,IF(Article!K29=Article!$U$15,0.5,IF(Article!K29=Article!$U$16,0.75,IF(Article!K29=Article!$U$17,0)))))","v":false},null,0]
["مقاله 22",{"$f":"IF(Article!H30=Article!$Q$8,0.25,IF(Article!H30=Article!$Q$9,0.25,IF(Article!H30=Article!$Q$10,0.25,IF(Article!H30=Article!$Q$11,0,IF(Article!H30=Article!$Q$12,0,IF(Article!H30=Article!$Q$13,0))))))","v":false},{"$f":"IF(Article!I30=Article!$S$8,0.5,IF(Article!I30=Article!$S$9,0.25,IF(Article!I30=Article!$S$10,0.25,IF(Article!I30=Article!$S$11,0.25))))","v":false},{"$f":"IF(Article!J30=Article!$P$8,0.5,IF(Article!J30=Article!$P$9,0.25,IF(Article!J30=Article!$P$10,0.25,IF(Article!J30=Article!$P$11,0))))","v":false},{"$f":"IF(Article!K30=Article!$U$13,0.2,IF(Article!K30=Article!$U$14,0.25,IF(Article!K30=Article!$U$15,0.5,IF(Article!K30=Article!$U$16,0.75,IF(Article!K30=Article!$U$17,0)))))","v":false},null,0]
["مقاله 23",{"$f":"IF(Article!H31=Article!$Q$8,0.25,IF(Article!H31=Article!$Q$9,0.25,IF(Article!H31=Article!$Q$10,0.25,IF(Article!H31=Article!$Q$11,0,IF(Article!H31=Article!$Q$12,0,IF(Article!H31=Article!$Q$13,0))))))","v":false},{"$f":"IF(Article!I31=Article!$S$8,0.5,IF(Article!I31=Article!$S$9,0.25,IF(Article!I31=Article!$S$10,0.25,IF(Article!I31=Article!$S$11,0.25))))","v":false},{"$f":"IF(Article!J31=Article!$P$8,0.5,IF(Article!J31=Article!$P$9,0.25,IF(Article!J31=Article!$P$10,0.25,IF(Article!J31=Article!$P$11,0))))","v":false},{"$f":"IF(Article!K31=Article!$U$13,0.2,IF(Article!K31=Article!$U$14,0.25,IF(Article!K31=Article!$U$15,0.5,IF(Article!K31=Article!$U$16,0.75,IF(Article!K31=Article!$U$17,0)))))","v":false},null,0]
["مقاله 24",{"$f":"IF(Article!H32=Article!$Q$8,0.25,IF(Article!H32=Article!$Q$9,0.25,IF(Article!H32=Article!$Q$10,0.25,IF(Article!H32=Article!$Q$11,0,IF(Article!H32=Article!$Q$12,0,IF(Article!H32=Article!$Q$13,0))))))","v":false},{"$f":"IF(Article!I32=Article!$S$8,0.5,IF(Article!I32=Article!$S$9,0.25,IF(Article!I32=Article!$S$10,0.25,IF(Article!I32=Article!$S$11,0.25))))","v":false},{"$f":"IF(Article!J32=Article!$P$8,0.5,IF(Article!J32=Article!$P$9,0.25,IF(Article!J32=Article!$P$10,0.25,IF(Article!J32=Article!$P$11,0))))","v":false},{"$f":"IF(Article!K32=Article!$U$13,0.2,IF(Article!K32=Article!$U$14,0.25,IF(Article!K32=Article!$U$15,0.5,IF(Article!K32=Article!$U$16,0.75,IF(Article!K32=Article!$U$17,0)))))","v":false},null,0]
["مقاله 25",{"$f":"IF(Article!H33=Article!$Q$8,0.25,IF(Article!H33=Article!$Q$9,0.25,IF(Article!H33=Article!$Q$10,0.25,IF(Article!H33=Article!$Q$11,0,IF(Article!H33=Article!$Q$12,0,IF(Article!H33=Article!$Q$13,0))))))","v":false},{"$f":"IF(Article!I33=Article!$S$8,0.5,IF(Article!I33=Article!$S$9,0.25,IF(Article!I33=Article!$S$10,0.25,IF(Article!I33=Article!$S$11,0.25))))","v":false},{"$f":"IF(Article!J33=Article!$P$8,0.5,IF(Article!J33=Article!$P$9,0.25,IF(Article!J33=Article!$P$10,0.25,IF(Article!J33=Article!$P$11,0))))","v":false},{"$f":"IF(Article!K33=Article!$U$13,0.2,IF(Article!K33=Article!$U$14,0.25,IF(Article!K33=Article!$U$15,0.5,IF(Article!K33=Article!$U$16,0.75,IF(Article!K33=Article!$U$17,0)))))","v":false},null,0]
["مقاله 26",{"$f":"IF(Article!H34=Article!$Q$8,0.25,IF(Article!H34=Article!$Q$9,0.25,IF(Article!H34=Article!$Q$10,0.25,IF(Article!H34=Article!$Q$11,0,IF(Article!H34=Article!$Q$12,0,IF(Article!H34=Article!$Q$13,0))))))","v":false},{"$f":"IF(Article!I34=Article!$S$8,0.5,IF(Article!I34=Article!$S$9,0.25,IF(Article!I34=Article!$S$10,0.25,IF(Article!I34=Article!$S$11,0.25))))","v":false},{"$f":"IF(Article!J34=Article!$P$8,0.5,IF(Article!J34=Article!$P$9,0.25,IF(Article!J34=Article!$P$10,0.25,IF(Article!J34=Article!$P$11,0))))","v":false},{"$f":"IF(Article!K34=Article!$U$13,0.2,IF(Article!K34=Article!$U$14,0.25,IF(Article!K34=Article!$U$15,0.5,IF(Article!K34=Article!$U$16,0.75,IF(Article!K34=Article!$U$17,0)))))","v":false},null,0]
["مقاله 27",{"$f":"IF(Article!H35=Article!$Q$8,0.25,IF(Article!H35=Article!$Q$9,0.25,IF(Article!H35=Article!$Q$10,0.25,IF(Article!H35=Article!$Q$11,0,IF(Article!H35=Article!$Q$12,0,IF(Article!H35=Article!$Q$13,0))))))","v":false},{"$f":"IF(Article!I35=Article!$S$8,0.5,IF(Article!I35=Article!$S$9,0.25,IF(Article!I35=Article!$S$10,0.25,IF(Article!I35=Article!$S$11,0.25))))","v":false},{"$f":"IF(Article!J35=Article!$P$8,0.5,IF(Article!J35=Article!$P$9,0.25,IF(Article!J35=Article!$P$10,0.25,IF(Article!J35=Article!$P$11,0))))","v":false},{"$f":"IF(Article!K35=Article!$U$13,0.2,IF(Article!K35=Article!$U$14,0.25,IF(Article!K35=Article!$U$15,0.5,IF(Article!K35=Article!$U$16,0.75,IF(Article!K35=Article!$U$17,0)))))","v":false},null,0]
["مقاله 28",{"$f":"IF(Article!H36=Article!$Q$8,0.25,IF(Article!H36=Article!$Q$9,0.25,IF(Article!H36=Article!$Q$10,0.25,IF(Article!H36=Article!$Q$11,0,IF(Article!H36=Article!$Q$12,0,IF(Article!H36=Article!$Q$13,0))))))","v":false},{"$f":"IF(Article!I36=Article!$S$8,0.5,IF(Article!I36=Article!$S$9,0.25,IF(Article!I36=Article!$S$10,0.25,IF(Article!I36=Article!$S$11,0.25))))","v":false},{"$f":"IF(Article!J36=Article!$P$8,0.5,IF(Article!J36=Article!$P$9,0.25,IF(Article!J36=Article!$P$10,0.25,IF(Article!J36=Article!$P$11,0))))","v":false},{"$f":"IF(Article!K36=Article!$U$13,0.2,IF(Article!K36=Article!$U$14,0.25,IF(Article!K36=Article!$U$15,0.5,IF(Article!K36=Article!$U$16,0.75,IF(Article!K36=Article!$U$17,0)))))","v":false},null,0]
["مقاله 29",{"$f":"IF(Article!H37=Article!$Q$8,0.25,IF(Article!H37=Article!$Q$9,0.25,IF(Article!H37=Article!$Q$10,0.25,IF(Article!H37=Article!$Q$11,0,IF(Article!H37=Article!$Q$12,0,IF(Article!H37=Article!$Q$13,0))))))","v":false},{"$f":"IF(Article!I37=Article!$S$8,0.5,IF(Article!I37=Article!$S$9,0.25,IF(Article!I37=Article!$S$10,0.25,IF(Article!I37=Article!$S$11,0.25))))","v":false},{"$f":"IF(Article!J37=Article!$P$8,0.5,IF(Article!J37=Article!$P$9,0.25,IF(Article!J37=Article!$P$10,0.25,IF(Article!J37=Article!$P$11,0))))","v":false},{"$f":"IF(Article!K37=Article!$U$13,0.2,IF(Article!K37=Article!$U$14,0.25,IF(Article!K37=Article!$U$15,0.5,IF(Article!K37=Article!$U$16,0.75,IF(Article!K37=Article!$U$17,0)))))","v":false},null,0]
["مقاله 30",{"$f":"IF(Article!H38=Article!$Q$8,0.25,IF(Article!H38=Article!$Q$9,0.25,IF(Article!H38=Article!$Q$10,0.25,IF(Article!H38=Article!$Q$11,0,IF(Article!H38=Article!$Q$12,0,IF(Article!H38=Article!$Q$13,0))))))","v":false},{"$f":"IF(Article!I38=Article!$S$8,0.5,IF(Article!I38=Article!$S$9,0.25,IF(Article!I38=Article!$S$10,0.25,IF(Article!I38=Article!$S$11,0.25))))","v":false},{"$f":"IF(Article!J38=Article!$P$8,0.5,IF(Article!J38=Article!$P$9,0.25,IF(Article!J38=Article!$P$10,0.25,IF(Article!J38=Article!$P$11,0))))","v":false},{"$f":"IF(Article!K38=Article!$U$13,0.2,IF(Article!K38=Article!$U$14,0.25,IF(Article!K38=Article!$U$15,0.5,IF(Article!K38=Article!$U$16,0.75,IF(Article!K38=Article!$U$17,0)))))","v":false},null,0]
["مقاله 31",{"$f":"IF(Article!H39=Article!$Q$8,0.25,IF(Article!H39=Article!$Q$9,0.25,IF(Article!H39=Article!$Q$10,0.25,IF(Article!H39=Article!$Q$11,0,IF(Article!H39=Article!$Q$12,0,IF(Article!H39=Article!$Q$13,0))))))","v":false},{"$f":"IF(Article!I39=Article!$S$8,0.5,IF(Article!I39=Article!$S$9,0.25,IF(Article!I39=Article!$S$10,0.25,IF(Article!I39=Article!$S$11,0.25))))","v":false},{"$f":"IF(Article!J39=Article!$P$8,0.5,IF(Article!J39=Article!$P$9,0.25,IF(Article!J39=Article!$P$10,0.25,IF(Article!J39=Article!$P$11,0))))","v":false},{"$f":"IF(Article!K39=Article!$U$13,0.2,IF(Article!K39=Article!$U$14,0.25,IF(Article!K39=Article!$U$15,0.5,IF(Article!K39=Article!$U$16,0.75,IF(Article!K39=Article!$U$17,0)))))","v":false},null,0]
["مقاله 32",{"$f":"IF(Article!H40=Article!$Q$8,0.25,IF(Article!H40=Article!$Q$9,0.25,IF(Article!H40=Article!$Q$10,0.25,IF(Article!H40=Article!$Q$11,0,IF(Article!H40=Article!$Q$12,0,IF(Article!H40=Article!$Q$13,0))))))","v":false},{"$f":"IF(Article!I40=Article!$S$8,0.5,IF(Article!I40=Article!$S$9,0.25,IF(Article!I40=Article!$S$10,0.25,IF(Article!I40=Article!$S$11,0.25))))","v":false},{"$f":"IF(Article!J40=Article!$P$8,0.5,IF(Article!J40=Article!$P$9,0.25,IF(Article!J40=Article!$P$10,0.25,IF(Article!J40=Article!$P$11,0))))","v":false},{"$f":"IF(Article!K40=Article!$U$13,0.2,IF(Article!K40=Article!$U$14,0.25,IF(Article!K40=Article!$U$15,0.5,IF(Article!K40=Article!$U$16,0.75,IF(Article!K40=Article!$U$17,0)))))","v":false},null,0]
["مقاله 33",{"$f":"IF(Article!H41=Article!$Q$8,0.25,IF(Article!H41=Article!$Q$9,0.25,IF(Article!H41=Article!$Q$10,0.25,IF(Article!H41=Article!$Q$11,0,IF(Article!H41=Article!$Q$12,0,IF(Article!H41=Article!$Q$13,0))))))","v":false},{"$f":"IF(Article!I41=Article!$S$8,0.5,IF(Article!I41=Article!$S$9,0.25,IF(Article!I41=Article!$S$10,0.25,IF(Article!I41=Article!$S$11,0.25))))","v":false},{"$f":"IF(Article!J41=Article!$P$8,0.5,IF(Article!J41=Article!$P$9,0.25,IF(Article!J41=Article!$P$10,0.25,IF(Article!J41=Article!$P$11,0))))","v":false},{"$f":"IF(Article!K41=Article!$U$13,0.2,IF(Article!K41=Article!$U$14,0.25,IF(Article!K41=Article!$U$15,0.5,IF(Article!K41=Article!$U$16,0.75,IF(Article!K41=Article!$U$17,0)))))","v":false},null,0]
["مقاله 34",{"$f":"IF(Article!H42=Article!$Q$8,0.25,IF(Article!H42=Article!$Q$9,0.25,IF(Article!H42=Article!$Q$10,0.25,IF(Article!H42=Article!$Q$11,0,IF(Article!H42=Article!$Q$12,0,IF(Article!H42=Article!$Q$13,0))))))","v":false},{"$f":"IF(Article!I42=Article!$S$8,0.5,IF(Article!I42=Article!$S$9,0.25,IF(Article!I42=Article!$S$10,0.25,IF(Article!I42=Article!$S$11,0.25))))","v":false},{"$f":"IF(Article!J42=Article!$P$8,0.5,IF(Article!J42=Article!$P$9,0.25,IF(Article!J42=Article!$P$10,0.25,IF(Article!J42=Article!$P$11,0))))","v":false},{"$f":"IF(Article!K42=Article!$U$13,0.2,IF(Article!K42=Article!$U$14,0.25,IF(Article!K42=Article!$U$15,0.5,IF(Article!K42=Article!$U$16,0.75,IF(Article!K42=Article!$U$17,0)))))","v":false},null,0]
["مقاله 35",{"$f":"IF(Article!H43=Article!$Q$8,0.25,IF(Article!H43=Article!$Q$9,0.25,IF(Article!H43=Article!$Q$10,0.25,IF(Article!H43=Article!$Q$11,0,IF(Article!H43=Article!$Q$12,0,IF(Article!H43=Article!$Q$13,0))))))","v":false},{"$f":"IF(Article!I43=Article!$S$8,0.5,IF(Article!I43=Article!$S$9,0.25,IF(Article!I43=Article!$S$10,0.25,IF(Article!I43=Article!$S$11,0.25))))","v":false},{"$f":"IF(Article!J43=Article!$P$8,0.5,IF(Article!J43=Article!$P$9,0.25,IF(Article!J43=Article!$P$10,0.25,IF(Article!J43=Article!$P$11,0))))","v":false},{"$f":"IF(Article!K43=Article!$U$13,0.2,IF(Article!K43=Article!$U$14,0.25,IF(Article!K43=Article!$U$15,0.5,IF(Article!K43=Article!$U$16,0.75,IF(Article!K43=Article!$U$17,0)))))","v":false},null,0]
["مقاله 36",{"$f":"IF(Article!H44=Article!$Q$8,0.25,IF(Article!H44=Article!$Q$9,0.25,IF(Article!H44=Article!$Q$10,0.25,IF(Article!H44=Article!$Q$11,0,IF(Article!H44=Article!$Q$12,0,IF(Article!H44=Article!$Q$13,0))))))","v":false},{"$f":"IF(Article!I44=Article!$S$8,0.5,IF(Article!I44=Article!$S$9,0.25,IF(Article!I44=Article!$S$10,0.25,IF(Article!I44=Article!$S$11,0.25))))","v":false},{"$f":"IF(Article!J44=Article!$P$8,0.5,IF(Article!J44=Article!$P$9,0.25,IF(Article!J44=Article!$P$10,0.25,IF(Article!J44=Article!$P$11,0))))","v":false},{"$f":"IF(Article!K44=Article!$U$13,0.2,IF(Article!K44=Article!$U$14,0.25,IF(Article!K44=Article!$U$15,0.5,IF(Article!K44=Article!$U$16,0.75,IF(Article!K44=Article!$U$17,0)))))","v":false},null,0]
["مقاله 37",{"$f":"IF(Article!H45=Article!$Q$8,0.25,IF(Article!H45=Article!$Q$9,0.25,IF(Article!H45=Article!$Q$10,0.25,IF(Article!H45=Article!$Q$11,0,IF(Article!H45=Article!$Q$12,0,IF(Article!H45=Article!$Q$13,0))))))","v":false},{"$f":"IF(Article!I45=Article!$S$8,0.5,IF(Article!I45=Article!$S$9,0.25,IF(Article!I45=Article!$S$10,0.25,IF(Article!I45=Article!$S$11,0.25))))","v":false},{"$f":"IF(Article!J45=Article!$P$8,0.5,IF(Article!J45=Article!$P$9,0.25,IF(Article!J45=Article!$P$10,0.25,IF(Article!J45=Article!$P$11,0))))","v":false},{"$f":"IF(Article!K45=Article!$U$13,0.2,IF(Article!K45=Article!$U$14,0.25,IF(Article!K45=Article!$U$15,0.5,IF(Article!K45=Article!$U$16,0.75,IF(Article!K45=Article!$U$17,0)))))","v":false},null,0]
["مقاله 38",{"$f":"IF(Article!H46=Article!$Q$8,0.25,IF(Article!H46=Article!$Q$9,0.25,IF(Article!H46=Article!$Q$10,0.25,IF(Article!H46=Article!$Q$11,0,IF(Article!H46=Article!$Q$12,0,IF(Article!H46=Article!$Q$13,0))))))","v":false},{"$f":"IF(Article!I46=Article!$S$8,0.5,IF(Article!I46=Article!$S$9,0.25,IF(Article!I46=Article!$S$10,0.25,IF(Article!I46=Article!$S$11,0.25))))","v":false},{"$f":"IF(Article!J46=Article!$P$8,0.5,IF(Article!J46=Article!$P$9,0.25,IF(Article!J46=Article!$P$10,0.25,IF(Article!J46=Article!$P$11,0))))","v":false},{"$f":"IF(Article!K46=Article!$U$13,0.2,IF(Article!K46=Article!$U$14,0.25,IF(Article!K46=Article!$U$15,0.5,IF(Article!K46=Article!$U$16,0.75,IF(Article!K46=Article!$U$17,0)))))","v":false},null,0]
["مقاله 39",{"$f":"IF(Article!H47=Article!$Q$8,0.25,IF(Article!H47=Article!$Q$9,0.25,IF(Article!H47=Article!$Q$10,0.25,IF(Article!H47=Article!$Q$11,0,IF(Article!H47=Article!$Q$12,0,IF(Article!H47=Article!$Q$13,0))))))","v":false},{"$f":"IF(Article!I47=Article!$S$8,0.5,IF(Article!I47=Article!$S$9,0.25,IF(Article!I47=Article!$S$10,0.25,IF(Article!I47=Article!$S$11,0.25))))","v":false},{"$f":"IF(Article!J47=Article!$P$8,0.5,IF(Article!J47=Article!$P$9,0.25,IF(Article!J47=Article!$P$10,0.25,IF(Article!J47=Article!$P$11,0))))","v":false},{"$f":"IF(Article!K47=Article!$U$13,0.2,IF(Article!K47=Article!$U$14,0.25,IF(Article!K47=Article!$U$15,0.5,IF(Article!K47=Article!$U$16,0.75,IF(Article!K47=Article!$U$17,0)))))","v":false},null,0]
["مقاله 40",{"$f":"IF(Article!H48=Article!$Q$8,0.25,IF(Article!H48=Article!$Q$9,0.25,IF(Article!H48=Article!$Q$10,0.25,IF(Article!H48=Article!$Q$11,0,IF(Article!H48=Article!$Q$12,0,IF(Article!H48=Article!$Q$13,0))))))","v":false},{"$f":"IF(Article!I48=Article!$S$8,0.5,IF(Article!I48=Article!$S$9,0.25,IF(Article!I48=Article!$S$10,0.25,IF(Article!I48=Article!$S$11,0.25))))","v":false},{"$f":"IF(Article!J48=Article!$P$8,0.5,IF(Article!J48=Article!$P$9,0.25,IF(Article!J48=Article!$P$10,0.25,IF(Article!J48=Article!$P$11,0))))","v":false},{"$f":"IF(Article!K48=Article!$U$13,0.2,IF(Article!K48=Article!$U$14,0.25,IF(Article!K48=Article!$U$15,0.5,IF(Article!K48=Article!$U$16,0.75,IF(Article!K48=Article!$U$17,0)))))","v":false},null,0]
["مقاله 41",{"$f":"IF(Article!H49=Article!$Q$8,0.25,IF(Article!H49=Article!$Q$9,0.25,IF(Article!H49=Article!$Q$10,0.25,IF(Article!H49=Article!$Q$11,0,IF(Article!H49=Article!$Q$12,0,IF(Article!H49=Article!$Q$13,0))))))","v":false},{"$f":"IF(Article!I49=Article!$S$8,0.5,IF(Article!I49=Article!$S$9,0.25,IF(Article!I49=Article!$S$10,0.25,IF(Article!I49=Article!$S$11,0.25))))","v":false},{"$f":"IF(Article!J49=Article!$P$8,0.5,IF(Article!J49=Article!$P$9,0.25,IF(Article!J49=Article!$P$10,0.25,IF(Article!J49=Article!$P$11,0))))","v":false},{"$f":"IF(Article!K49=Article!$U$13,0.2,IF(Article!K49=Article!$U$14,0.25,IF(Article!K49=Article!$U$15,0.5,IF(Article!K49=Article!$U$16,0.75,IF(Article!K49=Article!$U$17,0)))))","v":false},null,0]
["مقاله 42",{"$f":"IF(Article!H50=Article!$Q$8,0.25,IF(Article!H50=Article!$Q$9,0.25,IF(Article!H50=Article!$Q$10,0.25,IF(Article!H50=Article!$Q$11,0,IF(Article!H50=Article!$Q$12,0,IF(Article!H50=Article!$Q$13,0))))))","v":false},{"$f":"IF(Article!I50=Article!$S$8,0.5,IF(Article!I50=Article!$S$9,0.25,IF(Article!I50=Article!$S$10,0.25,IF(Article!I50=Article!$S$11,0.25))))","v":false},{"$f":"IF(Article!J50=Article!$P$8,0.5,IF(Article!J50=Article!$P$9,0.25,IF(Article!J50=Article!$P$10,0.25,IF(Article!J50=Article!$P$11,0))))","v":false},{"$f":"IF(Article!K50=Article!$U$13,0.2,IF(Article!K50=Article!$U$14,0.25,IF(Article!K50=Article!$U$15,0.5,IF(Article!K50=Article!$U$16,0.75,IF(Article!K50=Article!$U$17,0)))))","v":false},null,0]
["مقاله 43",{"$f":"IF(Article!H51=Article!$Q$8,0.25,IF(Article!H51=Article!$Q$9,0.25,IF(Article!H51=Article!$Q$10,0.25,IF(Article!H51=Article!$Q$11,0,IF(Article!H51=Article!$Q$12,0,IF(Article!H51=Article!$Q$13,0))))))","v":false},{"$f":"IF(Article!I51=Article!$S$8,0.5,IF(Article!I51=Article!$S$9,0.25,IF(Article!I51=Article!$S$10,0.25,IF(Article!I51=Article!$S$11,0.25))))","v":false},{"$f":"IF(Article!J51=Article!$P$8,0.5,IF(Article!J51=Article!$P$9,0.25,IF(Article!J51=Article!$P$10,0.25,IF(Article!J51=Article!$P$11,0))))","v":false},{"$f":"IF(Article!K51=Article!$U$13,0.2,IF(Article!K51=Article!$U$14,0.25,IF(Article!K51=Article!$U$15,0.5,IF(Article!K51=Article!$U$16,0.75,IF(Article!K51=Article!$U$17,0)))))","v":false},null,0]
["مقاله 44",{"$f":"IF(Article!H52=Article!$Q$8,0.25,IF(Article!H52=Article!$Q$9,0.25,IF(Article!H52=Article!$Q$10,0.25,IF(Article!H52=Article!$Q$11,0,IF(Article!H52=Article!$Q$12,0,IF(Article!H52=Article!$Q$13,0))))))","v":false},{"$f":"IF(Article!I52=Article!$S$8,0.5,IF(Article!I52=Article!$S$9,0.25,IF(Article!I52=Article!$S$10,0.25,IF(Article!I52=Article!$S$11,0.25))))","v":false},{"$f":"IF(Article!J52=Article!$P$8,0.5,IF(Article!J52=Article!$P$9,0.25,IF(Article!J52=Article!$P$10,0.25,IF(Article!J52=Article!$P$11,0))))","v":false},{"$f":"IF(Article!K52=Article!$U$13,0.2,IF(Article!K52=Article!$U$14,0.25,IF(Article!K52=Article!$U$15,0.5,IF(Article!K52=Article!$U$16,0.75,IF(Article!K52=Article!$U$17,0)))))","v":false},null,0]
["مقاله 45",{"$f":"IF(Article!H53=Article!$Q$8,0.25,IF(Article!H53=Article!$Q$9,0.25,IF(Article!H53=Article!$Q$10,0.25,IF(Article!H53=Article!$Q$11,0,IF(Article!H53=Article!$Q$12,0,IF(Article!H53=Article!$Q$13,0))))))","v":false},{"$f":"IF(Article!I53=Article!$S$8,0.5,IF(Article!I53=Article!$S$9,0.25,IF(Article!I53=Article!$S$10,0.25,IF(Article!I53=Article!$S$11,0.25))))","v":false},{"$f":"IF(Article!J53=Article!$P$8,0.5,IF(Article!J53=Article!$P$9,0.25,IF(Article!J53=Article!$P$10,0.25,IF(Article!J53=Article!$P$11,0))))","v":false},{"$f":"IF(Article!K53=Article!$U$13,0.2,IF(Article!K53=Article!$U$14,0.25,IF(Article!K53=Article!$U$15,0.5,IF(Article!K53=Article!$U$16,0.75,IF(Article!K53=Article!$U$17,0)))))","v":false},null,0]
["مقاله 46",{"$f":"IF(Article!H54=Article!$Q$8,0.25,IF(Article!H54=Article!$Q$9,0.25,IF(Article!H54=Article!$Q$10,0.25,IF(Article!H54=Article!$Q$11,0,IF(Article!H54=Article!$Q$12,0,IF(Article!H54=Article!$Q$13,0))))))","v":false},{"$f":"IF(Article!I54=Article!$S$8,0.5,IF(Article!I54=Article!$S$9,0.25,IF(Article!I54=Article!$S$10,0.25,IF(Article!I54=Article!$S$11,0.25))))","v":false},{"$f":"IF(Article!J54=Article!$P$8,0.5,IF(Article!J54=Article!$P$9,0.25,IF(Article!J54=Article!$P$10,0.25,IF(Article!J54=Article!$P$11,0))))","v":false},{"$f":"IF(Article!K54=Article!$U$13,0.2,IF(Article!K54=Article!$U$14,0.25,IF(Article!K54=Article!$U$15,0.5,IF(Article!K54=Article!$U$16,0.75,IF(Article!K54=Article!$U$17,0)))))","v":false},null,0]
["مقاله 47",{"$f":"IF(Article!H55=Article!$Q$8,0.25,IF(Article!H55=Article!$Q$9,0.25,IF(Article!H55=Article!$Q$10,0.25,IF(Article!H55=Article!$Q$11,0,IF(Article!H55=Article!$Q$12,0,IF(Article!H55=Article!$Q$13,0))))))","v":false},{"$f":"IF(Article!I55=Article!$S$8,0.5,IF(Article!I55=Article!$S$9,0.25,IF(Article!I55=Article!$S$10,0.25,IF(Article!I55=Article!$S$11,0.25))))","v":false},{"$f":"IF(Article!J55=Article!$P$8,0.5,IF(Article!J55=Article!$P$9,0.25,IF(Article!J55=Article!$P$10,0.25,IF(Article!J55=Article!$P$11,0))))","v":false},{"$f":"IF(Article!K55=Article!$U$13,0.2,IF(Article!K55=Article!$U$14,0.25,IF(Article!K55=Article!$U$15,0.5,IF(Article!K55=Article!$U$16,0.75,IF(Article!K55=Article!$U$17,0)))))","v":false},null,0]
["مقاله 48",{"$f":"IF(Article!H56=Article!$Q$8,0.25,IF(Article!H56=Article!$Q$9,0.25,IF(Article!H56=Article!$Q$10,0.25,IF(Article!H56=Article!$Q$11,0,IF(Article!H56=Article!$Q$12,0,IF(Article!H56=Article!$Q$13,0))))))","v":false},{"$f":"IF(Article!I56=Article!$S$8,0.5,IF(Article!I56=Article!$S$9,0.25,IF(Article!I56=Article!$S$10,0.25,IF(Article!I56=Article!$S$11,0.25))))","v":false},{"$f":"IF(Article!J56=Article!$P$8,0.5,IF(Article!J56=Article!$P$9,0.25,IF(Article!J56=Article!$P$10,0.25,IF(Article!J56=Article!$P$11,0))))","v":false},{"$f":"IF(Article!K56=Article!$U$13,0.2,IF(Article!K56=Article!$U$14,0.25,IF(Article!K56=Article!$U$15,0.5,IF(Article!K56=Article!$U$16,0.75,IF(Article!K56=Article!$U$17,0)))))","v":false},null,0]
["مقاله 49",{"$f":"IF(Article!H57=Article!$Q$8,0.25,IF(Article!H57=Article!$Q$9,0.25,IF(Article!H57=Article!$Q$10,0.25,IF(Article!H57=Article!$Q$11,0,IF(Article!H57=Article!$Q$12,0,IF(Article!H57=Article!$Q$13,0))))))","v":false},{"$f":"IF(Article!I57=Article!$S$8,0.5,IF(Article!I57=Article!$S$9,0.25,IF(Article!I57=Article!$S$10,0.25,IF(Article!I57=Article!$S$11,0.25))))","v":false},{"$f":"IF(Article!J57=Article!$P$8,0.5,IF(Article!J57=Article!$P$9,0.25,IF(Article!J57=Article!$P$10,0.25,IF(Article!J57=Article!$P$11,0))))","v":false},{"$f":"IF(Article!K57=Article!$U$13,0.2,IF(Article!K57=Article!$U$14,0.25,IF(Article!K57=Article!$U$15,0.5,IF(Article!K57=Article!$U$16,0.75,IF(Article!K57=Article!$U$17,0)))))","v":false},null,0]
["مقاله 50",{"$f":"IF(Article!H58=Article!$Q$8,0.25,IF(Article!H58=Article!$Q$9,0.25,IF(Article!H58=Article!$Q$10,0.25,IF(Article!H58=Article!$Q$11,0,IF(Article!H58=Article!$Q$12,0,IF(Article!H58=Article!$Q$13,0))))))","v":false},{"$f":"IF(Article!I58=Article!$S$8,0.5,IF(Article!I58=Article!$S$9,0.25,IF(Article!I58=Article!$S$10,0.25,IF(Article!I58=Article!$S$11,0.25))))","v":false},{"$f":"IF(Article!J58=Article!$P$8,0.5,IF(Article!J58=Article!$P$9,0.25,IF(Article!J58=Article!$P$10,0.25,IF(Article!J58=Article!$P$11,0))))","v":false},{"$f":"IF(Article!K58=Article!$U$13,0.2,IF(Article!K58=Article!$U$14,0.25,IF(Article!K58=Article!$U$15,0.5,IF(Article!K58=Article!$U$16,0.75,IF(Article!K58=Article!$U$17,0)))))","v":false},null,0]
["مقاله 51",{"$f":"IF(Article!H59=Article!$Q$8,0.25,IF(Article!H59=Article!$Q$9,0.25,IF(Article!H59=Article!$Q$10,0.25,IF(Article!H59=Article!$Q$11,0,IF(Article!H59=Article!$Q$12,0,IF(Article!H59=Article!$Q$13,0))))))","v":false},{"$f":"IF(Article!I59=Article!$S$8,0.5,IF(Article!I59=Article!$S$9,0.25,IF(Article!I59=Article!$S$10,0.25,IF(Article!I59=Article!$S$11,0.25))))","v":false},{"$f":"IF(Article!J59=Article!$P$8,0.5,IF(Article!J59=Article!$P$9,0.25,IF(Article!J59=Article!$P$10,0.25,IF(Article!J59=Article!$P$11,0))))","v":false},{"$f":"IF(Article!K59=Article!$U$13,0.2,IF(Article!K59=Article!$U$14,0.25,IF(Article!K59=Article!$U$15,0.5,IF(Article!K59=Article!$U$16,0.75,IF(Article!K59=Article!$U$17,0)))))","v":false},null,0]
["مقاله 52",{"$f":"IF(Article!H60=Article!$Q$8,0.25,IF(Article!H60=Article!$Q$9,0.25,IF(Article!H60=Article!$Q$10,0.25,IF(Article!H60=Article!$Q$11,0,IF(Article!H60=Article!$Q$12,0,IF(Article!H60=Article!$Q$13,0))))))","v":false},{"$f":"IF(Article!I60=Article!$S$8,0.5,IF(Article!I60=Article!$S$9,0.25,IF(Article!I60=Article!$S$10,0.25,IF(Article!I60=Article!$S$11,0.25))))","v":false},{"$f":"IF(Article!J60=Article!$P$8,0.5,IF(Article!J60=Article!$P$9,0.25,IF(Article!J60=Article!$P$10,0.25,IF(Article!J60=Article!$P$11,0))))","v":false},{"$f":"IF(Article!K60=Article!$U$13,0.2,IF(Article!K60=Article!$U$14,0.25,IF(Article!K60=Article!$U$15,0.5,IF(Article!K60=Article!$U$16,0.75,IF(Article!K60=Article!$U$17,0)))))","v":false},null,0]
["مقاله 53",{"$f":"IF(Article!H61=Article!$Q$8,0.25,IF(Article!H61=Article!$Q$9,0.25,IF(Article!H61=Article!$Q$10,0.25,IF(Article!H61=Article!$Q$11,0,IF(Article!H61=Article!$Q$12,0,IF(Article!H61=Article!$Q$13,0))))))","v":false},{"$f":"IF(Article!I61=Article!$S$8,0.5,IF(Article!I61=Article!$S$9,0.25,IF(Article!I61=Article!$S$10,0.25,IF(Article!I61=Article!$S$11,0.25))))","v":false},{"$f":"IF(Article!J61=Article!$P$8,0.5,IF(Article!J61=Article!$P$9,0.25,IF(Article!J61=Article!$P$10,0.25,IF(Article!J61=Article!$P$11,0))))","v":false},{"$f":"IF(Article!K61=Article!$U$13,0.2,IF(Article!K61=Article!$U$14,0.25,IF(Article!K61=Article!$U$15,0.5,IF(Article!K61=Article!$U$16,0.75,IF(Article!K61=Article!$U$17,0)))))","v":false},null,0]
["مقاله 54",{"$f":"IF(Article!H62=Article!$Q$8,0.25,IF(Article!H62=Article!$Q$9,0.25,IF(Article!H62=Article!$Q$10,0.25,IF(Article!H62=Article!$Q$11,0,IF(Article!H62=Article!$Q$12,0,IF(Article!H62=Article!$Q$13,0))))))","v":false},{"$f":"IF(Article!I62=Article!$S$8,0.5,IF(Article!I62=Article!$S$9,0.25,IF(Article!I62=Article!$S$10,0.25,IF(Article!I62=Article!$S$11,0.25))))","v":false},{"$f":"IF(Article!J62=Article!$P$8,0.5,IF(Article!J62=Article!$P$9,0.25,IF(Article!J62=Article!$P$10,0.25,IF(Article!J62=Article!$P$11,0))))","v":false},{"$f":"IF(Article!K62=Article!$U$13,0.2,IF(Article!K62=Article!$U$14,0.25,IF(Article!K62=Article!$U$15,0.5,IF(Article!K62=Article!$U$16,0.75,IF(Article!K62=Article!$U$17,0)))))","v":false},null,0]
["مقاله 55",{"$f":"IF(Article!H63=Article!$Q$8,0.25,IF(Article!H63=Article!$Q$9,0.25,IF(Article!H63=Article!$Q$10,0.25,IF(Article!H63=Article!$Q$11,0,IF(Article!H63=Article!$Q$12,0,IF(Article!H63=Article!$Q$13,0))))))","v":false},{"$f":"IF(Article!I63=Article!$S$8,0.5,IF(Article!I63=Article!$S$9,0.25,IF(Article!I63=Article!$S$10,0.25,IF(Article!I63=Article!$S$11,0.25))))","v":false},{"$f":"IF(Article!J63=Article!$P$8,0.5,IF(Article!J63=Article!$P$9,0.25,IF(Article!J63=Article!$P$10,0.25,IF(Article!J63=Article!$P$11,0))))","v":false},{"$f":"IF(Article!K63=Article!$U$13,0.2,IF(Article!K63=Article!$U$14,0.25,IF(Article!K63=Article!$U$15,0.5,IF(Article!K63=Article!$U$16,0.75,IF(Article!K63=Article!$U$17,0)))))","v":false},null,0]
["مقاله 56",{"$f":"IF(Article!H64=Article!$Q$8,0.25,IF(Article!H64=Article!$Q$9,0.25,IF(Article!H64=Article!$Q$10,0.25,IF(Article!H64=Article!$Q$11,0,IF(Article!H64=Article!$Q$12,0,IF(Article!H64=Article!$Q$13,0))))))","v":false},{"$f":"IF(Article!I64=Article!$S$8,0.5,IF(Article!I64=Article!$S$9,0.25,IF(Article!I64=Article!$S$10,0.25,IF(Article!I64=Article!$S$11,0.25))))","v":false},{"$f":"IF(Article!J64=Article!$P$8,0.5,IF(Article!J64=Article!$P$9,0.25,IF(Article!J64=Article!$P$10,0.25,IF(Article!J64=Article!$P$11,0))))","v":false},{"$f":"IF(Article!K64=Article!$U$13,0.2,IF(Article!K64=Article!$U$14,0.25,IF(Article!K64=Article!$U$15,0.5,IF(Article!K64=Article!$U$16,0.75,IF(Article!K64=Article!$U$17,0)))))","v":false},null,0]
["مقاله 57",{"$f":"IF(Article!H65=Article!$Q$8,0.25,IF(Article!H65=Article!$Q$9,0.25,IF(Article!H65=Article!$Q$10,0.25,IF(Article!H65=Article!$Q$11,0,IF(Article!H65=Article!$Q$12,0,IF(Article!H65=Article!$Q$13,0))))))","v":false},{"$f":"IF(Article!I65=Article!$S$8,0.5,IF(Article!I65=Article!$S$9,0.25,IF(Article!I65=Article!$S$10,0.25,IF(Article!I65=Article!$S$11,0.25))))","v":false},{"$f":"IF(Article!J65=Article!$P$8,0.5,IF(Article!J65=Article!$P$9,0.25,IF(Article!J65=Article!$P$10,0.25,IF(Article!J65=Article!$P$11,0))))","v":false},{"$f":"IF(Article!K65=Article!$U$13,0.2,IF(Article!K65=Article!$U$14,0.25,IF(Article!K65=Article!$U$15,0.5,IF(Article!K65=Article!$U$16,0.75,IF(Article!K65=Article!$U$17,0)))))","v":false},null,0]
["مقاله 58",{"$f":"IF(Article!H66=Article!$Q$8,0.25,IF(Article!H66=Article!$Q$9,0.25,IF(Article!H66=Article!$Q$10,0.25,IF(Article!H66=Article!$Q$11,0,IF(Article!H66=Article!$Q$12,0,IF(Article!H66=Article!$Q$13,0))))))","v":false},{"$f":"IF(Article!I66=Article!$S$8,0.5,IF(Article!I66=Article!$S$9,0.25,IF(Article!I66=Article!$S$10,0.25,IF(Article!I66=Article!$S$11,0.25))))","v":false},{"$f":"IF(Article!J66=Article!$P$8,0.5,IF(Article!J66=Article!$P$9,0.25,IF(Article!J66=Article!$P$10,0.25,IF(Article!J66=Article!$P$11,0))))","v":false},{"$f":"IF(Article!K66=Article!$U$13,0.2,IF(Article!K66=Article!$U$14,0.25,IF(Article!K66=Article!$U$15,0.5,IF(Article!K66=Article!$U$16,0.75,IF(Article!K66=Article!$U$17,0)))))","v":false},null,0]
["مقاله 59",{"$f":"IF(Article!H67=Article!$Q$8,0.25,IF(Article!H67=Article!$Q$9,0.25,IF(Article!H67=Article!$Q$10,0.25,IF(Article!H67=Article!$Q$11,0,IF(Article!H67=Article!$Q$12,0,IF(Article!H67=Article!$Q$13,0))))))","v":false},{"$f":"IF(Article!I67=Article!$S$8,0.5,IF(Article!I67=Article!$S$9,0.25,IF(Article!I67=Article!$S$10,0.25,IF(Article!I67=Article!$S$11,0.25))))","v":false},{"$f":"IF(Article!J67=Article!$P$8,0.5,IF(Article!J67=Article!$P$9,0.25,IF(Article!J67=Article!$P$10,0.25,IF(Article!J67=Article!$P$11,0))))","v":false},{"$f":"IF(Article!K67=Article!$U$13,0.2,IF(Article!K67=Article!$U$14,0.25,IF(Article!K67=Article!$U$15,0.5,IF(Article!K67=Article!$U$16,0.75,IF(Article!K67=Article!$U$17,0)))))","v":false},null,0]
["مقاله 60",{"$f":"IF(Article!H68=Article!$Q$8,0.25,IF(Article!H68=Article!$Q$9,0.25,IF(Article!H68=Article!$Q$10,0.25,IF(Article!H68=Article!$Q$11,0,IF(Article!H68=Article!$Q$12,0,IF(Article!H68=Article!$Q$13,0))))))","v":false},{"$f":"IF(Article!I68=Article!$S$8,0.5,IF(Article!I68=Article!$S$9,0.25,IF(Article!I68=Article!$S$10,0.25,IF(Article!I68=Article!$S$11,0.25))))","v":false},{"$f":"IF(Article!J68=Article!$P$8,0.5,IF(Article!J68=Article!$P$9,0.25,IF(Article!J68=Article!$P$10,0.25,IF(Article!J68=Article!$P$11,0))))","v":false},{"$f":"IF(Article!K68=Article!$U$13,0.2,IF(Article!K68=Article!$U$14,0.25,IF(Article!K68=Article!$U$15,0.5,IF(Article!K68=Article!$U$16,0.75,IF(Article!K68=Article!$U$17,0)))))","v":false},null,0]
["مقاله 61",{"$f":"IF(Article!H69=Article!$Q$8,0.25,IF(Article!H69=Article!$Q$9,0.25,IF(Article!H69=Article!$Q$10,0.25,IF(Article!H69=Article!$Q$11,0,IF(Article!H69=Article!$Q$12,0,IF(Article!H69=Article!$Q$13,0))))))","v":false},{"$f":"IF(Article!I69=Article!$S$8,0.5,IF(Article!I69=Article!$S$9,0.25,IF(Article!I69=Article!$S$10,0.25,IF(Article!I69=Article!$S$11,0.25))))","v":false},{"$f":"IF(Article!J69=Article!$P$8,0.5,IF(Article!J69=Article!$P$9,0.25,IF(Article!J69=Article!$P$10,0.25,IF(Article!J69=Article!$P$11,0))))","v":false},{"$f":"IF(Article!K69=Article!$U$13,0.2,IF(Article!K69=Article!$U$14,0.25,IF(Article!K69=Article!$U$15,0.5,IF(Article!K69=Article!$U$16,0.75,IF(Article!K69=Article!$U$17,0)))))","v":false},null,0]
["مقاله 62",{"$f":"IF(Article!H70=Article!$Q$8,0.25,IF(Article!H70=Article!$Q$9,0.25,IF(Article!H70=Article!$Q$10,0.25,IF(Article!H70=Article!$Q$11,0,IF(Article!H70=Article!$Q$12,0,IF(Article!H70=Article!$Q$13,0))))))","v":false},{"$f":"IF(Article!I70=Article!$S$8,0.5,IF(Article!I70=Article!$S$9,0.25,IF(Article!I70=Article!$S$10,0.25,IF(Article!I70=Article!$S$11,0.25))))","v":false},{"$f":"IF(Article!J70=Article!$P$8,0.5,IF(Article!J70=Article!$P$9,0.25,IF(Article!J70=Article!$P$10,0.25,IF(Article!J70=Article!$P$11,0))))","v":false},{"$f":"IF(Article!K70=Article!$U$13,0.2,IF(Article!K70=Article!$U$14,0.25,IF(Article!K70=Article!$U$15,0.5,IF(Article!K70=Article!$U$16,0.75,IF(Article!K70=Article!$U$17,0)))))","v":false},null,0]
["مقاله 63",{"$f":"IF(Article!H71=Article!$Q$8,0.25,IF(Article!H71=Article!$Q$9,0.25,IF(Article!H71=Article!$Q$10,0.25,IF(Article!H71=Article!$Q$11,0,IF(Article!H71=Article!$Q$12,0,IF(Article!H71=Article!$Q$13,0))))))","v":false},{"$f":"IF(Article!I71=Article!$S$8,0.5,IF(Article!I71=Article!$S$9,0.25,IF(Article!I71=Article!$S$10,0.25,IF(Article!I71=Article!$S$11,0.25))))","v":false},{"$f":"IF(Article!J71=Article!$P$8,0.5,IF(Article!J71=Article!$P$9,0.25,IF(Article!J71=Article!$P$10,0.25,IF(Article!J71=Article!$P$11,0))))","v":false},{"$f":"IF(Article!K71=Article!$U$13,0.2,IF(Article!K71=Article!$U$14,0.25,IF(Article!K71=Article!$U$15,0.5,IF(Article!K71=Article!$U$16,0.75,IF(Article!K71=Article!$U$17,0)))))","v":false},null,0]
["مقاله 64",{"$f":"IF(Article!H72=Article!$Q$8,0.25,IF(Article!H72=Article!$Q$9,0.25,IF(Article!H72=Article!$Q$10,0.25,IF(Article!H72=Article!$Q$11,0,IF(Article!H72=Article!$Q$12,0,IF(Article!H72=Article!$Q$13,0))))))","v":false},{"$f":"IF(Article!I72=Article!$S$8,0.5,IF(Article!I72=Article!$S$9,0.25,IF(Article!I72=Article!$S$10,0.25,IF(Article!I72=Article!$S$11,0.25))))","v":false},{"$f":"IF(Article!J72=Article!$P$8,0.5,IF(Article!J72=Article!$P$9,0.25,IF(Article!J72=Article!$P$10,0.25,IF(Article!J72=Article!$P$11,0))))","v":false},{"$f":"IF(Article!K72=Article!$U$13,0.2,IF(Article!K72=Article!$U$14,0.25,IF(Article!K72=Article!$U$15,0.5,IF(Article!K72=Article!$U$16,0.75,IF(Article!K72=Article!$U$17,0)))))","v":false},null,0]
["مقاله 65",{"$f":"IF(Article!H73=Article!$Q$8,0.25,IF(Article!H73=Article!$Q$9,0.25,IF(Article!H73=Article!$Q$10,0.25,IF(Article!H73=Article!$Q$11,0,IF(Article!H73=Article!$Q$12,0,IF(Article!H73=Article!$Q$13,0))))))","v":false},{"$f":"IF(Article!I73=Article!$S$8,0.5,IF(Article!I73=Article!$S$9,0.25,IF(Article!I73=Article!$S$10,0.25,IF(Article!I73=Article!$S$11,0.25))))","v":false},{"$f":"IF(Article!J73=Article!$P$8,0.5,IF(Article!J73=Article!$P$9,0.25,IF(Article!J73=Article!$P$10,0.25,IF(Article!J73=Article!$P$11,0))))","v":false},{"$f":"IF(Article!K73=Article!$U$13,0.2,IF(Article!K73=Article!$U$14,0.25,IF(Article!K73=Article!$U$15,0.5,IF(Article!K73=Article!$U$16,0.75,IF(Article!K73=Article!$U$17,0)))))","v":false},null,0]
["مقاله 66",{"$f":"IF(Article!H74=Article!$Q$8,0.25,IF(Article!H74=Article!$Q$9,0.25,IF(Article!H74=Article!$Q$10,0.25,IF(Article!H74=Article!$Q$11,0,IF(Article!H74=Article!$Q$12,0,IF(Article!H74=Article!$Q$13,0))))))","v":false},{"$f":"IF(Article!I74=Article!$S$8,0.5,IF(Article!I74=Article!$S$9,0.25,IF(Article!I74=Article!$S$10,0.25,IF(Article!I74=Article!$S$11,0.25))))","v":false},{"$f":"IF(Article!J74=Article!$P$8,0.5,IF(Article!J74=Article!$P$9,0.25,IF(Article!J74=Article!$P$10,0.25,IF(Article!J74=Article!$P$11,0))))","v":false},{"$f":"IF(Article!K74=Article!$U$13,0.2,IF(Article!K74=Article!$U$14,0.25,IF(Article!K74=Article!$U$15,0.5,IF(Article!K74=Article!$U$16,0.75,IF(Article!K74=Article!$U$17,0)))))","v":false},null,{"$f":"B67+C67+D67+E67","v":0}]
["مقاله 67",{"$f":"IF(Article!H75=Article!$Q$8,0.25,IF(Article!H75=Article!$Q$9,0.25,IF(Article!H75=Article!$Q$10,0.25,IF(Article!H75=Article!$Q$11,0,IF(Article!H75=Article!$Q$12,0,IF(Article!H75=Article!$Q$13,0))))))","v":false},{"$f":"IF(Article!I75=Article!$S$8,0.5,IF(Article!I75=Article!$S$9,0.25,IF(Article!I75=Article!$S$10,0.25,IF(Article!I75=Article!$S$11,0.25))))","v":false},{"$f":"IF(Article!J75=Article!$P$8,0.5,IF(Article!J75=Article!$P$9,0.25,IF(Article!J75=Article!$P$10,0.25,IF(Article!J75=Article!$P$11,0))))","v":false},{"$f":"IF(Article!K75=Article!$U$13,0.2,IF(Article!K75=Article!$U$14,0.25,IF(Article!K75=Article!$U$15,0.5,IF(Article!K75=Article!$U$16,0.75,IF(Article!K75=Article!$U$17,0)))))","v":false},null,0]
["مقاله 68",{"$f":"IF(Article!H76=Article!$Q$8,0.25,IF(Article!H76=Article!$Q$9,0.25,IF(Article!H76=Article!$Q$10,0.25,IF(Article!H76=Article!$Q$11,0,IF(Article!H76=Article!$Q$12,0,IF(Article!H76=Article!$Q$13,0))))))","v":false},{"$f":"IF(Article!I76=Article!$S$8,0.5,IF(Article!I76=Article!$S$9,0.25,IF(Article!I76=Article!$S$10,0.25,IF(Article!I76=Article!$S$11,0.25))))","v":false},{"$f":"IF(Article!J76=Article!$P$8,0.5,IF(Article!J76=Article!$P$9,0.25,IF(Article!J76=Article!$P$10,0.25,IF(Article!J76=Article!$P$11,0))))","v":false},{"$f":"IF(Article!K76=Article!$U$13,0.2,IF(Article!K76=Article!$U$14,0.25,IF(Article!K76=Article!$U$15,0.5,IF(Article!K76=Article!$U$16,0.75,IF(Article!K76=Article!$U$17,0)))))","v":false},null,0]
["مقاله 69",{"$f":"IF(Article!H77=Article!$Q$8,0.25,IF(Article!H77=Article!$Q$9,0.25,IF(Article!H77=Article!$Q$10,0.25,IF(Article!H77=Article!$Q$11,0,IF(Article!H77=Article!$Q$12,0,IF(Article!H77=Article!$Q$13,0))))))","v":false},{"$f":"IF(Article!I77=Article!$S$8,0.5,IF(Article!I77=Article!$S$9,0.25,IF(Article!I77=Article!$S$10,0.25,IF(Article!I77=Article!$S$11,0.25))))","v":false},{"$f":"IF(Article!J77=Article!$P$8,0.5,IF(Article!J77=Article!$P$9,0.25,IF(Article!J77=Article!$P$10,0.25,IF(Article!J77=Article!$P$11,0))))","v":false},{"$f":"IF(Article!K77=Article!$U$13,0.2,IF(Article!K77=Article!$U$14,0.25,IF(Article!K77=Article!$U$15,0.5,IF(Article!K77=Article!$U$16,0.75,IF(Article!K77=Article!$U$17,0)))))","v":false},null,0]
["مقاله 70",{"$f":"IF(Article!H78=Article!$Q$8,0.25,IF(Article!H78=Article!$Q$9,0.25,IF(Article!H78=Article!$Q$10,0.25,IF(Article!H78=Article!$Q$11,0,IF(Article!H78=Article!$Q$12,0,IF(Article!H78=Article!$Q$13,0))))))","v":false},{"$f":"IF(Article!I78=Article!$S$8,0.5,IF(Article!I78=Article!$S$9,0.25,IF(Article!I78=Article!$S$10,0.25,IF(Article!I78=Article!$S$11,0.25))))","v":false},{"$f":"IF(Article!J78=Article!$P$8,0.5,IF(Article!J78=Article!$P$9,0.25,IF(Article!J78=Article!$P$10,0.25,IF(Article!J78=Article!$P$11,0))))","v":false},{"$f":"IF(Article!K78=Article!$U$13,0.2,IF(Article!K78=Article!$U$14,0.25,IF(Article!K78=Article!$U$15,0.5,IF(Article!K78=Article!$U$16,0.75,IF(Article!K78=Article!$U$17,0)))))","v":false},null,0]
["مقاله 71",{"$f":"IF(Article!H79=Article!$Q$8,0.25,IF(Article!H79=Article!$Q$9,0.25,IF(Article!H79=Article!$Q$10,0.25,IF(Article!H79=Article!$Q$11,0,IF(Article!H79=Article!$Q$12,0,IF(Article!H79=Article!$Q$13,0))))))","v":false},{"$f":"IF(Article!I79=Article!$S$8,0.5,IF(Article!I79=Article!$S$9,0.25,IF(Article!I79=Article!$S$10,0.25,IF(Article!I79=Article!$S$11,0.25))))","v":false},{"$f":"IF(Article!J79=Article!$P$8,0.5,IF(Article!J79=Article!$P$9,0.25,IF(Article!J79=Article!$P$10,0.25,IF(Article!J79=Article!$P$11,0))))","v":false},{"$f":"IF(Article!K79=Article!$U$13,0.2,IF(Article!K79=Article!$U$14,0.25,IF(Article!K79=Article!$U$15,0.5,IF(Article!K79=Article!$U$16,0.75,IF(Article!K79=Article!$U$17,0)))))","v":false},null,0]
["مقاله 72",{"$f":"IF(Article!H80=Article!$Q$8,0.25,IF(Article!H80=Article!$Q$9,0.25,IF(Article!H80=Article!$Q$10,0.25,IF(Article!H80=Article!$Q$11,0,IF(Article!H80=Article!$Q$12,0,IF(Article!H80=Article!$Q$13,0))))))","v":false},{"$f":"IF(Article!I80=Article!$S$8,0.5,IF(Article!I80=Article!$S$9,0.25,IF(Article!I80=Article!$S$10,0.25,IF(Article!I80=Article!$S$11,0.25))))","v":false},{"$f":"IF(Article!J80=Article!$P$8,0.5,IF(Article!J80=Article!$P$9,0.25,IF(Article!J80=Article!$P$10,0.25,IF(Article!J80=Article!$P$11,0))))","v":false},{"$f":"IF(Article!K80=Article!$U$13,0.2,IF(Article!K80=Article!$U$14,0.25,IF(Article!K80=Article!$U$15,0.5,IF(Article!K80=Article!$U$16,0.75,IF(Article!K80=Article!$U$17,0)))))","v":false},null,0]
["مقاله 73",{"$f":"IF(Article!H81=Article!$Q$8,0.25,IF(Article!H81=Article!$Q$9,0.25,IF(Article!H81=Article!$Q$10,0.25,IF(Article!H81=Article!$Q$11,0,IF(Article!H81=Article!$Q$12,0,IF(Article!H81=Article!$Q$13,0))))))","v":false},{"$f":"IF(Article!I81=Article!$S$8,0.5,IF(Article!I81=Article!$S$9,0.25,IF(Article!I81=Article!$S$10,0.25,IF(Article!I81=Article!$S$11,0.25))))","v":false},{"$f":"IF(Article!J81=Article!$P$8,0.5,IF(Article!J81=Article!$P$9,0.25,IF(Article!J81=Article!$P$10,0.25,IF(Article!J81=Article!$P$11,0))))","v":false},{"$f":"IF(Article!K81=Article!$U$13,0.2,IF(Article!K81=Article!$U$14,0.25,IF(Article!K81=Article!$U$15,0.5,IF(Article!K81=Article!$U$16,0.75,IF(Article!K81=Article!$U$17,0)))))","v":false},null,0]
["مقاله 74",{"$f":"IF(Article!H82=Article!$Q$8,0.25,IF(Article!H82=Article!$Q$9,0.25,IF(Article!H82=Article!$Q$10,0.25,IF(Article!H82=Article!$Q$11,0,IF(Article!H82=Article!$Q$12,0,IF(Article!H82=Article!$Q$13,0))))))","v":false},{"$f":"IF(Article!I82=Article!$S$8,0.5,IF(Article!I82=Article!$S$9,0.25,IF(Article!I82=Article!$S$10,0.25,IF(Article!I82=Article!$S$11,0.25))))","v":false},{"$f":"IF(Article!J82=Article!$P$8,0.5,IF(Article!J82=Article!$P$9,0.25,IF(Article!J82=Article!$P$10,0.25,IF(Article!J82=Article!$P$11,0))))","v":false},{"$f":"IF(Article!K82=Article!$U$13,0.2,IF(Article!K82=Article!$U$14,0.25,IF(Article!K82=Article!$U$15,0.5,IF(Article!K82=Article!$U$16,0.75,IF(Article!K82=Article!$U$17,0)))))","v":false},null,0]
["مقاله 75",{"$f":"IF(Article!H83=Article!$Q$8,0.25,IF(Article!H83=Article!$Q$9,0.25,IF(Article!H83=Article!$Q$10,0.25,IF(Article!H83=Article!$Q$11,0,IF(Article!H83=Article!$Q$12,0,IF(Article!H83=Article!$Q$13,0))))))","v":false},{"$f":"IF(Article!I83=Article!$S$8,0.5,IF(Article!I83=Article!$S$9,0.25,IF(Article!I83=Article!$S$10,0.25,IF(Article!I83=Article!$S$11,0.25))))","v":false},{"$f":"IF(Article!J83=Article!$P$8,0.5,IF(Article!J83=Article!$P$9,0.25,IF(Article!J83=Article!$P$10,0.25,IF(Article!J83=Article!$P$11,0))))","v":false},{"$f":"IF(Article!K83=Article!$U$13,0.2,IF(Article!K83=Article!$U$14,0.25,IF(Article!K83=Article!$U$15,0.5,IF(Article!K83=Article!$U$16,0.75,IF(Article!K83=Article!$U$17,0)))))","v":false},null,0]
["مقاله 76",{"$f":"IF(Article!H84=Article!$Q$8,0.25,IF(Article!H84=Article!$Q$9,0.25,IF(Article!H84=Article!$Q$10,0.25,IF(Article!H84=Article!$Q$11,0,IF(Article!H84=Article!$Q$12,0,IF(Article!H84=Article!$Q$13,0))))))","v":false},{"$f":"IF(Article!I84=Article!$S$8,0.5,IF(Article!I84=Article!$S$9,0.25,IF(Article!I84=Article!$S$10,0.25,IF(Article!I84=Article!$S$11,0.25))))","v":false},{"$f":"IF(Article!J84=Article!$P$8,0.5,IF(Article!J84=Article!$P$9,0.25,IF(Article!J84=Article!$P$10,0.25,IF(Article!J84=Article!$P$11,0))))","v":false},{"$f":"IF(Article!K84=Article!$U$13,0.2,IF(Article!K84=Article!$U$14,0.25,IF(Article!K84=Article!$U$15,0.5,IF(Article!K84=Article!$U$16,0.75,IF(Article!K84=Article!$U$17,0)))))","v":false},null,0]
["مقاله 77",{"$f":"IF(Article!H85=Article!$Q$8,0.25,IF(Article!H85=Article!$Q$9,0.25,IF(Article!H85=Article!$Q$10,0.25,IF(Article!H85=Article!$Q$11,0,IF(Article!H85=Article!$Q$12,0,IF(Article!H85=Article!$Q$13,0))))))","v":false},{"$f":"IF(Article!I85=Article!$S$8,0.5,IF(Article!I85=Article!$S$9,0.25,IF(Article!I85=Article!$S$10,0.25,IF(Article!I85=Article!$S$11,0.25))))","v":false},{"$f":"IF(Article!J85=Article!$P$8,0.5,IF(Article!J85=Article!$P$9,0.25,IF(Article!J85=Article!$P$10,0.25,IF(Article!J85=Article!$P$11,0))))","v":false},{"$f":"IF(Article!K85=Article!$U$13,0.2,IF(Article!K85=Article!$U$14,0.25,IF(Article!K85=Article!$U$15,0.5,IF(Article!K85=Article!$U$16,0.75,IF(Article!K85=Article!$U$17,0)))))","v":false},null,0]
["مقاله 78",{"$f":"IF(Article!H86=Article!$Q$8,0.25,IF(Article!H86=Article!$Q$9,0.25,IF(Article!H86=Article!$Q$10,0.25,IF(Article!H86=Article!$Q$11,0,IF(Article!H86=Article!$Q$12,0,IF(Article!H86=Article!$Q$13,0))))))","v":false},{"$f":"IF(Article!I86=Article!$S$8,0.5,IF(Article!I86=Article!$S$9,0.25,IF(Article!I86=Article!$S$10,0.25,IF(Article!I86=Article!$S$11,0.25))))","v":false},{"$f":"IF(Article!J86=Article!$P$8,0.5,IF(Article!J86=Article!$P$9,0.25,IF(Article!J86=Article!$P$10,0.25,IF(Article!J86=Article!$P$11,0))))","v":false},{"$f":"IF(Article!K86=Article!$U$13,0.2,IF(Article!K86=Article!$U$14,0.25,IF(Article!K86=Article!$U$15,0.5,IF(Article!K86=Article!$U$16,0.75,IF(Article!K86=Article!$U$17,0)))))","v":false},null,0]
["مقاله 79",{"$f":"IF(Article!H87=Article!$Q$8,0.25,IF(Article!H87=Article!$Q$9,0.25,IF(Article!H87=Article!$Q$10,0.25,IF(Article!H87=Article!$Q$11,0,IF(Article!H87=Article!$Q$12,0,IF(Article!H87=Article!$Q$13,0))))))","v":false},{"$f":"IF(Article!I87=Article!$S$8,0.5,IF(Article!I87=Article!$S$9,0.25,IF(Article!I87=Article!$S$10,0.25,IF(Article!I87=Article!$S$11,0.25))))","v":false},{"$f":"IF(Article!J87=Article!$P$8,0.5,IF(Article!J87=Article!$P$9,0.25,IF(Article!J87=Article!$P$10,0.25,IF(Article!J87=Article!$P$11,0))))","v":false},{"$f":"IF(Article!K87=Article!$U$13,0.2,IF(Article!K87=Article!$U$14,0.25,IF(Article!K87=Article!$U$15,0.5,IF(Article!K87=Article!$U$16,0.75,IF(Article!K87=Article!$U$17,0)))))","v":false},null,0]
["مقاله 80",{"$f":"IF(Article!H88=Article!$Q$8,0.25,IF(Article!H88=Article!$Q$9,0.25,IF(Article!H88=Article!$Q$10,0.25,IF(Article!H88=Article!$Q$11,0,IF(Article!H88=Article!$Q$12,0,IF(Article!H88=Article!$Q$13,0))))))","v":false},{"$f":"IF(Article!I88=Article!$S$8,0.5,IF(Article!I88=Article!$S$9,0.25,IF(Article!I88=Article!$S$10,0.25,IF(Article!I88=Article!$S$11,0.25))))","v":false},{"$f":"IF(Article!J88=Article!$P$8,0.5,IF(Article!J88=Article!$P$9,0.25,IF(Article!J88=Article!$P$10,0.25,IF(Article!J88=Article!$P$11,0))))","v":false},{"$f":"IF(Article!K88=Article!$U$13,0.2,IF(Article!K88=Article!$U$14,0.25,IF(Article!K88=Article!$U$15,0.5,IF(Article!K88=Article!$U$16,0.75,IF(Article!K88=Article!$U$17,0)))))","v":false},null,0]
[]
[null,null,null,null,null,null,{"$f":"SUM(G2:G81)","v":0}]

{"sheet":"ebda","index":11,"n_rows":22,"n_cols":7,"rows_kept":22,"cut":false,"hidden":false,"merged":[]}
[null,"نوع ثبت اختراع","استفاده از نتايج اختراع ایران در جهان","مستندات","جمع ",null,"امتیاز کلی"]
["اختراع 1",{"$f":"IF(inovation!C6=inovation!$M$3,1,IF(inovation!C6=inovation!$M$4,2))","v":false},{"$f":"IF(inovation!F6=inovation!$N$3,2,IF(inovation!F6=inovation!$N$4,0))","v":false},{"$f":"IF(inovation!J6=inovation!$O$3,1,IF(inovation!J6=inovation!$O$4,0))","v":false},{"$f":"(B2+C2)*D2","v":0},null,{"$f":"IF(E22=0,0,IF(E22=1,1,IF(E22=2,2,IF(E22=3,3,IF(E22=4,4,IF(E22=5,5,IF(E22=6,6,IF(E22=7,7,IF(E22>7,8)))))))))","v":0}]
["اختراع 2",{"$f":"IF(inovation!C7=inovation!$M$3,1,IF(inovation!C7=inovation!$M$4,2))","v":false},{"$f":"IF(inovation!F7=inovation!$N$3,2,IF(inovation!F7=inovation!$N$4,0))","v":false},{"$f":"IF(inovation!J7=inovation!$O$3,1,IF(inovation!J7=inovation!$O$4,0))","v":false},{"$f":"(B3+C3)*D3","v":0}]
["اختراع 3",{"$f":"IF(inovation!C8=inovation!$M$3,1,IF(inovation!C8=inovation!$M$4,2))","v":false},{"$f":"IF(inovation!F8=inovation!$N$3,2,IF(inovation!F8=inovation!$N$4,0))","v":false},{"$f":"IF(inovation!J8=inovation!$O$3,1,IF(inovation!J8=inovation!$O$4,0))","v":false},0]
["اختراع 4",{"$f":"IF(inovation!C9=inovation!$M$3,1,IF(inovation!C9=inovation!$M$4,2))","v":false},{"$f":"IF(inovation!F9=inovation!$N$3,2,IF(inovation!F9=inovation!$N$4,0))","v":false},{"$f":"IF(inovation!J9=inovation!$O$3,1,IF(inovation!J9=inovation!$O$4,0))","v":false},0]
["اختراع 5",{"$f":"IF(inovation!C10=inovation!$M$3,1,IF(inovation!C10=inovation!$M$4,2))","v":false},{"$f":"IF(inovation!F10=inovation!$N$3,2,IF(inovation!F10=inovation!$N$4,0))","v":false},{"$f":"IF(inovation!J10=inovation!$O$3,1,IF(inovation!J10=inovation!$O$4,0))","v":false},0]
["اختراع 6",{"$f":"IF(inovation!C11=inovation!$M$3,1,IF(inovation!C11=inovation!$M$4,2))","v":false},{"$f":"IF(inovation!F11=inovation!$N$3,2,IF(inovation!F11=inovation!$N$4,0))","v":false},{"$f":"IF(inovation!J11=inovation!$O$3,1,IF(inovation!J11=inovation!$O$4,0))","v":false},0]
["اختراع 7",{"$f":"IF(inovation!C12=inovation!$M$3,1,IF(inovation!C12=inovation!$M$4,2))","v":false},{"$f":"IF(inovation!F12=inovation!$N$3,2,IF(inovation!F12=inovation!$N$4,0))","v":false},{"$f":"IF(inovation!J12=inovation!$O$3,1,IF(inovation!J12=inovation!$O$4,0))","v":false},0]
["اختراع 8",{"$f":"IF(inovation!C13=inovation!$M$3,1,IF(inovation!C13=inovation!$M$4,2))","v":false},{"$f":"IF(inovation!F13=inovation!$N$3,2,IF(inovation!F13=inovation!$N$4,0))","v":false},{"$f":"IF(inovation!J13=inovation!$O$3,1,IF(inovation!J13=inovation!$O$4,0))","v":false},0]
["اختراع 9",{"$f":"IF(inovation!C14=inovation!$M$3,1,IF(inovation!C14=inovation!$M$4,2))","v":false},{"$f":"IF(inovation!F14=inovation!$N$3,2,IF(inovation!F14=inovation!$N$4,0))","v":false},{"$f":"IF(inovation!J14=inovation!$O$3,1,IF(inovation!J14=inovation!$O$4,0))","v":false},0]
["اختراع 10",{"$f":"IF(inovation!C15=inovation!$M$3,1,IF(inovation!C15=inovation!$M$4,2))","v":false},{"$f":"IF(inovation!F15=inovation!$N$3,2,IF(inovation!F15=inovation!$N$4,0))","v":false},{"$f":"IF(inovation!J15=inovation!$O$3,1,IF(inovation!J15=inovation!$O$4,0))","v":false},0]
["اختراع 11",{"$f":"IF(inovation!C16=inovation!$M$3,1,IF(inovation!C16=inovation!$M$4,2))","v":false},{"$f":"IF(inovation!F16=inovation!$N$3,2,IF(inovation!F16=inovation!$N$4,0))","v":false},{"$f":"IF(inovation!J16=inovation!$O$3,1,IF(inovation!J16=inovation!$O$4,0))","v":false},0]
["اختراع 12",{"$f":"IF(inovation!C17=inovation!$M$3,1,IF(inovation!C17=inovation!$M$4,2))","v":false},{"$f":"IF(inovation!F17=inovation!$N$3,2,IF(inovation!F17=inovation!$N$4,0))","v":false},{"$f":"IF(inovation!J17=inovation!$O$3,1,IF(inovation!J17=inovation!$O$4,0))","v":false},0]
["اختراع 13",{"$f":"IF(inovation!C18=inovation!$M$3,1,IF(inovation!C18=inovation!$M$4,2))","v":false},{"$f":"IF(inovation!F18=inovation!$N$3,2,IF(inovation!F18=inovation!$N$4,0))","v":false},{"$f":"IF(inovation!J18=inovation!$O$3,1,IF(inovation!J18=inovation!$O$4,0))","v":false},0]
["اختراع 14",{"$f":"IF(inovation!C19=inovation!$M$3,1,IF(inovation!C19=inovation!$M$4,2))","v":false},{"$f":"IF(inovation!F19=inovation!$N$3,2,IF(inovation!F19=inovation!$N$4,0))","v":false},{"$f":"IF(inovation!J19=inovation!$O$3,1,IF(inovation!J19=inovation!$O$4,0))","v":false},0]
["اختراع 15",{"$f":"IF(inovation!C20=inovation!$M$3,1,IF(inovation!C20=inovation!$M$4,2))","v":false},{"$f":"IF(inovation!F20=inovation!$N$3,2,IF(inovation!F20=inovation!$N$4,0))","v":false},{"$f":"IF(inovation!J20=inovation!$O$3,1,IF(inovation!J20=inovation!$O$4,0))","v":false},0]
["اختراع 16",{"$f":"IF(inovation!C21=inovation!$M$3,1,IF(inovation!C21=inovation!$M$4,2))","v":false},{"$f":"IF(inovation!F21=inovation!$N$3,2,IF(inovation!F21=inovation!$N$4,0))","v":false},{"$f":"IF(inovation!J21=inovation!$O$3,1,IF(inovation!J21=inovation!$O$4,0))","v":false},0]
["اختراع 17",{"$f":"IF(inovation!C22=inovation!$M$3,1,IF(inovation!C22=inovation!$M$4,2))","v":false},{"$f":"IF(inovation!F22=inovation!$N$3,2,IF(inovation!F22=inovation!$N$4,0))","v":false},{"$f":"IF(inovation!J22=inovation!$O$3,1,IF(inovation!J22=inovation!$O$4,0))","v":false},0]
["اختراع 18",{"$f":"IF(inovation!C23=inovation!$M$3,1,IF(inovation!C23=inovation!$M$4,2))","v":false},{"$f":"IF(inovation!F23=inovation!$N$3,2,IF(inovation!F23=inovation!$N$4,0))","v":false},{"$f":"IF(inovation!J23=inovation!$O$3,1,IF(inovation!J23=inovation!$O$4,0))","v":false},0]
["اختراع 19",{"$f":"IF(inovation!C24=inovation!$M$3,1,IF(inovation!C24=inovation!$M$4,2))","v":false},{"$f":"IF(inovation!F24=inovation!$N$3,2,IF(inovation!F24=inovation!$N$4,0))","v":false},{"$f":"IF(inovation!J24=inovation!$O$3,1,IF(inovation!J24=inovation!$O$4,0))","v":false},0]
[]
[null,null,null,null,{"$f":"SUM(E2:E20)","v":0}]

{"sheet":"ketab","index":12,"n_rows":33,"n_cols":12,"rows_kept":33,"cut":false,"hidden":false,"merged":[[0,0,0,4],[0,6,0,9],[29,5,31,8],[32,5,33,8]]}
["تالیف کتاب ",null,null,null,null,null,"ترجمه"]
[null,"تالیف است  "," فرم ارزشيابي شوراي انتشارات دانشگاه ","کل",null,"کل نمره تالیف کتاب",null,"ترجمه است  "," فرم ارزشيابي شوراي انتشارات دانشگاه ","آیا اجازه ناشر یا نویسنده اصلی برای ترجمه کتاب اخذ شده است ؟",null,"کل نمره ترجمه"]
["کتاب 1",{"$f":"IF(book!C6=book!$P$4,2,IF(book!C6=book!$P$5,0))","v":false},{"$f":"IF(book!E6=book!$O$4,1,IF(book!E6=book!$O$5,0.5))","v":false},{"$f":"B3*C3","v":0},null,{"$f":"IF(D27=0,0,IF(D27=0.5,0.5,IF(D27=1,1,IF(D27=1.5,1.5,IF(D27=2,2,IF(D27=2.5,2.5,IF(D27=3,3,IF(D27=3.5,3.5,IF(D27=4,4,IF(D27>4,4))))))))))","v":0},"کتاب 1",{"$f":"IF(book!C6=book!$P$4,0,IF(book!C6=book!$P$5,1))","v":false},{"$f":"IF(book!E6=book!$O$4,1,IF(book!E6=book!$O$5,0.5))","v":false},{"$f":"IF(book!K6=book!$O$4,1,IF(book!K6=book!$O$5,1))","v":false},{"$f":"H3*I3*J3","v":0},{"$f":"IF(K27=0,0,IF(K27=0.5,0.5,IF(K27=1,1,IF(K27=1.5,1.5,IF(K27>1.5,2)))))","v":0}]
["کتاب 2",{"$f":"IF(book!C7=book!$P$4,2,IF(book!C7=book!$P$5,0))","v":false},{"$f":"IF(book!E7=book!$O$4,1,IF(book!E7=book!$O$5,0.5))","v":false},{"$f":"B4*C4","v":0},null,null,"کتاب 2",{"$f":"IF(book!C7=book!$P$4,0,IF(book!C7=book!$P$5,1))","v":false},{"$f":"IF(book!E7=book!$O$4,1,IF(book!E7=book!$O$5,0.5))","v":false},{"$f":"IF(book!K7=book!$O$4,1,IF(book!K7=book!$O$5,1))","v":false},{"$f":"H4*I4*J4","v":0}]
["کتاب 3",{"$f":"IF(book!C8=book!$P$4,2,IF(book!C8=book!$P$5,0))","v":false},{"$f":"IF(book!E8=book!$O$4,1,IF(book!E8=book!$O$5,0.5))","v":false},0,null,null,"کتاب 3",{"$f":"IF(book!C8=book!$P$4,0,IF(book!C8=book!$P$5,1))","v":false},{"$f":"IF(book!E8=book!$O$4,1,IF(book!E8=book!$O$5,0.5))","v":false},{"$f":"IF(book!K8=book!$O$4,1,IF(book!K8=book!$O$5,1))","v":false},0]
["کتاب 4",{"$f":"IF(book!C9=book!$P$4,2,IF(book!C9=book!$P$5,0))","v":false},{"$f":"IF(book!E9=book!$O$4,1,IF(book!E9=book!$O$5,0.5))","v":false},0,null,null,"کتاب 4",{"$f":"IF(book!C9=book!$P$4,0,IF(book!C9=book!$P$5,1))","v":false},{"$f":"IF(book!E9=book!$O$4,1,IF(book!E9=book!$O$5,0.5))","v":false},{"$f":"IF(book!K9=book!$O$4,1,IF(book!K9=book!$O$5,1))","v":false},0]
["کتاب 5",{"$f":"IF(book!C10=book!$P$4,2,IF(book!C10=book!$P$5,0))","v":false},{"$f":"IF(book!E10=book!$O$4,1,IF(book!E10=book!$O$5,0.5))","v":false},0,null,null,"کتاب 5",{"$f":"IF(book!C10=book!$P$4,0,IF(book!C10=book!$P$5,1))","v":false},{"$f":"IF(book!E10=book!$O$4,1,IF(book!E10=book!$O$5,0.5))","v":false},{"$f":"IF(book!K10=book!$O$4,1,IF(book!K10=book!$O$5,1))","v":false},0]
["کتاب 6",{"$f":"IF(book!C11=book!$P$4,2,IF(book!C11=book!$P$5,0))","v":false},{"$f":"IF(book!E11=book!$O$4,1,IF(book!E11=book!$O$5,0.5))","v":false},0,null,null,"کتاب 6",{"$f":"IF(book!C11=book!$P$4,0,IF(book!C11=book!$P$5,1))","v":false},{"$f":"IF(book!E11=book!$O$4,1,IF(book!E11=book!$O$5,0.5))","v":false},{"$f":"IF(book!K11=book!$O$4,1,IF(book!K11=book!$O$5,1))","v":false},0]
["کتاب 7",{"$f":"IF(book!C12=book!$P$4,2,IF(book!C12=book!$P$5,0))","v":false},{"$f":"IF(book!E12=book!$O$4,1,IF(book!E12=book!$O$5,0.5))","v":false},0,null,null,"کتاب 7",{"$f":"IF(book!C12=book!$P$4,0,IF(book!C12=book!$P$5,1))","v":false},{"$f":"IF(book!E12=book!$O$4,1,IF(book!E12=book!$O$5,0.5))","v":false},{"$f":"IF(book!K12=book!$O$4,1,IF(book!K12=book!$O$5,1))","v":false},0]
["کتاب 8",{"$f":"IF(book!C13=book!$P$4,2,IF(book!C13=book!$P$5,0))","v":false},{"$f":"IF(book!E13=book!$O$4,1,IF(book!E13=book!$O$5,0.5))","v":false},0,null,null,"کتاب 8",{"$f":"IF(book!C13=book!$P$4,0,IF(book!C13=book!$P$5,1))","v":false},{"$f":"IF(book!E13=book!$O$4,1,IF(book!E13=book!$O$5,0.5))","v":false},{"$f":"IF(book!K13=book!$O$4,1,IF(book!K13=book!$O$5,1))","v":false},0]
["کتاب 9",{"$f":"IF(book!C14=book!$P$4,2,IF(book!C14=book!$P$5,0))","v":false},{"$f":"IF(book!E14=book!$O$4,1,IF(book!E14=book!$O$5,0.5))","v":false},0,null,null,"کتاب 9",{"$f":"IF(book!C14=book!$P$4,0,IF(book!C14=book!$P$5,1))","v":false},{"$f":"IF(book!E14=book!$O$4,1,IF(book!E14=book!$O$5,0.5))","v":false},{"$f":"IF(book!K14=book!$O$4,1,IF(book!K14=book!$O$5,1))","v":false},0]
["کتاب 10",{"$f":"IF(book!C15=book!$P$4,2,IF(book!C15=book!$P$5,0))","v":false},{"$f":"IF(book!E15=book!$O$4,1,IF(book!E15=book!$O$5,0.5))","v":false},0,null,null,"کتاب 10",{"$f":"IF(book!C15=book!$P$4,0,IF(book!C15=book!$P$5,1))","v":false},{"$f":"IF(book!E15=book!$O$4,1,IF(book!E15=book!$O$5,0.5))","v":false},{"$f":"IF(book!K15=book!$O$4,1,IF(book!K15=book!$O$5,1))","v":false},0]
["کتاب 11",{"$f":"IF(book!C16=book!$P$4,2,IF(book!C16=book!$P$5,0))","v":false},{"$f":"IF(book!E16=book!$O$4,1,IF(book!E16=book!$O$5,0.5))","v":false},0,null,null,"کتاب 11",{"$f":"IF(book!C16=book!$P$4,0,IF(book!C16=book!$P$5,1))","v":false},{"$f":"IF(book!E16=book!$O$4,1,IF(book!E16=book!$O$5,0.5))","v":false},{"$f":"IF(book!K16=book!$O$4,1,IF(book!K16=book!$O$5,1))","v":false},0]
["کتاب 12",{"$f":"IF(book!C17=book!$P$4,2,IF(book!C17=book!$P$5,0))","v":false},{"$f":"IF(book!E17=book!$O$4,1,IF(book!E17=book!$O$5,0.5))","v":false},0,null,null,"کتاب 12",{"$f":"IF(book!C17=book!$P$4,0,IF(book!C17=book!$P$5,1))","v":false},{"$f":"IF(book!E17=book!$O$4,1,IF(book!E17=book!$O$5,0.5))","v":false},{"$f":"IF(book!K17=book!$O$4,1,IF(book!K17=book!$O$5,1))","v":false},0]
["کتاب 13",{"$f":"IF(book!C18=book!$P$4,2,IF(book!C18=book!$P$5,0))","v":false},{"$f":"IF(book!E18=book!$O$4,1,IF(book!E18=book!$O$5,0.5))","v":false},0,null,null,"کتاب 13",{"$f":"IF(book!C18=book!$P$4,0,IF(book!C18=book!$P$5,1))","v":false},{"$f":"IF(book!E18=book!$O$4,1,IF(book!E18=book!$O$5,0.5))","v":false},{"$f":"IF(book!K18=book!$O$4,1,IF(book!K18=book!$O$5,1))","v":false},0]
["کتاب 14",{"$f":"IF(book!C19=book!$P$4,2,IF(book!C19=book!$P$5,0))","v":false},{"$f":"IF(book!E19=book!$O$4,1,IF(book!E19=book!$O$5,0.5))","v":false},0,null,null,"کتاب 14",{"$f":"IF(book!C19=book!$P$4,0,IF(book!C19=book!$P$5,1))","v":false},{"$f":"IF(book!E19=book!$O$4,1,IF(book!E19=book!$O$5,0.5))","v":false},{"$f":"IF(book!K19=book!$O$4,1,IF(book!K19=book!$O$5,1))","v":false},0]
["کتاب 15",{"$f":"IF(book!C20=book!$P$4,2,IF(book!C20=book!$P$5,0))","v":false},{"$f":"IF(book!E20=book!$O$4,1,IF(book!E20=book!$O$5,0.5))","v":false},0,null,null,"کتاب 15",{"$f":"IF(book!C20=book!$P$4,0,IF(book!C20=book!$P$5,1))","v":false},{"$f":"IF(book!E20=book!$O$4,1,IF(book!E20=book!$O$5,0.5))","v":false},{"$f":"IF(book!K20=book!$O$4,1,IF(book!K20=book!$O$5,1))","v":false},0]
["کتاب 16",{"$f":"IF(book!C21=book!$P$4,2,IF(book!C21=book!$P$5,0))","v":false},{"$f":"IF(book!E21=book!$O$4,1,IF(book!E21=book!$O$5,0.5))","v":false},0,null,null,"کتاب 16",{"$f":"IF(book!C21=book!$P$4,0,IF(book!C21=book!$P$5,1))","v":false},{"$f":"IF(book!E21=book!$O$4,1,IF(book!E21=book!$O$5,0.5))","v":false},{"$f":"IF(book!K21=book!$O$4,1,IF(book!K21=book!$O$5,1))","v":false},0]
["کتاب 17",{"$f":"IF(book!C22=book!$P$4,2,IF(book!C22=book!$P$5,0))","v":false},{"$f":"IF(book!E22=book!$O$4,1,IF(book!E22=book!$O$5,0.5))","v":false},0,null,null,"کتاب 17",{"$f":"IF(book!C22=book!$P$4,0,IF(book!C22=book!$P$5,1))","v":false},{"$f":"IF(book!E22=book!$O$4,1,IF(book!E22=book!$O$5,0.5))","v":false},{"$f":"IF(book!K22=book!$O$4,1,IF(book!K22=book!$O$5,1))","v":false},0]
["کتاب 18",{"$f":"IF(book!C23=book!$P$4,2,IF(book!C23=book!$P$5,0))","v":false},{"$f":"IF(book!E23=book!$O$4,1,IF(book!E23=book!$O$5,0.5))","v":false},0,null,null,"کتاب 18",{"$f":"IF(book!C23=book!$P$4,0,IF(book!C23=book!$P$5,1))","v":false},{"$f":"IF(book!E23=book!$O$4,1,IF(book!E23=book!$O$5,0.5))","v":false},{"$f":"IF(book!K23=book!$O$4,1,IF(book!K23=book!$O$5,1))","v":false},0]
["کتاب 19",{"$f":"IF(book!C24=book!$P$4,2,IF(book!C24=book!$P$5,0))","v":false},{"$f":"IF(book!E24=book!$O$4,1,IF(book!E24=book!$O$5,0.5))","v":false},0,null,null,"کتاب 19",{"$f":"IF(book!C24=book!$P$4,0,IF(book!C24=book!$P$5,1))","v":false},{"$f":"IF(book!E24=book!$O$4,1,IF(book!E24=book!$O$5,0.5))","v":false},{"$f":"IF(book!K24=book!$O$4,1,IF(book!K24=book!$O$5,1))","v":false},0]
["کتاب 20",{"$f":"IF(book!C25=book!$P$4,2,IF(book!C25=book!$P$5,0))","v":false},{"$f":"IF(book!E25=book!$O$4,1,IF(book!E25=book!$O$5,0.5))","v":false},0,null,null,"کتاب 20",{"$f":"IF(book!C25=book!$P$4,0,IF(book!C25=book!$P$5,1))","v":false},{"$f":"IF(book!E25=book!$O$4,1,IF(book!E25=book!$O$5,0.5))","v":false},{"$f":"IF(book!K25=book!$O$4,1,IF(book!K25=book!$O$5,1))","v":false},0]
["کتاب 21",{"$f":"IF(book!C26=book!$P$4,2,IF(book!C26=book!$P$5,0))","v":false},{"$f":"IF(book!E26=book!$O$4,1,IF(book!E26=book!$O$5,0.5))","v":false},0,null,null,"کتاب 21",{"$f":"IF(book!C26=book!$P$4,0,IF(book!C26=book!$P$5,1))","v":false},{"$f":"IF(book!E26=book!$O$4,1,IF(book!E26=book!$O$5,0.5))","v":false},{"$f":"IF(book!K26=book!$O$4,1,IF(book!K26=book!$O$5,1))","v":false},0]
["کتاب 22",{"$f":"IF(book!C27=book!$P$4,2,IF(book!C27=book!$P$5,0))","v":false},{"$f":"IF(book!E27=book!$O$4,1,IF(book!E27=book!$O$5,0.5))","v":false},0,null,null,"کتاب 22",{"$f":"IF(book!C27=book!$P$4,0,IF(book!C27=book!$P$5,1))","v":false},{"$f":"IF(book!E27=book!$O$4,1,IF(book!E27=book!$O$5,0.5))","v":false},{"$f":"IF(book!K27=book!$O$4,1,IF(book!K27=book!$O$5,1))","v":false},0]
["کتاب 23",{"$f":"IF(book!C28=book!$P$4,2,IF(book!C28=book!$P$5,0))","v":false},{"$f":"IF(book!E28=book!$O$4,1,IF(book!E28=book!$O$5,0.5))","v":false},0,null,null,"کتاب 23",{"$f":"IF(book!C28=book!$P$4,0,IF(book!C28=book!$P$5,1))","v":false},{"$f":"IF(book!E28=book!$O$4,1,IF(book!E28=book!$O$5,0.5))","v":false},{"$f":"IF(book!K28=book!$O$4,1,IF(book!K28=book!$O$5,1))","v":false},0]
[]
[null,null,null,{"$f":"SUM(D3:D25)","v":0},null,null,null,null,null,null,{"$f":"SUM(K3:K25)","v":0}]
[]
[]
[null,null,null,null,null,"کل نمره تالیف و ترجمه کتاب"]
[]
[]
[null,null,null,null,null,{"$f":"F3+L3","v":0}]

{"sheet":"tarh","index":13,"n_rows":103,"n_cols":8,"rows_kept":103,"cut":false,"hidden":false,"merged":[]}
[]
["طرح 1",{"$f":"IF(proposal!E5=proposal!$N$3,1,IF(proposal!E5=proposal!$N$4,0.5))","v":false},{"$f":"IF(proposal!F5=proposal!$P$3,1,IF(proposal!F5=proposal!$P$4,2,IF(proposal!F5=proposal!$P$5,3)))","v":false},null,{"$f":"B2*C2","v":0},null,null,{"$f":"IF(E103=0,0,IF(E103=0.5,0.5,IF(E103=1,1,IF(E103=1.5,1.5,IF(E103=2,2,IF(E103=2.5,2.5,IF(E103=3,3,IF(E103=3.5,3.5,IF(E103=4,4,IF(E103=4.5,4.5,IF(E103=5,5,IF(E103=5.5,5.5,IF(E103=6,6,IF(E103>6,6))))))))))))))","v":0}]
["طرح 2",{"$f":"IF(proposal!E6=proposal!$N$3,1,IF(proposal!E6=proposal!$N$4,0.5))","v":false},{"$f":"IF(proposal!F6=proposal!$P$3,1,IF(proposal!F6=proposal!$P$4,2,IF(proposal!F6=proposal!$P$5,3)))","v":false},null,{"$f":"B3*C3","v":0}]
["طرح 3",{"$f":"IF(proposal!E7=proposal!$N$3,1,IF(proposal!E7=proposal!$N$4,0.5))","v":false},{"$f":"IF(proposal!F7=proposal!$P$3,1,IF(proposal!F7=proposal!$P$4,2,IF(proposal!F7=proposal!$P$5,3)))","v":false},null,0]
["طرح 4",{"$f":"IF(proposal!E8=proposal!$N$3,1,IF(proposal!E8=proposal!$N$4,0.5))","v":false},{"$f":"IF(proposal!F8=proposal!$P$3,1,IF(proposal!F8=proposal!$P$4,2,IF(proposal!F8=proposal!$P$5,3)))","v":false},null,0]
["طرح 5",{"$f":"IF(proposal!E9=proposal!$N$3,1,IF(proposal!E9=proposal!$N$4,0.5))","v":false},{"$f":"IF(proposal!F9=proposal!$P$3,1,IF(proposal!F9=proposal!$P$4,2,IF(proposal!F9=proposal!$P$5,3)))","v":false},null,0]
["طرح 6",{"$f":"IF(proposal!E10=proposal!$N$3,1,IF(proposal!E10=proposal!$N$4,0.5))","v":false},{"$f":"IF(proposal!F10=proposal!$P$3,1,IF(proposal!F10=proposal!$P$4,2,IF(proposal!F10=proposal!$P$5,3)))","v":false},null,0]
["طرح 7",{"$f":"IF(proposal!E11=proposal!$N$3,1,IF(proposal!E11=proposal!$N$4,0.5))","v":false},{"$f":"IF(proposal!F11=proposal!$P$3,1,IF(proposal!F11=proposal!$P$4,2,IF(proposal!F11=proposal!$P$5,3)))","v":false},null,0]
["طرح 8",{"$f":"IF(proposal!E12=proposal!$N$3,1,IF(proposal!E12=proposal!$N$4,0.5))","v":false},{"$f":"IF(proposal!F12=proposal!$P$3,1,IF(proposal!F12=proposal!$P$4,2,IF(proposal!F12=proposal!$P$5,3)))","v":false},null,0]
["طرح 9",{"$f":"IF(proposal!E13=proposal!$N$3,1,IF(proposal!E13=proposal!$N$4,0.5))","v":false},{"$f":"IF(proposal!F13=proposal!$P$3,1,IF(proposal!F13=proposal!$P$4,2,IF(proposal!F13=proposal!$P$5,3)))","v":false},null,0]
["طرح 10",{"$f":"IF(proposal!E14=proposal!$N$3,1,IF(proposal!E14=proposal!$N$4,0.5))","v":false},{"$f":"IF(proposal!F14=proposal!$P$3,1,IF(proposal!F14=proposal!$P$4,2,IF(proposal!F14=proposal!$P$5,3)))","v":false},null,0]
["طرح 11",{"$f":"IF(proposal!E15=proposal!$N$3,1,IF(proposal!E15=proposal!$N$4,0.5))","v":false},{"$f":"IF(proposal!F15=proposal!$P$3,1,IF(proposal!F15=proposal!$P$4,2,IF(proposal!F15=proposal!$P$5,3)))","v":false},null,0]
["طرح 12",{"$f":"IF(proposal!E16=proposal!$N$3,1,IF(proposal!E16=proposal!$N$4,0.5))","v":false},{"$f":"IF(proposal!F16=proposal!$P$3,1,IF(proposal!F16=proposal!$P$4,2,IF(proposal!F16=proposal!$P$5,3)))","v":false},null,0]
["طرح 13",{"$f":"IF(proposal!E17=proposal!$N$3,1,IF(proposal!E17=proposal!$N$4,0.5))","v":false},{"$f":"IF(proposal!F17=proposal!$P$3,1,IF(proposal!F17=proposal!$P$4,2,IF(proposal!F17=proposal!$P$5,3)))","v":false},null,0]
["طرح 14",{"$f":"IF(proposal!E18=proposal!$N$3,1,IF(proposal!E18=proposal!$N$4,0.5))","v":false},{"$f":"IF(proposal!F18=proposal!$P$3,1,IF(proposal!F18=proposal!$P$4,2,IF(proposal!F18=proposal!$P$5,3)))","v":false},null,0]
["طرح 15",{"$f":"IF(proposal!E19=proposal!$N$3,1,IF(proposal!E19=proposal!$N$4,0.5))","v":false},{"$f":"IF(proposal!F19=proposal!$P$3,1,IF(proposal!F19=proposal!$P$4,2,IF(proposal!F19=proposal!$P$5,3)))","v":false},null,0]
["طرح 16",{"$f":"IF(proposal!E20=proposal!$N$3,1,IF(proposal!E20=proposal!$N$4,0.5))","v":false},{"$f":"IF(proposal!F20=proposal!$P$3,1,IF(proposal!F20=proposal!$P$4,2,IF(proposal!F20=proposal!$P$5,3)))","v":false},null,0]
["طرح 17",{"$f":"IF(proposal!E21=proposal!$N$3,1,IF(proposal!E21=proposal!$N$4,0.5))","v":false},{"$f":"IF(proposal!F21=proposal!$P$3,1,IF(proposal!F21=proposal!$P$4,2,IF(proposal!F21=proposal!$P$5,3)))","v":false},null,0]
["طرح 18",{"$f":"IF(proposal!E22=proposal!$N$3,1,IF(proposal!E22=proposal!$N$4,0.5))","v":false},{"$f":"IF(proposal!F22=proposal!$P$3,1,IF(proposal!F22=proposal!$P$4,2,IF(proposal!F22=proposal!$P$5,3)))","v":false},null,0]
["طرح 19",{"$f":"IF(proposal!E23=proposal!$N$3,1,IF(proposal!E23=proposal!$N$4,0.5))","v":false},{"$f":"IF(proposal!F23=proposal!$P$3,1,IF(proposal!F23=proposal!$P$4,2,IF(proposal!F23=proposal!$P$5,3)))","v":false},null,0]
["طرح 20",{"$f":"IF(proposal!E24=proposal!$N$3,1,IF(proposal!E24=proposal!$N$4,0.5))","v":false},{"$f":"IF(proposal!F24=proposal!$P$3,1,IF(proposal!F24=proposal!$P$4,2,IF(proposal!F24=proposal!$P$5,3)))","v":false},null,0]
["طرح 21",{"$f":"IF(proposal!E25=proposal!$N$3,1,IF(proposal!E25=proposal!$N$4,0.5))","v":false},{"$f":"IF(proposal!F25=proposal!$P$3,1,IF(proposal!F25=proposal!$P$4,2,IF(proposal!F25=proposal!$P$5,3)))","v":false},null,0]
["طرح 22",{"$f":"IF(proposal!E26=proposal!$N$3,1,IF(proposal!E26=proposal!$N$4,0.5))","v":false},{"$f":"IF(proposal!F26=proposal!$P$3,1,IF(proposal!F26=proposal!$P$4,2,IF(proposal!F26=proposal!$P$5,3)))","v":false},null,0]
["طرح 23",{"$f":"IF(proposal!E27=proposal!$N$3,1,IF(proposal!E27=proposal!$N$4,0.5))","v":false},{"$f":"IF(proposal!F27=proposal!$P$3,1,IF(proposal!F27=proposal!$P$4,2,IF(proposal!F27=proposal!$P$5,3)))","v":false},null,0]
["طرح 24",{"$f":"IF(proposal!E28=proposal!$N$3,1,IF(proposal!E28=proposal!$N$4,0.5))","v":false},{"$f":"IF(proposal!F28=proposal!$P$3,1,IF(proposal!F28=proposal!$P$4,2,IF(proposal!F28=proposal!$P$5,3)))","v":false},null,0]
["طرح 25",{"$f":"IF(proposal!E29=proposal!$N$3,1,IF(proposal!E29=proposal!$N$4,0.5))","v":false},{"$f":"IF(proposal!F29=proposal!$P$3,1,IF(proposal!F29=proposal!$P$4,2,IF(proposal!F29=proposal!$P$5,3)))","v":false},null,0]
["طرح 26",{"$f":"IF(proposal!E30=proposal!$N$3,1,IF(proposal!E30=proposal!$N$4,0.5))","v":false},{"$f":"IF(proposal!F30=proposal!$P$3,1,IF(proposal!F30=proposal!$P$4,2,IF(proposal!F30=proposal!$P$5,3)))","v":false},null,0]
["طرح 27",{"$f":"IF(proposal!E31=proposal!$N$3,1,IF(proposal!E31=proposal!$N$4,0.5))","v":false},{"$f":"IF(proposal!F31=proposal!$P$3,1,IF(proposal!F31=proposal!$P$4,2,IF(proposal!F31=proposal!$P$5,3)))","v":false},null,0]
["طرح 28",{"$f":"IF(proposal!E32=proposal!$N$3,1,IF(proposal!E32=proposal!$N$4,0.5))","v":false},{"$f":"IF(proposal!F32=proposal!$P$3,1,IF(proposal!F32=proposal!$P$4,2,IF(proposal!F32=proposal!$P$5,3)))","v":false},null,0]
["طرح 29",{"$f":"IF(proposal!E33=proposal!$N$3,1,IF(proposal!E33=proposal!$N$4,0.5))","v":false},{"$f":"IF(proposal!F33=proposal!$P$3,1,IF(proposal!F33=proposal!$P$4,2,IF(proposal!F33=proposal!$P$5,3)))","v":false},null,0]
["طرح 30",{"$f":"IF(proposal!E34=proposal!$N$3,1,IF(proposal!E34=proposal!$N$4,0.5))","v":false},{"$f":"IF(proposal!F34=proposal!$P$3,1,IF(proposal!F34=proposal!$P$4,2,IF(proposal!F34=proposal!$P$5,3)))","v":false},null,0]
["طرح 31",{"$f":"IF(proposal!E35=proposal!$N$3,1,IF(proposal!E35=proposal!$N$4,0.5))","v":false},{"$f":"IF(proposal!F35=proposal!$P$3,1,IF(proposal!F35=proposal!$P$4,2,IF(proposal!F35=proposal!$P$5,3)))","v":false},null,0]
["طرح 32",{"$f":"IF(proposal!E36=proposal!$N$3,1,IF(proposal!E36=proposal!$N$4,0.5))","v":false},{"$f":"IF(proposal!F36=proposal!$P$3,1,IF(proposal!F36=proposal!$P$4,2,IF(proposal!F36=proposal!$P$5,3)))","v":false},null,0]
["طرح 33",{"$f":"IF(proposal!E37=proposal!$N$3,1,IF(proposal!E37=proposal!$N$4,0.5))","v":false},{"$f":"IF(proposal!F37=proposal!$P$3,1,IF(proposal!F37=proposal!$P$4,2,IF(proposal!F37=proposal!$P$5,3)))","v":false},null,0]
["طرح 34",{"$f":"IF(proposal!E38=proposal!$N$3,1,IF(proposal!E38=proposal!$N$4,0.5))","v":false},{"$f":"IF(proposal!F38=proposal!$P$3,1,IF(proposal!F38=proposal!$P$4,2,IF(proposal!F38=proposal!$P$5,3)))","v":false},null,0]
["طرح 35",{"$f":"IF(proposal!E39=proposal!$N$3,1,IF(proposal!E39=proposal!$N$4,0.5))","v":false},{"$f":"IF(proposal!F39=proposal!$P$3,1,IF(proposal!F39=proposal!$P$4,2,IF(proposal!F39=proposal!$P$5,3)))","v":false},null,0]
["طرح 36",{"$f":"IF(proposal!E40=proposal!$N$3,1,IF(proposal!E40=proposal!$N$4,0.5))","v":false},{"$f":"IF(proposal!F40=proposal!$P$3,1,IF(proposal!F40=proposal!$P$4,2,IF(proposal!F40=proposal!$P$5,3)))","v":false},null,0]
["طرح 37",{"$f":"IF(proposal!E41=proposal!$N$3,1,IF(proposal!E41=proposal!$N$4,0.5))","v":false},{"$f":"IF(proposal!F41=proposal!$P$3,1,IF(proposal!F41=proposal!$P$4,2,IF(proposal!F41=proposal!$P$5,3)))","v":false},null,0]
["طرح 38",{"$f":"IF(proposal!E42=proposal!$N$3,1,IF(proposal!E42=proposal!$N$4,0.5))","v":false},{"$f":"IF(proposal!F42=proposal!$P$3,1,IF(proposal!F42=proposal!$P$4,2,IF(proposal!F42=proposal!$P$5,3)))","v":false},null,0]
["طرح 39",{"$f":"IF(proposal!E43=proposal!$N$3,1,IF(proposal!E43=proposal!$N$4,0.5))","v":false},{"$f":"IF(proposal!F43=proposal!$P$3,1,IF(proposal!F43=proposal!$P$4,2,IF(proposal!F43=proposal!$P$5,3)))","v":false},null,0]
["طرح 40",{"$f":"IF(proposal!E44=proposal!$N$3,1,IF(proposal!E44=proposal!$N$4,0.5))","v":false},{"$f":"IF(proposal!F44=proposal!$P$3,1,IF(proposal!F44=proposal!$P$4,2,IF(proposal!F44=proposal!$P$5,3)))","v":false},null,0]
["طرح 41",{"$f":"IF(proposal!E45=proposal!$N$3,1,IF(proposal!E45=proposal!$N$4,0.5))","v":false},{"$f":"IF(proposal!F45=proposal!$P$3,1,IF(proposal!F45=proposal!$P$4,2,IF(proposal!F45=proposal!$P$5,3)))","v":false},null,0]
["طرح 42",{"$f":"IF(proposal!E46=proposal!$N$3,1,IF(proposal!E46=proposal!$N$4,0.5))","v":false},{"$f":"IF(proposal!F46=proposal!$P$3,1,IF(proposal!F46=proposal!$P$4,2,IF(proposal!F46=proposal!$P$5,3)))","v":false},null,0]
["طرح 43",{"$f":"IF(proposal!E47=proposal!$N$3,1,IF(proposal!E47=proposal!$N$4,0.5))","v":false},{"$f":"IF(proposal!F47=proposal!$P$3,1,IF(proposal!F47=proposal!$P$4,2,IF(proposal!F47=proposal!$P$5,3)))","v":false},null,0]
["طرح 44",{"$f":"IF(proposal!E48=proposal!$N$3,1,IF(proposal!E48=proposal!$N$4,0.5))","v":false},{"$f":"IF(proposal!F48=proposal!$P$3,1,IF(proposal!F48=proposal!$P$4,2,IF(proposal!F48=proposal!$P$5,3)))","v":false},null,0]
["طرح 45",{"$f":"IF(proposal!E49=proposal!$N$3,1,IF(proposal!E49=proposal!$N$4,0.5))","v":false},{"$f":"IF(proposal!F49=proposal!$P$3,1,IF(proposal!F49=proposal!$P$4,2,IF(proposal!F49=proposal!$P$5,3)))","v":false},null,0]
["طرح 46",{"$f":"IF(proposal!E50=proposal!$N$3,1,IF(proposal!E50=proposal!$N$4,0.5))","v":false},{"$f":"IF(proposal!F50=proposal!$P$3,1,IF(proposal!F50=proposal!$P$4,2,IF(proposal!F50=proposal!$P$5,3)))","v":false},null,0]
["طرح 47",{"$f":"IF(proposal!E51=proposal!$N$3,1,IF(proposal!E51=proposal!$N$4,0.5))","v":false},{"$f":"IF(proposal!F51=proposal!$P$3,1,IF(proposal!F51=proposal!$P$4,2,IF(proposal!F51=proposal!$P$5,3)))","v":false},null,0]
["طرح 48",{"$f":"IF(proposal!E52=proposal!$N$3,1,IF(proposal!E52=proposal!$N$4,0.5))","v":false},{"$f":"IF(proposal!F52=proposal!$P$3,1,IF(proposal!F52=proposal!$P$4,2,IF(proposal!F52=proposal!$P$5,3)))","v":false},null,0]
["طرح 49",{"$f":"IF(proposal!E53=proposal!$N$3,1,IF(proposal!E53=proposal!$N$4,0.5))","v":false},{"$f":"IF(proposal!F53=proposal!$P$3,1,IF(proposal!F53=proposal!$P$4,2,IF(proposal!F53=proposal!$P$5,3)))","v":false},null,0]
["طرح 50",{"$f":"IF(proposal!E54=proposal!$N$3,1,IF(proposal!E54=proposal!$N$4,0.5))","v":false},{"$f":"IF(proposal!F54=proposal!$P$3,1,IF(proposal!F54=proposal!$P$4,2,IF(proposal!F54=proposal!$P$5,3)))","v":false},null,0]
["طرح 51",{"$f":"IF(proposal!E55=proposal!$N$3,1,IF(proposal!E55=proposal!$N$4,0.5))","v":false},{"$f":"IF(proposal!F55=proposal!$P$3,1,IF(proposal!F55=proposal!$P$4,2,IF(proposal!F55=proposal!$P$5,3)))","v":false},null,0]
["طرح 52",{"$f":"IF(proposal!E56=proposal!$N$3,1,IF(proposal!E56=proposal!$N$4,0.5))","v":false},{"$f":"IF(proposal!F56=proposal!$P$3,1,IF(proposal!F56=proposal!$P$4,2,IF(proposal!F56=proposal!$P$5,3)))","v":false},null,0]
["طرح 53",{"$f":"IF(proposal!E57=proposal!$N$3,1,IF(proposal!E57=proposal!$N$4,0.5))","v":false},{"$f":"IF(proposal!F57=proposal!$P$3,1,IF(proposal!F57=proposal!$P$4,2,IF(proposal!F57=proposal!$P$5,3)))","v":false},null,0]
["طرح 54",{"$f":"IF(proposal!E58=proposal!$N$3,1,IF(proposal!E58=proposal!$N$4,0.5))","v":false},{"$f":"IF(proposal!F58=proposal!$P$3,1,IF(proposal!F58=proposal!$P$4,2,IF(proposal!F58=proposal!$P$5,3)))","v":false},null,0]
["طرح 55",{"$f":"IF(proposal!E59=proposal!$N$3,1,IF(proposal!E59=proposal!$N$4,0.5))","v":false},{"$f":"IF(proposal!F59=proposal!$P$3,1,IF(proposal!F59=proposal!$P$4,2,IF(proposal!F59=proposal!$P$5,3)))","v":false},null,0]
["طرح 56",{"$f":"IF(proposal!E60=proposal!$N$3,1,IF(proposal!E60=proposal!$N$4,0.5))","v":false},{"$f":"IF(proposal!F60=proposal!$P$3,1,IF(proposal!F60=proposal!$P$4,2,IF(proposal!F60=proposal!$P$5,3)))","v":false},null,0]
["طرح 57",{"$f":"IF(proposal!E61=proposal!$N$3,1,IF(proposal!E61=proposal!$N$4,0.5))","v":false},{"$f":"IF(proposal!F61=proposal!$P$3,1,IF(proposal!F61=proposal!$P$4,2,IF(proposal!F61=proposal!$P$5,3)))","v":false},null,0]
["طرح 58",{"$f":"IF(proposal!E62=proposal!$N$3,1,IF(proposal!E62=proposal!$N$4,0.5))","v":false},{"$f":"IF(proposal!F62=proposal!$P$3,1,IF(proposal!F62=proposal!$P$4,2,IF(proposal!F62=proposal!$P$5,3)))","v":false},null,0]
["طرح 59",{"$f":"IF(proposal!E63=proposal!$N$3,1,IF(proposal!E63=proposal!$N$4,0.5))","v":false},{"$f":"IF(proposal!F63=proposal!$P$3,1,IF(proposal!F63=proposal!$P$4,2,IF(proposal!F63=proposal!$P$5,3)))","v":false},null,0]
["طرح 60",{"$f":"IF(proposal!E64=proposal!$N$3,1,IF(proposal!E64=proposal!$N$4,0.5))","v":false},{"$f":"IF(proposal!F64=proposal!$P$3,1,IF(proposal!F64=proposal!$P$4,2,IF(proposal!F64=proposal!$P$5,3)))","v":false},null,0]
["طرح 61",{"$f":"IF(proposal!E65=proposal!$N$3,1,IF(proposal!E65=proposal!$N$4,0.5))","v":false},{"$f":"IF(proposal!F65=proposal!$P$3,1,IF(proposal!F65=proposal!$P$4,2,IF(proposal!F65=proposal!$P$5,3)))","v":false},null,0]
["طرح 62",{"$f":"IF(proposal!E66=proposal!$N$3,1,IF(proposal!E66=proposal!$N$4,0.5))","v":false},{"$f":"IF(proposal!F66=proposal!$P$3,1,IF(proposal!F66=proposal!$P$4,2,IF(proposal!F66=proposal!$P$5,3)))","v":false},null,0]
["طرح 63",{"$f":"IF(proposal!E67=proposal!$N$3,1,IF(proposal!E67=proposal!$N$4,0.5))","v":false},{"$f":"IF(proposal!F67=proposal!$P$3,1,IF(proposal!F67=proposal!$P$4,2,IF(proposal!F67=proposal!$P$5,3)))","v":false},null,0]
["طرح 64",{"$f":"IF(proposal!E68=proposal!$N$3,1,IF(proposal!E68=proposal!$N$4,0.5))","v":false},{"$f":"IF(proposal!F68=proposal!$P$3,1,IF(proposal!F68=proposal!$P$4,2,IF(proposal!F68=proposal!$P$5,3)))","v":false},null,0]
["طرح 65",{"$f":"IF(proposal!E69=proposal!$N$3,1,IF(proposal!E69=proposal!$N$4,0.5))","v":false},{"$f":"IF(proposal!F69=proposal!$P$3,1,IF(proposal!F69=proposal!$P$4,2,IF(proposal!F69=proposal!$P$5,3)))","v":false},null,0]
["طرح 66",{"$f":"IF(proposal!E70=proposal!$N$3,1,IF(proposal!E70=proposal!$N$4,0.5))","v":false},{"$f":"IF(proposal!F70=proposal!$P$3,1,IF(proposal!F70=proposal!$P$4,2,IF(proposal!F70=proposal!$P$5,3)))","v":false},null,{"$f":"B67*C67","v":0}]
["طرح 67",{"$f":"IF(proposal!E71=proposal!$N$3,1,IF(proposal!E71=proposal!$N$4,0.5))","v":false},{"$f":"IF(proposal!F71=proposal!$P$3,1,IF(proposal!F71=proposal!$P$4,2,IF(proposal!F71=proposal!$P$5,3)))","v":false},null,0]
["طرح 68",{"$f":"IF(proposal!E72=proposal!$N$3,1,IF(proposal!E72=proposal!$N$4,0.5))","v":false},{"$f":"IF(proposal!F72=proposal!$P$3,1,IF(proposal!F72=proposal!$P$4,2,IF(proposal!F72=proposal!$P$5,3)))","v":false},null,0]
["طرح 69",{"$f":"IF(proposal!E73=proposal!$N$3,1,IF(proposal!E73=proposal!$N$4,0.5))","v":false},{"$f":"IF(proposal!F73=proposal!$P$3,1,IF(proposal!F73=proposal!$P$4,2,IF(proposal!F73=proposal!$P$5,3)))","v":false},null,0]
["طرح 70",{"$f":"IF(proposal!E74=proposal!$N$3,1,IF(proposal!E74=proposal!$N$4,0.5))","v":false},{"$f":"IF(proposal!F74=proposal!$P$3,1,IF(proposal!F74=proposal!$P$4,2,IF(proposal!F74=proposal!$P$5,3)))","v":false},null,0]
["طرح 71",{"$f":"IF(proposal!E75=proposal!$N$3,1,IF(proposal!E75=proposal!$N$4,0.5))","v":false},{"$f":"IF(proposal!F75=proposal!$P$3,1,IF(proposal!F75=proposal!$P$4,2,IF(proposal!F75=proposal!$P$5,3)))","v":false},null,0]
["طرح 72",{"$f":"IF(proposal!E76=proposal!$N$3,1,IF(proposal!E76=proposal!$N$4,0.5))","v":false},{"$f":"IF(proposal!F76=proposal!$P$3,1,IF(proposal!F76=proposal!$P$4,2,IF(proposal!F76=proposal!$P$5,3)))","v":false},null,0]
["طرح 73",{"$f":"IF(proposal!E77=proposal!$N$3,1,IF(proposal!E77=proposal!$N$4,0.5))","v":false},{"$f":"IF(proposal!F77=proposal!$P$3,1,IF(proposal!F77=proposal!$P$4,2,IF(proposal!F77=proposal!$P$5,3)))","v":false},null,0]
["طرح 74",{"$f":"IF(proposal!E78=proposal!$N$3,1,IF(proposal!E78=proposal!$N$4,0.5))","v":false},{"$f":"IF(proposal!F78=proposal!$P$3,1,IF(proposal!F78=proposal!$P$4,2,IF(proposal!F78=proposal!$P$5,3)))","v":false},null,0]
["طرح 75",{"$f":"IF(proposal!E79=proposal!$N$3,1,IF(proposal!E79=proposal!$N$4,0.5))","v":false},{"$f":"IF(proposal!F79=proposal!$P$3,1,IF(proposal!F79=proposal!$P$4,2,IF(proposal!F79=proposal!$P$5,3)))","v":false},null,0]
["طرح 76",{"$f":"IF(proposal!E80=proposal!$N$3,1,IF(proposal!E80=proposal!$N$4,0.5))","v":false},{"$f":"IF(proposal!F80=proposal!$P$3,1,IF(proposal!F80=proposal!$P$4,2,IF(proposal!F80=proposal!$P$5,3)))","v":false},null,0]
["طرح 77",{"$f":"IF(proposal!E81=proposal!$N$3,1,IF(proposal!E81=proposal!$N$4,0.5))","v":false},{"$f":"IF(proposal!F81=proposal!$P$3,1,IF(proposal!F81=proposal!$P$4,2,IF(proposal!F81=proposal!$P$5,3)))","v":false},null,0]
["طرح 78",{"$f":"IF(proposal!E82=proposal!$N$3,1,IF(proposal!E82=proposal!$N$4,0.5))","v":false},{"$f":"IF(proposal!F82=proposal!$P$3,1,IF(proposal!F82=proposal!$P$4,2,IF(proposal!F82=proposal!$P$5,3)))","v":false},null,0]
["طرح 79",{"$f":"IF(proposal!E83=proposal!$N$3,1,IF(proposal!E83=proposal!$N$4,0.5))","v":false},{"$f":"IF(proposal!F83=proposal!$P$3,1,IF(proposal!F83=proposal!$P$4,2,IF(proposal!F83=proposal!$P$5,3)))","v":false},null,0]
["طرح 80",{"$f":"IF(proposal!E84=proposal!$N$3,1,IF(proposal!E84=proposal!$N$4,0.5))","v":false},{"$f":"IF(proposal!F84=proposal!$P$3,1,IF(proposal!F84=proposal!$P$4,2,IF(proposal!F84=proposal!$P$5,3)))","v":false},null,0]
["طرح 81",{"$f":"IF(proposal!E85=proposal!$N$3,1,IF(proposal!E85=proposal!$N$4,0.5))","v":false},{"$f":"IF(proposal!F85=proposal!$P$3,1,IF(proposal!F85=proposal!$P$4,2,IF(proposal!F85=proposal!$P$5,3)))","v":false},null,0]
["طرح 82",{"$f":"IF(proposal!E86=proposal!$N$3,1,IF(proposal!E86=proposal!$N$4,0.5))","v":false},{"$f":"IF(proposal!F86=proposal!$P$3,1,IF(proposal!F86=proposal!$P$4,2,IF(proposal!F86=proposal!$P$5,3)))","v":false},null,0]
["طرح 83",{"$f":"IF(proposal!E87=proposal!$N$3,1,IF(proposal!E87=proposal!$N$4,0.5))","v":false},{"$f":"IF(proposal!F87=proposal!$P$3,1,IF(proposal!F87=proposal!$P$4,2,IF(proposal!F87=proposal!$P$5,3)))","v":false},null,0]
["طرح 84",{"$f":"IF(proposal!E88=proposal!$N$3,1,IF(proposal!E88=proposal!$N$4,0.5))","v":false},{"$f":"IF(proposal!F88=proposal!$P$3,1,IF(proposal!F88=proposal!$P$4,2,IF(proposal!F88=proposal!$P$5,3)))","v":false},null,0]
["طرح 85",{"$f":"IF(proposal!E89=proposal!$N$3,1,IF(proposal!E89=proposal!$N$4,0.5))","v":false},{"$f":"IF(proposal!F89=proposal!$P$3,1,IF(proposal!F89=proposal!$P$4,2,IF(proposal!F89=proposal!$P$5,3)))","v":false},null,0]
["طرح 86",{"$f":"IF(proposal!E90=proposal!$N$3,1,IF(proposal!E90=proposal!$N$4,0.5))","v":false},{"$f":"IF(proposal!F90=proposal!$P$3,1,IF(proposal!F90=proposal!$P$4,2,IF(proposal!F90=proposal!$P$5,3)))","v":false},null,0]
["طرح 87",{"$f":"IF(proposal!E91=proposal!$N$3,1,IF(proposal!E91=proposal!$N$4,0.5))","v":false},{"$f":"IF(proposal!F91=proposal!$P$3,1,IF(proposal!F91=proposal!$P$4,2,IF(proposal!F91=proposal!$P$5,3)))","v":false},null,0]
["طرح 88",{"$f":"IF(proposal!E92=proposal!$N$3,1,IF(proposal!E92=proposal!$N$4,0.5))","v":false},{"$f":"IF(proposal!F92=proposal!$P$3,1,IF(proposal!F92=proposal!$P$4,2,IF(proposal!F92=proposal!$P$5,3)))","v":false},null,0]
["طرح 89",{"$f":"IF(proposal!E93=proposal!$N$3,1,IF(proposal!E93=proposal!$N$4,0.5))","v":false},{"$f":"IF(proposal!F93=proposal!$P$3,1,IF(proposal!F93=proposal!$P$4,2,IF(proposal!F93=proposal!$P$5,3)))","v":false},null,0]
["طرح 90",{"$f":"IF(proposal!E94=proposal!$N$3,1,IF(proposal!E94=proposal!$N$4,0.5))","v":false},{"$f":"IF(proposal!F94=proposal!$P$3,1,IF(proposal!F94=proposal!$P$4,2,IF(proposal!F94=proposal!$P$5,3)))","v":false},null,0]
["طرح 91",{"$f":"IF(proposal!E95=proposal!$N$3,1,IF(proposal!E95=proposal!$N$4,0.5))","v":false},{"$f":"IF(proposal!F95=proposal!$P$3,1,IF(proposal!F95=proposal!$P$4,2,IF(proposal!F95=proposal!$P$5,3)))","v":false},null,0]
["طرح 92",{"$f":"IF(proposal!E96=proposal!$N$3,1,IF(proposal!E96=proposal!$N$4,0.5))","v":false},{"$f":"IF(proposal!F96=proposal!$P$3,1,IF(proposal!F96=proposal!$P$4,2,IF(proposal!F96=proposal!$P$5,3)))","v":false},null,0]
["طرح 93",{"$f":"IF(proposal!E97=proposal!$N$3,1,IF(proposal!E97=proposal!$N$4,0.5))","v":false},{"$f":"IF(proposal!F97=proposal!$P$3,1,IF(proposal!F97=proposal!$P$4,2,IF(proposal!F97=proposal!$P$5,3)))","v":false},null,0]
["طرح 94",{"$f":"IF(proposal!E98=proposal!$N$3,1,IF(proposal!E98=proposal!$N$4,0.5))","v":false},{"$f":"IF(proposal!F98=proposal!$P$3,1,IF(proposal!F98=proposal!$P$4,2,IF(proposal!F98=proposal!$P$5,3)))","v":false},null,0]
["طرح 95",{"$f":"IF(proposal!E99=proposal!$N$3,1,IF(proposal!E99=proposal!$N$4,0.5))","v":false},{"$f":"IF(proposal!F99=proposal!$P$3,1,IF(proposal!F99=proposal!$P$4,2,IF(proposal!F99=proposal!$P$5,3)))","v":false},null,0]
["طرح 96",{"$f":"IF(proposal!E100=proposal!$N$3,1,IF(proposal!E100=proposal!$N$4,0.5))","v":false},{"$f":"IF(proposal!F100=proposal!$P$3,1,IF(proposal!F100=proposal!$P$4,2,IF(proposal!F100=proposal!$P$5,3)))","v":false},null,0]
["طرح 97",{"$f":"IF(proposal!E101=proposal!$N$3,1,IF(proposal!E101=proposal!$N$4,0.5))","v":false},{"$f":"IF(proposal!F101=proposal!$P$3,1,IF(proposal!F101=proposal!$P$4,2,IF(proposal!F101=proposal!$P$5,3)))","v":false},null,0]
["طرح 98",{"$f":"IF(proposal!E102=proposal!$N$3,1,IF(proposal!E102=proposal!$N$4,0.5))","v":false},{"$f":"IF(proposal!F102=proposal!$P$3,1,IF(proposal!F102=proposal!$P$4,2,IF(proposal!F102=proposal!$P$5,3)))","v":false},null,0]
["طرح 99",{"$f":"IF(proposal!E103=proposal!$N$3,1,IF(proposal!E103=proposal!$N$4,0.5))","v":false},{"$f":"IF(proposal!F103=proposal!$P$3,1,IF(proposal!F103=proposal!$P$4,2,IF(proposal!F103=proposal!$P$5,3)))","v":false},null,0]
["طرح 100",{"$f":"IF(proposal!E104=proposal!$N$3,1,IF(proposal!E104=proposal!$N$4,0.5))","v":false},{"$f":"IF(proposal!F104=proposal!$P$3,1,IF(proposal!F104=proposal!$P$4,2,IF(proposal!F104=proposal!$P$5,3)))","v":false},null,0]
[]
[null,null,null,null,{"$f":"SUM(E2:E101)","v":0}]

{"sheet":"hamayesh","index":14,"n_rows":40,"n_cols":5,"rows_kept":40,"cut":false,"hidden":false,"merged":[]}
[]
["شماره 1",{"$f":"IF(conference!E5=conference!$L$2,0.25,IF(conference!E5=conference!$L$3,0.25,IF(conference!E5=conference!$L$4,0.5,IF(conference!E5=conference!$L$5,0.5))))","v":false},null,null,"امتیاز همایش"]
["شماره 2",{"$f":"IF(conference!E6=conference!$L$2,0.25,IF(conference!E6=conference!$L$3,0.25,IF(conference!E6=conference!$L$4,0.5,IF(conference!E6=conference!$L$5,0.5))))","v":false},null,null,{"$f":"IF(B40=0,0,IF(B40=0.25,0.25,IF(B40=0.5,0.5,IF(B40=0.75,0.75,IF(B40=1,1,IF(B40=1.25,1.25,IF(B40=1.5,1.5,IF(B40=1.75,1.75,IF(B40>1.75,2)))))))))","v":0}]
["شماره 3",{"$f":"IF(conference!E7=conference!$L$2,0.25,IF(conference!E7=conference!$L$3,0.25,IF(conference!E7=conference!$L$4,0.5,IF(conference!E7=conference!$L$5,0.5))))","v":false}]
["شماره 4",{"$f":"IF(conference!E8=conference!$L$2,0.25,IF(conference!E8=conference!$L$3,0.25,IF(conference!E8=conference!$L$4,0.5,IF(conference!E8=conference!$L$5,0.5))))","v":false}]
["شماره 5",{"$f":"IF(conference!E9=conference!$L$2,0.25,IF(conference!E9=conference!$L$3,0.25,IF(conference!E9=conference!$L$4,0.5,IF(conference!E9=conference!$L$5,0.5))))","v":false}]
["شماره 6",{"$f":"IF(conference!E10=conference!$L$2,0.25,IF(conference!E10=conference!$L$3,0.25,IF(conference!E10=conference!$L$4,0.5,IF(conference!E10=conference!$L$5,0.5))))","v":false}]
["شماره 7",{"$f":"IF(conference!E11=conference!$L$2,0.25,IF(conference!E11=conference!$L$3,0.25,IF(conference!E11=conference!$L$4,0.5,IF(conference!E11=conference!$L$5,0.5))))","v":false}]
["شماره 8",{"$f":"IF(conference!E12=conference!$L$2,0.25,IF(conference!E12=conference!$L$3,0.25,IF(conference!E12=conference!$L$4,0.5,IF(conference!E12=conference!$L$5,0.5))))","v":false}]
["شماره 9",{"$f":"IF(conference!E13=conference!$L$2,0.25,IF(conference!E13=conference!$L$3,0.25,IF(conference!E13=conference!$L$4,0.5,IF(conference!E13=conference!$L$5,0.5))))","v":false}]
["شماره 10",{"$f":"IF(conference!E14=conference!$L$2,0.25,IF(conference!E14=conference!$L$3,0.25,IF(conference!E14=conference!$L$4,0.5,IF(conference!E14=conference!$L$5,0.5))))","v":false}]
["شماره 11",{"$f":"IF(conference!E15=conference!$L$2,0.25,IF(conference!E15=conference!$L$3,0.25,IF(conference!E15=conference!$L$4,0.5,IF(conference!E15=conference!$L$5,0.5))))","v":false}]
["شماره 12",{"$f":"IF(conference!E16=conference!$L$2,0.25,IF(conference!E16=conference!$L$3,0.25,IF(conference!E16=conference!$L$4,0.5,IF(conference!E16=conference!$L$5,0.5))))","v":false}]
["شماره 13",{"$f":"IF(conference!E17=conference!$L$2,0.25,IF(conference!E17=conference!$L$3,0.25,IF(conference!E17=conference!$L$4,0.5,IF(conference!E17=conference!$L$5,0.5))))","v":false}]
["شماره 14",{"$f":"IF(conference!E18=conference!$L$2,0.25,IF(conference!E18=conference!$L$3,0.25,IF(conference!E18=conference!$L$4,0.5,IF(conference!E18=conference!$L$5,0.5))))","v":false}]
["شماره 15",{"$f":"IF(conference!E19=conference!$L$2,0.25,IF(conference!E19=conference!$L$3,0.25,IF(conference!E19=conference!$L$4,0.5,IF(conference!E19=conference!$L$5,0.5))))","v":false}]
["شماره 16",{"$f":"IF(conference!E20=conference!$L$2,0.25,IF(conference!E20=conference!$L$3,0.25,IF(conference!E20=conference!$L$4,0.5,IF(conference!E20=conference!$L$5,0.5))))","v":false}]
["شماره 17",{"$f":"IF(conference!E21=conference!$L$2,0.25,IF(conference!E21=conference!$L$3,0.25,IF(conference!E21=conference!$L$4,0.5,IF(conference!E21=conference!$L$5,0.5))))","v":false}]
["شماره 18",{"$f":"IF(conference!E22=conference!$L$2,0.25,IF(conference!E22=conference!$L$3,0.25,IF(conference!E22=conference!$L$4,0.5,IF(conference!E22=conference!$L$5,0.5))))","v":false}]
["شماره 19",{"$f":"IF(conference!E23=conference!$L$2,0.25,IF(conference!E23=conference!$L$3,0.25,IF(conference!E23=conference!$L$4,0.5,IF(conference!E23=conference!$L$5,0.5))))","v":false}]
["شماره 20",{"$f":"IF(conference!E24=conference!$L$2,0.25,IF(conference!E24=conference!$L$3,0.25,IF(conference!E24=conference!$L$4,0.5,IF(conference!E24=conference!$L$5,0.5))))","v":false}]
["شماره 21",{"$f":"IF(conference!E25=conference!$L$2,0.25,IF(conference!E25=conference!$L$3,0.25,IF(conference!E25=conference!$L$4,0.5,IF(conference!E25=conference!$L$5,0.5))))","v":false}]
["شماره 22",{"$f":"IF(conference!E26=conference!$L$2,0.25,IF(conference!E26=conference!$L$3,0.25,IF(conference!E26=conference!$L$4,0.5,IF(conference!E26=conference!$L$5,0.5))))","v":false}]
["شماره 23",{"$f":"IF(conference!E27=conference!$L$2,0.25,IF(conference!E27=conference!$L$3,0.25,IF(conference!E27=conference!$L$4,0.5,IF(conference!E27=conference!$L$5,0.5))))","v":false}]
["شماره 24",{"$f":"IF(conference!E28=conference!$L$2,0.25,IF(conference!E28=conference!$L$3,0.25,IF(conference!E28=conference!$L$4,0.5,IF(conference!E28=conference!$L$5,0.5))))","v":false}]
["شماره 25",{"$f":"IF(conference!E29=conference!$L$2,0.25,IF(conference!E29=conference!$L$3,0.25,IF(conference!E29=conference!$L$4,0.5,IF(conference!E29=conference!$L$5,0.5))))","v":false}]
["شماره 26",{"$f":"IF(conference!E30=conference!$L$2,0.25,IF(conference!E30=conference!$L$3,0.25,IF(conference!E30=conference!$L$4,0.5,IF(conference!E30=conference!$L$5,0.5))))","v":false}]
["شماره 27",{"$f":"IF(conference!E31=conference!$L$2,0.25,IF(conference!E31=conference!$L$3,0.25,IF(conference!E31=conference!$L$4,0.5,IF(conference!E31=conference!$L$5,0.5))))","v":false}]
["شماره 28",{"$f":"IF(conference!E32=conference!$L$2,0.25,IF(conference!E32=conference!$L$3,0.25,IF(conference!E32=conference!$L$4,0.5,IF(conference!E32=conference!$L$5,0.5))))","v":false}]
["شماره 29",{"$f":"IF(conference!E33=conference!$L$2,0.25,IF(conference!E33=conference!$L$3,0.25,IF(conference!E33=conference!$L$4,0.5,IF(conference!E33=conference!$L$5,0.5))))","v":false}]
["شماره 30",{"$f":"IF(conference!E34=conference!$L$2,0.25,IF(conference!E34=conference!$L$3,0.25,IF(conference!E34=conference!$L$4,0.5,IF(conference!E34=conference!$L$5,0.5))))","v":false}]
["شماره 31",{"$f":"IF(conference!E35=conference!$L$2,0.25,IF(conference!E35=conference!$L$3,0.25,IF(conference!E35=conference!$L$4,0.5,IF(conference!E35=conference!$L$5,0.5))))","v":false}]
["شماره 32",{"$f":"IF(conference!E36=conference!$L$2,0.25,IF(conference!E36=conference!$L$3,0.25,IF(conference!E36=conference!$L$4,0.5,IF(conference!E36=conference!$L$5,0.5))))","v":false}]
["شماره 33",{"$f":"IF(conference!E37=conference!$L$2,0.25,IF(conference!E37=conference!$L$3,0.25,IF(conference!E37=conference!$L$4,0.5,IF(conference!E37=conference!$L$5,0.5))))","v":false}]
["شماره 34",{"$f":"IF(conference!E38=conference!$L$2,0.25,IF(conference!E38=conference!$L$3,0.25,IF(conference!E38=conference!$L$4,0.5,IF(conference!E38=conference!$L$5,0.5))))","v":false}]
["شماره 35",{"$f":"IF(conference!E39=conference!$L$2,0.25,IF(conference!E39=conference!$L$3,0.25,IF(conference!E39=conference!$L$4,0.5,IF(conference!E39=conference!$L$5,0.5))))","v":false}]
["شماره 36",{"$f":"IF(conference!E40=conference!$L$2,0.25,IF(conference!E40=conference!$L$3,0.25,IF(conference!E40=conference!$L$4,0.5,IF(conference!E40=conference!$L$5,0.5))))","v":false}]
["شماره 37",{"$f":"IF(conference!E41=conference!$L$2,0.25,IF(conference!E41=conference!$L$3,0.25,IF(conference!E41=conference!$L$4,0.5,IF(conference!E41=conference!$L$5,0.5))))","v":false}]
[]
[null,{"$f":"SUM(B2:B38)","v":0}]

{"sheet":"H index","index":15,"n_rows":2,"n_cols":2,"rows_kept":2,"cut":false,"hidden":false,"merged":[]}
[]
[null,{"$f":"IF(Moshakhasat!B36=Moshakhasat!F30,0,IF(Moshakhasat!B36=Moshakhasat!F31,0,IF(Moshakhasat!B36=Moshakhasat!F32,0,IF(Moshakhasat!B36=Moshakhasat!F33,0,IF(Moshakhasat!B36=Moshakhasat!F34,0,IF(Moshakhasat!B36=Moshakhasat!F35,0,IF(Moshakhasat!B36=Moshakhasat!F36,0,IF(Moshakhasat!B36=Moshakhasat!F37,1,IF(Moshakhasat!B36=Moshakhasat!F38,1.25,IF(Moshakhasat!B36=Moshakhasat!F39,1.5,IF(Moshakhasat!B36=Moshakhasat!F40,1.75,IF(Moshakhasat!B36=Moshakhasat!F41,2,IF(Moshakhasat!B36=Moshakhasat!F42,2.25,IF(Moshakhasat!B36=Moshakhasat!F43,2.5,IF(Moshakhasat!B36=Moshakhasat!F44,2.75,IF(Moshakhasat!B36=Moshakhasat!F45,3,IF(Moshakhasat!B36=Moshakhasat!F46,3,IF(Moshakhasat!B36=Moshakhasat!F47,3,IF(Moshakhasat!B36=Moshakhasat!F48,3)))))))))))))))))))","v":0}]

{"sheet":"total","index":16,"n_rows":2,"n_cols":3,"rows_kept":2,"cut":false,"hidden":false,"merged":[]}
["نمره رزومه","نمره اختصاصی","نمره کل"]
[{"$f":"maghale!I2+ebda!G2+ketab!F33+tarh!H2+hamayesh!E3+'H index'!B2","v":0},null,{"$f":"((A2*0.3)+(B2*0.7))","v":0}]

{"sheet":"sum","index":17,"n_rows":49,"n_cols":5,"rows_kept":49,"cut":false,"hidden":false,"merged":[]}
[null,null,null,"خلاصه موضوعات/ فعالیت های پژوهشی"]
[null,null,null,{"$f":"Moshakhasat!#REF!","v":{"$error":"#REF!"}}]
[null,null,null,{"$f":"Moshakhasat!#REF!","v":{"$error":"#REF!"}}]
[null,null,null,{"$f":"Moshakhasat!#REF!","v":{"$error":"#REF!"}}]
[null,null,null,{"$f":"Moshakhasat!#REF!","v":{"$error":"#REF!"}}]
[null,null,null,"تعداد شرکت در همایش"]
[null,null,null,"ارائه به صورت سخنرانی"]
[null,null,null,{"$f":"COUNTIF(conference!C5:C104,conference!K2)","v":0}]
[null,null,null,"ارائه به صورت پوستر"]
[null,null,null,{"$f":"COUNTIF(conference!C5:C104,conference!K3)","v":0}]
[null,null,null,"تعداد اختراع"]
[null,null,null,"ثبت داخلی"]
[null,null,null,{"$f":"COUNTIF(inovation!C6:C10,inovation!M3)","v":0}]
[null,null,null,"ثبت خارجی"]
[null,null,null,{"$f":"COUNTIF(inovation!C6:C10,inovation!M4)","v":0}]
[null,null,null,"تعداد داوری"]
[null,null,null,"مجله"]
[null,null,null,{"$f":"SUM(#REF!)","v":{"$error":"#REF!"}}]
[null,null,null,"همایش"]
[null,null,null,{"$f":"SUM(#REF!)","v":{"$error":"#REF!"}}]
[null,null,null,"تعداد کتاب"]
[null,null,null,"تالیف"]
[null,null,null,{"$f":"COUNTIF(book!C5:C15,book!P4)","v":0}]
[null,null,null,"ترجمه"]
[null,null,null,{"$f":"COUNTIF(book!C5:C15,book!O5)","v":0}]
[null,null,null,"تعداد مقالات چاپ شده"]
[null,null,null,"انگلیسی"]
[null,null,null,{"$f":"COUNTIF(Article!E9:E208,Article!V8)","v":0}]
[null,null,null,"فارسی"]
[null,null,null,{"$f":"COUNTIF(Article!E9:E208,Article!V7)","v":0}]
[null,null,null,"تعداد طرح پژوهشی"]
[null,null,null,"مجری"]
[null,null,null,{"$f":"COUNTIF(proposal!E5:E38,proposal!N3)","v":0}]
[null,null,null,"همکار"]
[null,null,null,{"$f":"COUNTIF(proposal!E8:E380,proposal!N4)","v":0}]
[null,null,null,"امتیازات"]
[null,null,{"$f":"SUM(Article!M:M)","v":0},"امتیاز مقالات","محاسبه خودکار امتیاز مقالات به تکمیل ستون Affiliation حساس است."]
[null,null,{"$f":"2*SUM(Article!L9:L208)","v":0},"امتیاز استنادات","محاسبه بصورت خودکار انجام می شود."]
[null,null,{"$f":"COUNTIFS(conference!C5:C104,conference!$K$3,conference!E5:E104,conference!$L$5,conference!H5:H104,conference!$M$2)*10+COUNTIFS(conference!C5:C104,conference!$K$2,conference!E5:E104,conference!$L$5,conference!H5:H104,conference!$M$2)*7+COUNTIFS(conference!E5:E104,conference!$L$5,conference!H5:H104,conference!$M$3)*5+COUNTIFS(conference!C5:C104,conference!$K$3,conference!E5:E104,conference!$L$4,conference!H5:H104,conference!$M$2)*10*0.9+COUNTIFS(conference!C5:C104,conference!$K$2,conference!E5:E104,conference!$L$4,conference!H5:H104,conference!$M$2)*7*0.9+COUNTIFS(conference!E5:E104,conference!$L$4,conference!H5:H104,conference!$M$3)*5*0.9+COUNTIFS(conference!C5:C104,conference!$K$3,conference!E5:E104,conference!$L$3,conference!H5:H104,conference!$M$2)*10*0.6+COUNTIFS(conference!C5:C104,conference!$K$2,conference!E5:E104,conference!$L$3,conference!H5:H104,conference!$M$2)*7*0.6+COUNTIFS(conference!E5:E104,conference!$L$3,conference!H5:H104,conference!$M$3)*5*0.6+COUNTIFS(conference!C5:C104,conference!$K$3,conference!E5:E104,conference!$L$2,conference!H5:H104,conference!$M$2)*10*0.5+COUNTIFS(conference!C5:C104,conference!$K$2,conference!E5:E104,conference!$L$2,conference!H5:H104,conference!$M$2)*7*0.5+COUNTIFS(conference!E5:E104,conference!$L$2,conference!H5:H104,conference!$M$3)*5*0.5","v":0},"امتیاز همایش","محاسبه خودکار؛ عدم ارائه مستندات به منزله چاپ خلاصه مقاله به تنهایی است."]
[null,null,{"$f":"COUNTIFS(inovation!C6:C10,inovation!$M$4,inovation!J6:J10,inovation!$O$3)*100+COUNTIFS(inovation!C6:C10,inovation!$M$3,inovation!J6:J10,inovation!$O$3)*20","v":0},"امتیاز اختراع","محاسبه خودکار؛ عدم ارائه مستندات (مستندات=ندارم) به منزله امتیاز صفر است."]
[null,null,null,"امتیاز کتاب","بصورت دستی محاسبه شود."]
[null,null,null,"امتیاز طرح ها","بصورت دستی محاسبه شود."]
[null,null,null,"امتیاز پایان نامه","بصورت دستی محاسبه شود."]
[null,null,{"$f":"SUM(#REF!)","v":{"$error":"#REF!"}},"امتیاز داوری علمی مجلات","محاسبه بصورت خودکار انجام می شود."]
[null,null,{"$f":"SUM(#REF!)","v":{"$error":"#REF!"}},"امتیاز داوری در همایش ها","محاسبه بصورت خودکار انجام می شود."]
[null,null,null,"امتیاز فعالیت آموزش مرتبط با پژوهش","بصورت دستی محاسبه شود."]
[null,null,null,"امتیاز جشنواره های دانشگاهی","بصورت دستی محاسبه شود."]
[null,null,null,"امتیاز جشنواره های علمی","بصورت دستی محاسبه شود."]
[null,null,{"$f":"SUM(C37:C48)","v":{"$error":"#REF!"}},"جمع کل امتیازات"]